{"text_format":"1","workbook":"xlsx","n_sheets":11,"sheets":["FICHA SIMPLIFICADA-SAT","Fuente","Datos","Datos 7","Datos 1","Datos 2","Datos 3","Datos 4","Datos 5","Datos 6","Hoja3"],"not_rendered":{"charts":0,"images":10,"macros":1,"external_links":0,"defined_names":1,"comments":4,"pivot_tables":0},"unopened":[],"bounds":{"document_bytes":16777216,"sheet_cells":100000,"rows_first":2000,"rows_last":500,"rows_between":2000,"halvings":0,"cell_chars":16384,"cell_head_chars":4096},"cells_cut":0,"cells_raw":0,"read":"whole","date_system":"1900"}

{"sheet":"FICHA SIMPLIFICADA-SAT","index":0,"n_rows":473,"n_cols":26,"rows_kept":473,"cut":false,"hidden":false,"merged":[[301,2,301,3],[303,2,303,3],[267,1,296,1],[297,1,306,1],[315,1,315,6],[199,4,200,5],[141,1,141,4],[267,2,267,8],[278,2,278,3],[279,2,279,3],[295,2,295,3],[268,2,268,3],[269,2,269,3],[306,2,306,8],[275,2,275,3],[276,2,276,8],[288,2,288,3],[290,2,290,3],[285,2,285,3],[272,2,272,3],[282,2,282,3],[292,2,292,3],[302,2,302,3],[277,2,277,8],[287,2,287,8],[300,2,300,3],[156,3,156,10],[158,3,158,10],[297,2,297,8],[138,1,138,4],[167,1,167,7],[172,1,172,9],[261,1,261,2],[235,1,235,9],[182,1,182,9],[185,1,185,9],[265,5,265,6],[209,2,210,2],[224,1,225,1],[224,2,225,2],[220,1,220,9],[209,1,210,1],[194,2,194,3],[206,1,206,2],[178,1,180,9],[271,2,271,3],[289,2,289,3],[154,1,155,2],[281,2,281,3],[283,2,283,3],[128,8,128,9],[135,1,135,6],[145,4,145,8],[146,4,146,8],[147,4,147,8],[148,4,148,8],[149,4,149,8],[146,1,147,3],[148,1,149,3],[145,1,145,3],[140,1,140,4],[142,1,142,3],[280,2,280,3],[119,1,119,9],[112,1,112,9],[114,1,114,9],[124,3,124,5],[125,3,125,5],[125,1,126,2],[169,1,169,7],[270,2,270,3],[116,1,116,9],[127,3,127,5],[153,1,153,10],[154,8,154,10],[154,3,154,7],[137,1,137,4],[128,1,129,2],[156,1,161,2],[82,4,82,5],[86,4,86,5],[106,4,106,9],[107,4,107,9],[108,4,108,9],[117,1,117,9],[111,1,111,9],[110,1,110,9],[118,1,118,9],[98,1,98,4],[472,9,472,12],[472,2,472,4],[214,1,217,9],[230,1,232,9],[455,1,455,8],[458,1,458,8],[469,1,469,8],[460,1,460,8],[434,3,434,7],[435,3,435,7],[436,3,436,7],[437,3,437,7],[434,1,434,2],[435,1,435,2],[436,1,436,2],[437,1,437,2],[429,4,429,5],[429,6,429,9],[426,1,429,1],[448,4,448,6],[449,4,449,6],[265,7,265,8],[428,2,428,3],[429,2,429,3],[412,1,412,9],[380,3,381,3],[352,1,353,1],[352,2,353,2],[450,4,450,6],[448,1,448,3],[449,1,449,3],[450,1,450,3],[452,1,452,8],[440,1,440,8],[445,1,445,8],[447,1,447,3],[447,4,447,6],[442,2,442,3],[433,1,433,2],[433,3,433,7],[428,4,428,5],[428,6,428,9],[405,1,407,1],[414,2,414,3],[416,2,416,3],[422,1,422,9],[427,6,427,9],[427,4,427,5],[426,4,426,5],[426,6,426,9],[426,2,426,3],[427,2,427,3],[417,2,417,3],[420,1,420,8],[415,1,417,1],[415,2,415,3],[421,1,421,9],[314,1,314,6],[316,1,316,6],[310,1,310,9],[402,1,403,1],[399,1,400,1],[312,1,312,3],[351,1,351,3],[334,1,334,3],[332,1,332,2],[380,1,381,1],[380,2,381,2],[317,1,317,6],[374,1,374,2],[370,1,370,2],[330,1,330,2],[335,1,336,1],[335,2,336,2],[328,1,328,7],[326,1,326,7],[324,1,324,7],[322,1,322,7],[378,1,378,7],[397,3,397,12],[397,1,398,2],[80,4,80,5],[318,1,318,3],[244,1,249,13],[252,1,257,13],[291,2,291,3],[293,2,293,3],[305,2,305,3],[321,1,321,6],[309,1,309,9],[265,9,266,9],[298,2,298,3],[299,2,299,3],[266,2,266,3],[273,2,273,3],[265,10,265,11],[319,1,319,3],[320,1,320,3],[308,1,308,9],[307,1,307,8],[304,2,304,3],[284,2,284,3],[274,2,274,3],[296,2,296,8],[286,2,286,8],[74,4,74,6],[75,4,75,6],[125,8,125,9],[38,3,38,4],[106,1,107,3],[11,1,11,9],[36,1,36,2],[240,16,259,16],[162,1,163,2],[38,1,38,2],[40,1,40,2],[88,1,88,9],[105,4,105,9],[76,4,76,6],[102,1,102,9],[103,1,103,9],[105,1,105,3],[92,1,97,9],[84,4,84,5],[108,1,109,3],[109,4,109,9],[113,1,113,9],[115,1,115,9],[32,3,32,8],[240,17,259,17],[13,6,14,9],[15,6,23,9],[13,3,13,4],[15,3,15,4],[17,3,17,4],[19,3,19,4],[21,3,21,4],[127,8,127,9],[124,8,124,9],[65,4,65,6],[66,4,66,6],[67,4,67,6],[68,4,68,6],[72,4,72,6],[73,4,73,6],[40,3,40,4],[41,3,41,4],[42,3,42,4],[128,3,128,5],[134,1,134,6],[160,3,160,10],[162,3,162,10],[23,3,23,4],[1,1,1,9],[3,1,3,9],[61,1,61,3],[58,1,58,3],[59,1,59,3],[60,1,60,3],[44,1,44,9],[50,5,50,9],[54,6,54,9],[58,4,58,5],[59,4,59,5],[60,4,60,5],[61,4,61,5],[6,3,6,4],[6,5,6,6],[48,5,48,6],[53,6,53,9],[8,2,8,4],[54,1,54,2],[36,3,36,4],[54,3,54,5],[53,1,53,2],[53,3,53,5]]}
[]
[null,"FICHA TÉCNICA SIMPLIFICADA ESPECIFICA \"CREACION, MEJORAMIENTO, AMPLIACIÓN O RECUPERACIÓN DEL SERVICIO DE ALERTA TEMPRANA DE LA LOCALIDAD, DISTRITO, PROVINCIA, DEPARTAMENTO\""]
[null,null,null,"MONTO:",750]
[null,"(La información registrada tiene carácter de Declaración Jurada - DS. N° 027-2017-EF)  "]
[null,"     LEYENDA: "]
[]
[null,null,"Datos fijos\n(No requieren modificación)","Variable tipo 1\n(escoger de lista desplegable)",null,"Variable tipo 2\n(tipear según sea conveniente)",null,null,null,null,null,null,null,null,null,null,null,null,null,null,null,null,null,null,null,1]
[]
[null,null,"Nota: Rellenar la ficha de acuerdo a los colores de las celdas."]
[]
[]
[null,"INFORMACIÓN PRELIMINAR"]
[]
[null,"A. Ubicación:",null,"UBICACIÓN PRINCIPAL: ",null,null,"Nota: De existir, dentro del área afectada, más de una localidad, distrito o provincia, indicarlo en este espacio:"]
[]
[null,"DEPARTAMENTO"]
[]
[null,"PROVINCIA"]
[]
[null,"DISTRITO"]
[]
[null,"LOCALIDAD (Indicar localidad, cuenca, etc)"]
[]
[null,"COORDENADAS",null,"WGS 84 - Sistema Geodésico Mundial "]
[]
[null,null,null,{"$f":"IF($D$24=\"UTM - Universal Transversal de Mercator\", \"X (metros.): \",\"LONGITUD (grados):\")","v":"LONGITUD (grados):"}]
[null,null,null,{"$f":"IF($D$24=\"UTM - Universal Transversal de Mercator\", \"Y (metros.) : \", \"LATITUD (grados):\")","v":"LATITUD (grados):"}]
[]
[null,"COTA",null,"Cota (msnm):"]
[null,"ZONA URBANA/RURAL",null,"Urbana"]
[null,"REGIÓN (COSTA, SIERRA, SELVA)",null,"Sierra"]
[null,"CODIGO DE UBIGEO"]
[null,"Fuente sugerida:",null,"http://webinei.inei.gob.pe:8080/sisconcode/publico.htm"]
[]
[null,"B.   Nº Peligros identificados:"]
[]
[null,"Peligro principal identificado:      "]
[]
[null,{"$f":"IF(D35=\"Uno\",\"\",\" Segundo Peligro Principal Identificado:        \")","v":" Segundo Peligro Principal Identificado:        "}]
[]
[null,{"$f":"IF(D35=\"Uno\",\"\",\" Otros Peligros  Identificados (Tipear):        \")","v":" Otros Peligros  Identificados (Tipear):        "}]
[]
[]
[]
[null,"I.  DATOS GENERALES"]
[]
[null,"1.1    ARTICULACIÓN CON EL PROGRAMA MULTIANUAL DE INVERSIONES (PMI)"]
[]
[null,"A.     SERVICIO PÚBLICO: ",null,null,null,"Alerta Temprana"]
[]
[null,"B.     INDICADOR:",null,null,null,"% de  localidades  del Perú que no cuentan con sistema de alerta temprana"]
[null,"1.2. NOMBRE DEL PROYECTO"]
[]
[null,"NATURALEZA DE INTERVENCION",null,"OBJETO",null,null,"LOCALIZACION"]
[null,null,null,{"$f":"IF(D35=\"Uno\",CONCATENATE(\"Servicio de  \", F49, \" frente a \",D37),CONCATENATE(\"Servicio de  \", F49, \" frente a \",D37,\" \",Datos!C42,\" \",D39))","v":"Servicio de  Alerta Temprana frente a  y "},null,null,{"$f":"CONCATENATE(\"Localidad de \",D22, \" distrito de \",D20,\" provincia de \",D18,\"  departamento de  \",D16)","v":"Localidad de  distrito de  provincia de   departamento de  "}]
[]
[null,"1.3 RESPONSABILIDAD FUNCIONAL"]
[]
[null,"FUNCIÓN",null,null,"05: Orden público y seguridad"]
[null,"DIVISION FUNCIONAL",null,null,"016: Gestión de riesgo de emergencias"]
[null,"GRUPO FUNCIONAL",null,null,"0036: Atención inmediata de desastres"]
[null,"SECTOR RESPONSABLE",null,null,"26: Defensa"]
[]
[null,"1.4 UNIDAD FORMULADORA "]
[]
[null,"Sector:"]
[null,"Pliego:"]
[null,"Nombre:"]
[null,"Persona Responsable de la Unidad Formuladora:"]
[]
[null,"1.5 UNIDAD EJECUTORA DE INVERSIONES RECOMENDADA "]
[]
[null,"Sector:"]
[null,"Pliego:"]
[null,"Nombre de la  Unidad Ejecutora de Inversiones"]
[null,"Responsable de la  Unidad Ejecutora de Inversiones"]
[null,"Organo Técnico Responsable"]
[]
[null,"1.6 UBICACIÓN GEOGRÁFICA "]
[]
[null,"DEPARTAMENTO",null,null,{"$f":"IF(D16=\"\",\"\",D16)","v":""}]
[]
[null,"PROVINCIA",null,null,{"$f":"IF(D18=\"\",\"\",D18)","v":""}]
[]
[null,"DISTRITO",null,null,{"$f":"IF(D20=\"\",\"\",D20)","v":""}]
[]
[null,"LOCALIDAD",null,null,{"$f":"IF(D22=\"\",\"\",D22)","v":""}]
[]
[null,"II.  IDENTIFICACION"]
[]
[null,"2.1 DESCRIPCIÓN DE LA SITUACIÓN ACTUAL DEL SERVICIO (Describir el  escenario del riesgo  por peligro identificado, tomar en cuenta peligros identificados en informacion preliminar)"]
[]
[]
[]
[]
[]
[]
[]
[null,"Fuente sugerida: (ver hoja: Fuentes)  "]
[]
[null,"2.2 PROBLEMA CENTRAL, CAUSAS Y EFECTOS"]
[]
[null,"Descripción del problema central"]
[null,{"$f":"IF(B55=\"\",\"\",HLOOKUP(B55,Datos!D44:H59,2,FALSE))","v":""}]
[]
[null,"Causas directas",null,null,"Causas Indirectas"]
[null,{"$f":"IF(B55=\"\",\"\",HLOOKUP(B55,Datos!D44:H59,3,FALSE))","v":""},null,null,{"$f":"IF(B55=\"\",\"\",HLOOKUP(B55,Datos!D44:H59,5,FALSE))","v":""}]
[null,null,null,null,{"$f":"IF(B55=\"\",\"\",HLOOKUP(B55,Datos!D44:H59,6,FALSE))","v":""}]
[null,{"$f":"IF(B55=\"\",\"\",HLOOKUP(B55,Datos!D44:H59,4,FALSE))","v":""},null,null,{"$f":"IF(B55=\"\",\"\",HLOOKUP(B55,Datos!D44:H59,7,FALSE))","v":""}]
[null,null,null,null,{"$f":"IF(B55=\"\",\"\",HLOOKUP(B55,Datos!D44:H59,8,FALSE))","v":""}]
[null,"Efectos directos"]
[null,"Pérdidas de vidas humanas y perjuicios a la salud."]
[null,"Deterioro de los medios de vida como establecimientos comerciales, tierras agrícolas y otros."]
[null,"Desplazamiento de la población."]
[null,"Interrupción  de actividades productivas, sociales y la prestación de servicios."]
[null,"Efectos indirectos"]
[null,"Disminución de la productividad."]
[null,"Incremento de costos en programas de asistencia y protección social y medidas de rehabilitación y reconstrucción."]
[null,"Efecto final"]
[null,"Disminución de la calidad de vida de la población."]
[]
[]
[null,"2.3 POBLACIÓN DE REFERENCIA Y POBLACIÓN OBJETIVO"]
[]
[null,"A. Población de referencia ",null,"Tipo de población",null,null,"Año","Cantidad (hab.)","Fuente de información",null,{"$f":"IF(I126=\"Otros\", \"Otra fuente:\",\"\")","v":""}]
[null,"(Considerar datos de proyecciones del INEI o realizar proyecciones  a partir de los censos oficiales del INEI, de ser el caso, también puede considerar padrón de beneficiarios)",null,"Población de referencia"]
[]
[null,"B. Población objetivo",null,"Tipo de población",null,null,"Año base","Cantidad (hab.)","Fuente de información",null,{"$f":"IF(I129=\"Otros\", \"Otra fuente:\",\"\")","v":""}]
[null,"(Considerar datos de población expuesta a partir de estadísticas de instituciones especializadas o a partir de encuestas en la comunidad)",null,"Población que será alertada con el SAT"]
[]
[null,"2.4 DEFINICION DE LOS OBJETIVOS DEL PROYECTO"]
[]
[null,"A. Objetivo"]
[]
[null,"Descripción del Objetivo central"]
[null,{"$f":"IF(B55=\"\",\"\",HLOOKUP(B55,Datos!D44:H59,9,FALSE))","v":""}]
[null,{"$f":"IF(B55=\"\",\"\",HLOOKUP(B55,Datos!D44:H83,34,FALSE))","v":""}]
[null,"Principal indicador del objetivo central",null,null,null,"Unidad de medida","Valor","Fuente"]
[null,"Población que será alertada con el SAT está preparada",null,null,null,"Número",{"$f":"H129","v":0},{"$f":"+I129","v":0}]
[]
[null,"Segundo indicador del objetivo central",null,null,null,"Unidad de medida","Valor","Fuente",{"$f":"IF(H142=\"Otros\", \"Otra fuente:\",\"\")","v":""}]
[null,"% de entidades de los tres niveles de gobierno que cuentan con capacidades para la gestión reactiva del riesgo frente a los peligros",null,null,null,"Porcentaje"]
[]
[null,"B. Medios fundamentales"]
[]
[null,"Medios de primer nivel",null,null,"Medios fundamentales"]
[null,{"$f":"IF(B55=\"\",\"\",HLOOKUP(B55,Datos!D44:H59,11,FALSE))","v":""},null,null,{"$f":"IF(B55=\"\",\"\",HLOOKUP(B55,Datos!D44:H59,13,FALSE))","v":""}]
[null,null,null,null,{"$f":"IF(B55=\"\",\"\",HLOOKUP(B55,Datos!D44:H59,14,FALSE))","v":""}]
[null,{"$f":"IF(B55=\"\",\"\",HLOOKUP(B55,Datos!D44:H59,12,FALSE))","v":""},null,null,{"$f":"IF(B55=\"\",\"\",HLOOKUP(B55,Datos!D44:H59,15,FALSE))","v":""}]
[null,null,null,null,{"$f":"IF(B55=\"\",\"\",HLOOKUP(B55,Datos!D44:H59,16,FALSE))","v":""}]
[]
[null,"2.5 DESCRIPCIÓN DE LAS ALTERNATIVAS DE SOLUCIÓN AL PROBLEMA"]
[]
[null,"Alternativa de solución"]
[null,"PRODUCTO",null,"ACCIONES PREDETERMINADAS\n (elegir  de lista desplegable de ser necesario)",null,null,null,null,"ACCIONES ADICIONALES\n (de ser necesario tipear más acciones)"]
[null,null,null,"Acción 1","Acción 2","Acción 3","Acción 4","Acción 5","Acción 6","Acción 7","Acción 8"]
[null,"PRODUCTO 1:\n\nSISTEMA DE ALERTA TEMPRANA Y DE COMUNICACIONES\nIMPLEMENTADA.",null,{"$f":"E147","v":""}]
[]
[null,null,null,{"$f":"E148","v":""}]
[]
[null,null,null,{"$f":"E149","v":""}]
[]
[null,"PRODUCTO 2: \n\nPOBLACIÓN ENTRENADA FRENTE AL RIESGO DE DESASTRES.",null,{"$f":"E150","v":""}]
[]
[]
[]
[null,"2.6 REQUERIMIENTOS INSTITUCIONALES Y/O NORMATIVOS"]
[null,"(Referido a los aspectos técnicos y regulatorios que el proyecto deberá cumplir durante su fase de ejecución y fase de funcionamiento (como el saneamiento técnico legal, sustento de factibilidad de servicios de agua, desagüe y electricidad, certificado de parámetros urbanísticos, cumplimiento de permisos y autorizaciones, entre otros)."]
[]
[]
[]
[]
[null,"III.  FORMULACIÓN Y EVALUACIÓN"]
[]
[null,"3.1 HORIZONTE DE EVALUACIÓN",null,"Horizonte de evaluación (años)"]
[null,"Número de años del horizonte de evaluación:",null,10]
[]
[null,"Sustento técnico del horizonte de evaluación elegido"]
[]
[]
[]
[]
[null,"3.2 ESTUDIO DE MERCADO DEL SERVICIO PÚBLICO"]
[]
[null,"A. Definición del servicio público e indicador"]
[null,"\"La alerta temprana es parte de los procesos, de preparación y respuesta. Para la preparación consiste en recibir información, analizar y actuar organizadamente sobre la base de sistemas de vigilancia y monitoreo de peligros y en establecer y desarrollar las acciones y capacidades locales para actuar con autonomía y resiliencia\". (El Peruano, Decreto Supremo Nº 29664 que aprueba el reglamento del Sistema Nacional de Gestión del Riesgo de Desastre, numeral 30.5, Lima, Mayo del 2011)"]
[]
[null,"Indicador del servicio público:",{"$f":"+D129","v":"Población que será alertada con el SAT"}]
[]
[null,"Unidad de medida:","Población\n(personas/año)"]
[]
[null,"B. Determinación de la población demandante:"]
[]
[null,"Datos preliminares determinados lineas arriba:"]
[]
[null,"Año base:",null,{"$f":"+G129","v":0}]
[null,"Población demandante efectiva  año base:",null,{"$f":"+H129","v":0}]
[]
[null,"Datos adicionales:"]
[null,"Año cero (año en que se ejecutará el proyecto):",null,null," Nota: el año cero puede ser igual o mayor que el año base, pero no menor."]
[null,"Nº años entre año base y año cero:",null,{"$f":"D200-D196","v":0}]
[null,"Tasa de crecimiento intercensal (%):"]
[null,"Método de proyección:"]
[null,"Población demandante en año cero:",null,{"$f":"IF(D203=\"Geométrico\",D197*(1+D202)^D201,D197*(1+D202*D201))","v":0}]
[]
[null,"C. Estimación de la demanda: ",null,{"$f":"+D204","v":0}]
[null,"(para esta tipología de PIP la relación entre población y demanda se considera igual a la unidad (1.00), por lo tanto la población demandante es igual a la demanda."]
[null,"D. Proyección de la demanda:"]
[]
[null,"Servicio","Unidad de\nmedida","Año 0",1,2,3,4,5,6,7,8,9,10]
[null,null,null,{"$f":"+$D$200","v":0},{"$f":"+D211+1","v":1},{"$f":"+E211+1","v":2},3,4,5,6,7,8,9,10]
[null,{"$f":"+F49","v":"Alerta Temprana"},"Población\n(personas/año)",{"$f":"ROUND(D204,0)","v":0},{"$f":"IF($D$203=\"Geométrico\",$D$212*(1+$D$202)^E210,$D$212*(1+$D$202*E210))","v":0},{"$f":"IF($D$203=\"Geométrico\",$D$212*(1+$D$202)^F210,$D$212*(1+$D$202*F210))","v":0},0,0,0,0,0,0,0,0]
[]
[null,"Enunciar los principales parámetros y supuestos considerados para la proyección de la demanda (Considerar tasa de crecimiento y el área expuesta)"]
[]
[]
[]
[]
[]
[null,"Señalar las fuentes de información empleadas "]
[]
[]
[null,"C. Análisis de la oferta"]
[]
[null,"Servicio",{"$f":"+C210","v":"Unidad de\nmedida"},"Año 0",1,2,3,4,5,6,7,8,9,10]
[null,null,null,{"$f":"+D211","v":0},{"$f":"+E211","v":1},2,3,4,5,6,7,8,9,10]
[null,{"$f":"+B212","v":"Alerta Temprana"},{"$f":"IF(C212=\"\",\"\",C212)","v":"Población\n(personas/año)"}]
[]
[null,"Describir los factores de producción que determinan la oferta actual del servicio. Enunciar los principales parámetros y"]
[null,"supuestos considerados para la proyección de la oferta."]
[]
[]
[]
[]
[null,"Señalar las fuentes de información empleadas "]
[]
[]
[null,"D. Balance oferta demanda"]
[null,"Servicios con brecha",{"$f":"+C225","v":"Unidad de\nmedida"},{"$f":"+E225","v":1},2,3,4,5,6,7,8,9,10]
[null,{"$f":"+B227","v":"Alerta Temprana"},{"$f":"IF(C212=\"\",\"\",C212)","v":"Población\n(personas/año)"},{"$f":"IF(E227=\"\",\"\",E227-E212)","v":""},"","","","","","","","",""]
[]
[null,"3.3 ANÁLISIS TÉCNICO"]
[]
[null,"A. Análisis y selección de la localización"]
[]
[]
[]
[]
[]
[]
[]
[null,"B. Análisis y selección de la tecnología"]
[]
[]
[]
[]
[]
[]
[]
[null,"3.4 COSTOS DEL PROYECTO"]
[]
[null,"A. Costos de inversión"]
[]
[null,"DATOS PREVIOS:"]
[]
[null,null,null,null,null,"Unidades de Producción",null,"Capacidad de la Unidad\nde Producción",null,"Costo a Precio de Mercado (S/.)","Ejecucuión Física"]
[null,"Producto","Acciones",null,"Tipo de Item","Unidad de medida","Meta",{"$f":"+F267","v":"Unidad de medida"},{"$f":"+G267","v":"Meta"},null,"Fecha Inicio","Fecha Fin"]
[null,{"$f":"+B157","v":"PRODUCTO 1:\n\nSISTEMA DE ALERTA TEMPRANA Y DE COMUNICACIONES\nIMPLEMENTADA."},{"$f":"+D157","v":""}]
[null,null,{"$f":"IF(D158=\"\",\"\",D158)","v":""}]
[null,null,{"$f":"IF(E158=\"\",\"\",E158)","v":""}]
[null,null,{"$f":"IF(F158=\"\",\"\",F158)","v":""}]
[null,null,{"$f":"IF(G158=\"\",\"\",G158)","v":""}]
[null,null,{"$f":"IF(H158=\"\",\"\",H158)","v":""}]
[null,null,null,null,null,""]
[]
[]
[null,null,"Sub total",null,null,null,null,null,null,{"$f":"SUM(J269:J276)","v":0}]
[null,null,{"$f":"+D159","v":""}]
[null,null,{"$f":"IF(D160=\"\",\"\",D160)","v":""}]
[null,null,{"$f":"IF(E160=\"\",\"\",E160)","v":""}]
[null,null,{"$f":"IF(F160=\"\",\"\",F160)","v":""}]
[null,null,{"$f":"IF(G160=\"\",\"\",G160)","v":""}]
[null,null,{"$f":"IF(H160=\"\",\"\",H160)","v":""}]
[]
[]
[]
[null,null,"Sub total",null,null,null,null,null,null,{"$f":"SUM(J279:J286)","v":0}]
[null,null,{"$f":"+D161","v":""}]
[null,null,{"$f":"IF(D162=\"\",\"\",D162)","v":""}]
[null,null,{"$f":"IF(E162=\"\",\"\",E162)","v":""}]
[null,null,{"$f":"IF(F162=\"\",\"\",F162)","v":""}]
[null,null,{"$f":"IF(G162=\"\",\"\",G162)","v":""}]
[null,null,{"$f":"IF(H162=\"\",\"\",H162)","v":""}]
[]
[]
[]
[null,null,"Sub total",null,null,null,null,null,null,{"$f":"SUM(J289:J296)","v":0}]
[null,{"$f":"+B163","v":"PRODUCTO 2: \n\nPOBLACIÓN ENTRENADA FRENTE AL RIESGO DE DESASTRES."},{"$f":"+D163","v":""}]
[null,null,{"$f":"IF(D164=\"\",\"\",D164)","v":""}]
[null,null,{"$f":"IF(E164=\"\",\"\",E164)","v":""}]
[null,null,{"$f":"IF(F164=\"\",\"\",F164)","v":""}]
[null,null,{"$f":"IF(G164=\"\",\"\",G164)","v":""}]
[null,null,{"$f":"IF(H164=\"\",\"\",H164)","v":""}]
[]
[]
[]
[null,null,"Sub total",null,null,null,null,null,null,{"$f":"SUM(J299:J306)","v":0}]
[null,"Sub total (4 medios fundamentales)",null,null,null,null,null,null,null,{"$f":"+J307+J297+J287+J277","v":0}]
[null,"* Los gastos generales, utilidad e IGV, no son items y deberían formar parte de éstos cuando correspondan."]
[null,"** Incluye IGV."]
[null,"Nota: Debe presentarse en anexo el desagregado de los costos para cada medio fundamental y los costos indirectos (Expediente Técnico, Supervisión y Organización y Gestión)\n    "]
[]
[null,"A.5 RESUMEN DE LA INVERSIÓN TOTAL"]
[]
[null,"Detalle",null,null,null,null,null,"Costo parcial (S/.)"]
[null,{"$f":"+B268","v":"PRODUCTO 1:\n\nSISTEMA DE ALERTA TEMPRANA Y DE COMUNICACIONES\nIMPLEMENTADA."},null,null,null,null,null,{"$f":"+J277+J287+J297","v":0}]
[null,{"$f":"+B298","v":"PRODUCTO 2: \n\nPOBLACIÓN ENTRENADA FRENTE AL RIESGO DE DESASTRES."},null,null,null,null,null,{"$f":"+J307","v":0}]
[null,"Sub total (2 productos)",null,null,null,null,null,{"$f":"+H317+H316","v":0}]
[null,"GESTIÓN DEL PROYECTO***",null,null,null,null,{"$f":"IF($H$318>0,H319/$H$318,\"\")","v":""}]
[null,"EXPEDIENTE TECNICO",null,null,null,null,{"$f":"IF($H$318>0,H320/$H$318,\"\")","v":""}]
[null,"SUPERVISIÓN",null,null,null,null,""]
[null," Inversión Total del proyecto",null,null,null,null,null,{"$f":"SUM(H318:H321)","v":0}]
[null,"*** Dependiendo de la complejidad del proyecto"]
[]
[null,"Describir y fundamentar el tipo de fuente de información empleada y la metodología de estimación de costos. En caso se considere costos para la organización y gestión del proyecto, se deberá describir las principales actividades y recursos humanos que se emplearán:"]
[]
[]
[]
[null,"B. Cronograma de inversión"]
[]
[null,"Fecha prevista de inicio de ejecución (mes y año):"]
[]
[null,"Tiempo estimado de ejecución:"]
[]
[null,"Cronograma financiero  distribuido a nivel porcentual"]
[null,"ITEM","Costo estimado de inversión a precios de mercado\n (S/.)","Total",{"$f":"IF($E$333=\"Trimestres\",\"Trimestre 1\",IF($E$333= \"Semestres\",\"Semestre 1\", \"Mes 1\"))","v":"Mes 1"},{"$f":"IF($E$333=\"Trimestres\",\"Trimestre 2\",IF($E$333= \"Semestres\",\"Semestre 2\", \"Mes 2\"))","v":"Mes 2"},{"$f":"IF($E$333=\"Trimestres\",\"Trimestre 3\",IF($E$333= \"Semestres\",\"Semestre 3\", \"Mes 3\"))","v":"Mes 3"},{"$f":"IF($E$333=\"Trimestres\",\"Trimestre 4\",IF($E$333= \"Semestres\",\"Semestre 4\", \"Mes 4\"))","v":"Mes 4"},{"$f":"IF($E$333=\"Trimestres\",\"Trimestre 5\",IF($E$333= \"Semestres\",\"Semestre 5\", \"Mes 5\"))","v":"Mes 5"},{"$f":"IF($E$333=\"Trimestres\",\"Trimestre 6\",IF($E$333= \"Semestres\",\"Semestre 6\", \"Mes 6\"))","v":"Mes 6"},{"$f":"IF($E$333=\"Trimestres\",\"Trimestre 7\",IF($E$333= \"Semestres\",\"Semestre 7\", \"Mes 7\"))","v":"Mes 7"},{"$f":"IF($E$333=\"Trimestres\",\"Trimestre 8\",IF($E$333= \"Semestres\",\"Semestre 8\", \"Mes 8\"))","v":"Mes 8"},{"$f":"IF($E$333=\"Trimestres\",\"Trimestre 9\",IF($E$333= \"Semestres\",\"Semestre 9\", \"Mes 9\"))","v":"Mes 9"},{"$f":"IF($E$333=\"Trimestres\",\"Trimestre 10\",IF($E$333= \"Semestres\",\"Semestre 10\", \"Mes 10\"))","v":"Mes 10"},{"$f":"IF($E$333=\"Trimestres\",\"Trimestre 11\",IF($E$333= \"Semestres\",\"Semestre 11\", \"Mes 11\"))","v":"Mes 11"},{"$f":"IF($E$333=\"Trimestres\",\"Trimestre 12\",IF($E$333= \"Semestres\",\"Semestre 12\", \"Mes 12\"))","v":"Mes 12"}]
[null,null,null,"(%)","(%)","(%)","(%)","(%)","(%)","(%)","(%)","(%)","(%)","(%)","(%)","(%)"]
[null,"INFRAESTRUCTURA*",{"$f":"SUMIF($E$269:$E$308,B338,$J$269:$J$308)","v":0},{"$f":"SUM(E338:P338)","v":0}]
[null,"EQUIPAMIENTO*",0,{"$f":"SUM(E339:P339)","v":0}]
[null,"MOBILIARIO*",0,0]
[null,"VEHÍCULO*",0,0]
[null,"TERRENOS*",0,0]
[null,"TERRENOS (EXPROPIACIÓN)",0,0]
[null,"INTANGIBLES**",0,{"$f":"SUM(E344:P344)","v":0}]
[null,"INFRAESTRUCTURA NATURAL",0,0]
[null,"OTROS",0,{"$f":"SUM(E346:P346)","v":0}]
[null,{"$f":"+B319","v":"GESTIÓN DEL PROYECTO***"},{"$f":"+H319","v":0},0]
[null,{"$f":"+B320","v":"EXPEDIENTE TECNICO"},{"$f":"+H320","v":0},{"$f":"SUM(E348:P348)","v":0}]
[null,{"$f":"+B321","v":"SUPERVISIÓN"},{"$f":"+H321","v":0},0]
[null,"TOTAL",{"$f":"SUM(C338:C349)","v":0}]
[]
[null,"Cronograma financiero de la inversión"]
[null,"ITEM","Costo estimado de inversión a precios de mercado (Soles)",{"$f":"IF($E$333=\"Trimestres\",\"Trimestre 1\",IF($E$333= \"Semestres\",\"Semestre 1\", \"Mes 1\"))","v":"Mes 1"},{"$f":"IF($E$333=\"Trimestres\",\"Trimestre 2\",IF($E$333= \"Semestres\",\"Semestre 2\", \"Mes 2\"))","v":"Mes 2"},{"$f":"IF($E$333=\"Trimestres\",\"Trimestre 3\",IF($E$333= \"Semestres\",\"Semestre 3\", \"Mes 3\"))","v":"Mes 3"},{"$f":"IF($E$333=\"Trimestres\",\"Trimestre 4\",IF($E$333= \"Semestres\",\"Semestre 4\", \"Mes 4\"))","v":"Mes 4"},{"$f":"IF($E$333=\"Trimestres\",\"Trimestre 5\",IF($E$333= \"Semestres\",\"Semestre 5\", \"Mes 5\"))","v":"Mes 5"},{"$f":"IF($E$333=\"Trimestres\",\"Trimestre 6\",IF($E$333= \"Semestres\",\"Semestre 6\", \"Mes 6\"))","v":"Mes 6"},{"$f":"IF($E$333=\"Trimestres\",\"Trimestre 7\",IF($E$333= \"Semestres\",\"Semestre 7\", \"Mes 7\"))","v":"Mes 7"},{"$f":"IF($E$333=\"Trimestres\",\"Trimestre 8\",IF($E$333= \"Semestres\",\"Semestre 8\", \"Mes 8\"))","v":"Mes 8"},{"$f":"IF($E$333=\"Trimestres\",\"Trimestre 9\",IF($E$333= \"Semestres\",\"Semestre 9\", \"Mes 9\"))","v":"Mes 9"},{"$f":"IF($E$333=\"Trimestres\",\"Trimestre 10\",IF($E$333= \"Semestres\",\"Semestre 10\", \"Mes 10\"))","v":"Mes 10"},{"$f":"IF($E$333=\"Trimestres\",\"Trimestre 11\",IF($E$333= \"Semestres\",\"Semestre 11\", \"Mes 11\"))","v":"Mes 11"},{"$f":"IF($E$333=\"Trimestres\",\"Trimestre 12\",IF($E$333= \"Semestres\",\"Semestre 12\", \"Mes 12\"))","v":"Mes 12"}]
[null,null,null,"(S/.)","(S/.)","(S/.)","(S/.)","(S/.)","(S/.)","(S/.)","(S/.)","(S/.)","(S/.)","(S/.)","(S/.)"]
[null,{"$f":"+B338","v":"INFRAESTRUCTURA*"},{"$f":"+C338","v":0},{"$f":"IF(E338>0,$C$355*E338,\"\")","v":""},{"$f":"IF(F338>0,$C$355*F338,\"\")","v":""},"","","","","","","","","",""]
[null,{"$f":"+B339","v":"EQUIPAMIENTO*"},{"$f":"+C339","v":0},{"$f":"IF(E339>0,$C$356*E339,\"\")","v":""},{"$f":"IF(F339>0,$C$356*F339,\"\")","v":""},"","","","","","","","","",""]
[null,"MOBILIARIO*",{"$f":"+C340","v":0},{"$f":"IF(E340>0,$C$357*E340,\"\")","v":""},{"$f":"IF(F340>0,$C$357*F340,\"\")","v":""},"","","","","","","","","",""]
[null,"VEHÍCULO*",{"$f":"+C341","v":0},{"$f":"IF(E341>0,$C$358*E341,\"\")","v":""},{"$f":"IF(F341>0,$C$358*F341,\"\")","v":""},"","","","","","","","","",""]
[null,"TERRENOS*",{"$f":"+C342","v":0},{"$f":"IF(E342>0,$C$359*E342,\"\")","v":""},{"$f":"IF(F342>0,$C$359*F342,\"\")","v":""},"","","","","","","","","",""]
[null,"TERRENOS (EXPROPIACIÓN)",{"$f":"+C343","v":0},{"$f":"IF(E343>0,$C$360*E343,\"\")","v":""},{"$f":"IF(F343>0,$C$360*F343,\"\")","v":""},"","","","","","","","","",""]
[null,"INTANGIBLES**",{"$f":"+C344","v":0},{"$f":"IF(E344>0,$C$361*E344,\"\")","v":""},{"$f":"IF(F344>0,$C$361*F344,\"\")","v":""},"","","","","","","","","",""]
[null,"INFRAESTRUCTURA NATURAL",{"$f":"+C345","v":0},{"$f":"IF(E345>0,$C$362*E345,\"\")","v":""},{"$f":"IF(F345>0,$C$362*F345,\"\")","v":""},"","","","","","","","","",""]
[null,"OTROS",{"$f":"+C346","v":0},{"$f":"IF(E346>0,$C$363*E346,\"\")","v":""},{"$f":"IF(F346>0,$C$363*F346,\"\")","v":""},"","","","","","","","","",""]
[null,"GESTIÓN DEL PROYECTO***",{"$f":"+C347","v":0},{"$f":"IF(E347>0,$C$364*E347,\"\")","v":""},{"$f":"IF(F347>0,$C$364*F347,\"\")","v":""},"","","","","","","","","",""]
[null,"EXPEDIENTE TECNICO",{"$f":"+C348","v":0},{"$f":"IF(E348>0,$C$365*E348,\"\")","v":""},{"$f":"IF(F348>0,$C$365*F348,\"\")","v":""},"","","","","","","","","",""]
[null,"SUPERVISIÓN",{"$f":"+C349","v":0},{"$f":"IF(E349>0,$C$366*E349,\"\")","v":""},{"$f":"IF(F349>0,$C$366*F349,\"\")","v":""},"","","","","","","","","",""]
[null,"TOTAL",{"$f":"SUM(D367:O367)","v":0},{"$f":"SUM(D355:D366)","v":0},{"$f":"SUM(E355:E366)","v":0},{"$f":"SUM(F355:F366)","v":0},0,0,0,0,0,0,0,0,0]
[]
[null,null,null,{"$f":"IF(C367-C350=0,\"ok\",\"ERROR\")","v":"ok"}]
[]
[null,"C. Costos de inversión financiados con recursos públicos:"]
[]
[null,"¿El proyecto tiene aporte de los beneficiarios?"]
[]
[null,"Monto de inversión financiados con recursos públicos (S/.):"]
[]
[null,"Aporte de los beneficiarios (S/.):"]
[]
[null,"D. Cronograma de metas físicas"]
[]
[null,{"$f":"+B336","v":"ITEM"},"UNIDAD DE MEDIDA\nREPRESENTATIVA","Sub total",{"$f":"+E336","v":"Mes 1"},"Mes 2","Mes 3",{"$f":"+H336","v":"Mes 4"},"Mes 5","Mes 6","Mes 7","Mes 8","Mes 9","Mes 10","Mes 11","Mes 12"]
[null,null,null,null,"Meta","Meta","Meta","Meta","Meta","Meta","Meta","Meta","Meta","Meta","Meta","Meta"]
[null,{"$f":"+B338","v":"INFRAESTRUCTURA*"},null,{"$f":"SUM(E383:P383)","v":0}]
[null,"EQUIPAMIENTO*",null,{"$f":"SUM(E384:P384)","v":0}]
[null,"MOBILIARIO*",null,0]
[null,"VEHÍCULO*",null,0]
[null,"TERRENOS*",null,0]
[null,"TERRENOS (EXPROPIACIÓN)",null,0]
[null,"INTANGIBLES**",null,0]
[null,"INFRAESTRUCTURA NATURAL",null,0]
[null,{"$f":"+B347","v":"GESTIÓN DEL PROYECTO***"},null,0]
[null,{"$f":"+B348","v":"EXPEDIENTE TECNICO"},null,0]
[null,{"$f":"+B349","v":"SUPERVISIÓN"},null,0]
[]
[]
[null,"E. Costos de operación y mantenimiento con y sin proyecto"]
[]
[null,"COSTOS DE OPERACIÓN Y MANTENIMIENTO",null,"AÑOS (Soles)"]
[null,null,null,1,2,3,4,5,6,7,8,9,10]
[null,"SIN PROYECTO","Operación"]
[null,null,"Mantenimiento"]
[null,null,"Total",{"$f":"+D400+D401","v":0},{"$f":"+E400+E401","v":0},{"$f":"+F400+F401","v":0},0,0,0,0,0,0,0]
[null,"CON PROYECTO",{"$f":"+C400","v":"Operación"}]
[null,null,{"$f":"+C401","v":"Mantenimiento"}]
[null,null,{"$f":"+C402","v":"Total"},{"$f":"+D404+D403","v":0},{"$f":"+E404+E403","v":0},{"$f":"+F404+F403","v":0},0,0,0,0,0,0,0]
[null,"INCREMENTAL","OPERACIÓN",{"$f":"+D403-D400","v":0},{"$f":"+E403-E400","v":0},0,0,0,0,0,0,0,0]
[null,null,"MANTENIMIENTO",{"$f":"+D404-D401","v":0},0,0,0,0,0,0,0,0,0]
[null,null,"TOTAL",0,0,0,0,0,0,0,0,0,0]
[]
[null,"F. Costo de inversión por beneficiario directo (a precios privados) (S/.):",null,null,{"$f":"IF(E416>0,H322/E416,\"\")","v":""}]
[]
[null,"3.5  CRITERIOS DE DECISIÓN DE INVERSIÓN"]
[null,"* Adjuntar planilla electrónica que muestre los cálculos realizados (Archivo excel)."]
[]
[null,"Tipo","Criterio de elección*",null,"Alternativa Única"]
[null,"Costo / Eficiencia","Población directamente beneficiada:",null,{"$f":"+(D212+N212)/2","v":0}]
[null,null,"Valor Actual de los Costos (VAC)"]
[null,null,"Costo eficiencia",null,{"$f":"IF(E417>0,E417/E416,\"\")","v":""}]
[null,"*En función a la tipología del proyecto de inversión se definirá cuál es el criterio de elección costo/eficiencia más conveniente."]
[]
[null,"3.6 SOSTENIBILIDAD"]
[null,"A.  Responsable de la operación y mantenimiento del proyecto"]
[]
[]
[null,"B. ¿Es la Unidad Ejecutora de Inversiones la responsable de la Operación y Mantenimiento del proyecto de inversión con cargo a su Presupuesto Institucional?",null,null,null,null,null,null,"No"]
[]
[null,"Documentos que sustentan los acuerdos institucionales u otros que garantizan el financiamiento de los gastos de operación y mantenimiento","Documento",null,"Entidad / Organización",null,"Compromiso asumido y suscrito"]
[]
[]
[]
[]
[null,"C.  ¿El área donde se ubica el proyecto ha sido afectada por algún desastre?"]
[]
[null,"Peligro identificado",null,"Medida de mitigación"]
[]
[]
[]
[]
[]
[]
[null,"3.7 MODALIDAD DE EJECUCIÓN"]
[]
[null,"A. Modalidad de ejecución:"]
[]
[]
[null,"3.8 IMPACTO AMBIENTAL"]
[]
[null,"IMPACTOS NEGATIVOS",null,null,"MEDIDAS DE MITIGACIÓN",null,null,"COSTO (S/)"]
[]
[]
[]
[]
[null,"3.9 CONCLUSIONES Y RECOMENDACIONES"]
[]
[null,"A. Conclusiones"]
[]
[]
[null,"B. Recomendaciones"]
[]
[]
[null,"3.10 ANEXOS"]
[]
[null,"1. Croquis de ubicación del proyecto."]
[null,"2. Panel fotográfico"]
[null,"3. Proyecciones de la Demanda y Oferta"]
[null,"4. Desagregado de los Costos Indirectos"]
[null,"5. Sustemto / cálculo de la tasa de crecimiento."]
[null,"6. Otros: …."]
[]
[null,"3.11 FIRMAS"]
[]
[]
[null,null,"Responsable de la formulación del proyecto",null,null,null,null,null,null,"Responsable de la Unidad Formuladora"]

{"sheet":"Fuente","index":1,"n_rows":32,"n_cols":3,"rows_kept":32,"cut":false,"hidden":false,"merged":[[31,2,31,9],[29,2,29,9],[19,2,19,7],[17,2,17,7],[13,2,13,7],[23,2,23,9],[5,2,5,7],[15,2,16,9],[21,2,21,9],[11,2,11,7],[7,2,7,7]]}
[]
[null,"FUENTES PRINCIPALES PARA EL DIAGNOSTICO DEL AREA AFECTADA"]
[]
["Item: A:","Para datos de localización se sugiere la siguiente fuente:"]
[]
[null,"Página web INEI:","http://webinei.inei.gob.pe:8080/sisconcode/publico.htm"]
[]
[null,"Coordenadas UTM y WGS 84:","http://b5m.gipuzkoa.eus/web5000/es/busqueda-tematica/coordenadas/"]
[]
["Item: 2.1:","Para describir el  escenario de riesgo  se sugiere las siguientes fuentes:"]
[]
[null,"Página web CENEPRED:","http://www.cenepred.gob.pe/web/"]
[]
[null,"Página web SENAMHI:","http://www.senamhi.gob.pe/?p=situacion-hidrologica-nacional"]
[]
[null,"Página web INGEMMED:","http://www.ingemmet.gob.pe/zonas-criticas-por-peligro-geologico"]
[]
[null,"Página web ANA (Desastres):","http://snirh.ana.gob.pe/visordesastre/"]
[]
[null,"Página web ANA (Cuencas):","http://snirh.ana.gob.pe/visorSadho/"]
[]
[null,"Página web MINEDU:","http://escale.minedu.gob.pe/web/inicio/padron-de-iiee;jsessionid=afb614d4170c9345cd97885bff64"]
[]
[null,"SINPAD - INDECI:","http://sinpad.indeci.gob.pe/PortalSINPAD/"]
[]
["Item: 3.2:","Estudio de mercado del servicio público:"]
[]
[null,"B. Determinación de la población demandante:"]
[]
[null,"INEI - Censos 1993 y 2007:","http://www.inei.gob.pe/estadisticas/censos/"]
[]
[null,"INE - Proyecciones al 2015: ","http://proyectos.inei.gob.pe/web/biblioineipub/bancopub/Est/Lib0842/index.htm"]

{"sheet":"Datos","index":2,"n_rows":251,"n_cols":13,"rows_kept":251,"cut":false,"hidden":true,"merged":[[64,2,68,2],[79,2,80,2],[74,2,78,2],[59,2,63,2],[69,2,73,2]]}
[]
[null,"Nº","Servicio","Indicadores ( PMI )"]
[null,1,"Alerta temprana","% de  localidades  de la costa peruana que no cuentan con sistema de alerta temprana"]
[null,2,"Gestión de información sobre peligros y desastres","% de  funcionarios de gobiernos regionales y locales con deficiente manejo de la  información sobre peligros y desastres"]
[null,3,"Recuperación de Unidades productoras (UP) de Preparación y Respuesta del INDECI","% de   Servicios  de Preparación y Respuesta  del INDECI  que  se encuentran operando con limitaciones."]
[]
[]
[null,"Nº","NATURALEZA"]
[null,1,"Creación"]
[null,2,"Ampliación"]
[null,3,"Recuperación"]
[null,4,"Mejoramiento"]
[null,5,"Ampliación y mejoramiento"]
[]
[null,"Nº","Sector"]
[null,1,"Gobiernos locales"]
[null,2,"Gobierno regional"]
[null,3,"Gobierno nacional"]
[]
[]
[]
[]
[]
[null,"Nº","OBJETO"]
[null,1,"Servicio de alerta temprana"]
[null,2,"Servicio de gestión de información sobre peligros y desastres"]
[null,3,"Servicio de recuperación de Unidades productoras (UP) de Preparación y Respuesta del INDECI"]
[]
[]
[null,"Nº","Zona"]
[null,1,"Urbana"]
[null,2,"Rural"]
[]
[null,"Nº","Región"]
[null,1,"Costa"]
[null,2,"Sierra"]
[null,3,"Selva"]
[]
[null,null,"Peligros elegidos:"]
[null,1,{"$f":"+'FICHA SIMPLIFICADA-SAT'!D37","v":0}]
[null,2,{"$f":"+'FICHA SIMPLIFICADA-SAT'!D39","v":0}]
[null,null,{"$f":"IF(C41=\"Incendios\",\"e\",\"y\")","v":"y"}]
[]
[null,1,"Naturaleza","Creación","Ampliación","Recuperación","Mejoramiento","Ampliación y mejoramiento"]
[null,2,"Problema central",{"$f":"IF('FICHA SIMPLIFICADA-SAT'!D35=\"Uno\",CONCATENATE(\"Poblacion expuesta ante riesgo de \",C40,\" no accede a servicios de alerta temprana\"),CONCATENATE(\"Poblacion expuesta ante riesgo de \",C40,\" \",C42,\" \",C41,\" no accede a servicios de alerta temprana\"))","v":"Poblacion expuesta ante riesgo de 0 y 0 no accede a servicios de alerta temprana"},{"$f":"+D45","v":"Poblacion expuesta ante riesgo de 0 y 0 no accede a servicios de alerta temprana"},{"$f":"IF('FICHA SIMPLIFICADA-SAT'!D35=\"Uno\",CONCATENATE(\"Poblacion expuesta ante riesgo de \",C40,\" no accede a servicios adecuados de alerta temprana\"),CONCATENATE(\"Poblacion expuesta ante riesgo de \",C40,\" \",C42,\" \",C41,\" no accede a servicios adecuados de alerta temprana\"))","v":"Poblacion expuesta ante riesgo de 0 y 0 no accede a servicios adecuados de alerta temprana"},{"$f":"+F45","v":"Poblacion expuesta ante riesgo de 0 y 0 no accede a servicios adecuados de alerta temprana"},{"$f":"+G45","v":"Poblacion expuesta ante riesgo de 0 y 0 no accede a servicios adecuados de alerta temprana"}]
[null,3,"Causa directa 1","CD 1: Limitada disponibilidad de información oportuna y fiable sobre el peligro con base cientifica, técnica y solida.","CD 1: Limitada disponibilidad de información oportuna y fiable sobre el peligro con base cientifica, técnica y solida.","CD 1: Escasa disponibilidad de información oportuna y fiable sobre el peligro con base cientifica, técnica y solida.","CD 1: Escasa disponibilidad de información oportuna y fiable sobre el peligro con base cientifica, técnica y solida.","CD 1: Escasa e inadecuada disponibilidad de información oportuna y fiable sobre el peligro con base cientifica, técnica y solida."]
[null,4,"Causa directa 2","CD 2: Limitadas condiciones para la preparación y respuesta ante riesgo de desastres.","CD 2: Limitadas condiciones para la preparación y respuesta ante riesgo de desastres.","CD 2: Inadecuadas condiciones para la preparación y respuesta ante riesgo de desastres.","CD 2: Inadecuadas condiciones para la preparación y respuesta ante riesgo de desastres.","CD 2: Inadecuadas condiciones para la preparación y respuesta ante riesgo de desastres."]
[null,5,"Causa indirecta 1.1","1.1 CI: Insuficiente capacidad para el conocimiento y vigilancia permanente de los peligros. ","1.1 CI: Insuficiente capacidad para el conocimiento y vigilancia permanente de los peligros. ","1.1 CI: Deficiente capacidad para el conocimiento y vigilancia permanente de los peligros. ","1.1 CI: Deficiente capacidad para el conocimiento y vigilancia permanente de los peligros. ","1.1 CI: Limitada y deficiente capacidad para el conocimiento y vigilancia permanente de los peligros. "]
[null,6,"Causa indirecta 1.2","1.2 CI: Escasas capacidades para el monitoreo y seguimiento de los peligros.","1.2 CI: Escasas capacidades para el monitoreo y seguimiento de los peligros.","1.2 CI: Inadecuadas capacidades para el monitoreo y seguimiento de los peligros.","1.2 CI: Inadecuadas capacidades para el monitoreo y seguimiento de los peligros.","1.2 CI: Escasas e inadecuadas capacidades para el monitoreo y seguimiento de los peligros."]
[null,7,"Causa indirecta 2.1","2.1 CI: Limitados mecanismos para la alerta y comunicación de los peligros.","2.1 CI: Limitados mecanismos para la alerta y comunicación de los peligros.","2.1 CI: Inadecuados mecanismos para la alerta y comunicación de los peligros.","2.1 CI: Inadecuados mecanismos para la alerta y comunicación de los peligros.","2.1 CI: Inadecuados e insuficientes mecanismos para la alerta y comunicación de los peligros."]
[null,8,"Causa indirecta 2.2","2.2 CI: Población con escasas capacidades para la respuesta ante la ocurrencia de  desastres.","2.2 CI: Población con escasas capacidades para la respuesta ante la ocurrencia de  desastres.","2.2 CI: Población con escasas capacidades para la respuesta ante la ocurrencia de  desastres.","2.2 CI: Población con escasas capacidades para la respuesta ante la ocurrencia de  desastres.","2.2 CI: Población con escasas capacidades para la respuesta ante la ocurrencia de  desastres."]
[null,9,"Objetivo central",{"$f":"IF('FICHA SIMPLIFICADA-SAT'!D35=\"Uno\",CONCATENATE(\"Poblacion expuesta ante riesgo de \",C40,\" accede a servicios de alerta temprana\"),CONCATENATE(\"Poblacion expuesta ante riesgo de \",C40,\" \",C42,\" \",C41,\" accede a servicios de alerta temprana\"))","v":"Poblacion expuesta ante riesgo de 0 y 0 accede a servicios de alerta temprana"},{"$f":"+D52","v":"Poblacion expuesta ante riesgo de 0 y 0 accede a servicios de alerta temprana"},{"$f":"IF('FICHA SIMPLIFICADA-SAT'!D35=\"Uno\",CONCATENATE(\"Poblacion expuesta ante riesgo de \",C40,\" no accede a servicios adecuados de alerta temprana\"),CONCATENATE(\"Poblacion expuesta ante riesgo de \",C40,\" \",C42,\" \",C41,\" no accede a servicios adecuados de alerta temprana\"))","v":"Poblacion expuesta ante riesgo de 0 y 0 no accede a servicios adecuados de alerta temprana"},{"$f":"+F52","v":"Poblacion expuesta ante riesgo de 0 y 0 no accede a servicios adecuados de alerta temprana"},{"$f":"+G52","v":"Poblacion expuesta ante riesgo de 0 y 0 no accede a servicios adecuados de alerta temprana"}]
[null,10,"Indicador del O. C."]
[null,11,"Medio de primer nivel 1","Disponibilidad de información oportuna y fiable sobre el peligro con base cientifica, técnica y solida.","Disponibilidad de información oportuna y fiable sobre el peligro con base cientifica, técnica y solida.","Disponibilidad de información oportuna y fiable sobre el peligro con base cientifica, técnica y solida.","Disponibilidad de información oportuna y fiable sobre el peligro con base cientifica, técnica y solida.","Suficientes y  adecuada disponibilidad de información oportuna y fiable sobre el peligro con base cientifica, técnica y solida."]
[null,12,"Medio de primer nivel 2","Suficientes condiciones para la preparación y respuesta ante riesgo de desastres.","Suficientes condiciones para la preparación y respuesta ante riesgo de desastres.","Adecuadas condiciones para la preparación y respuesta ante riesgo de desastres.","Adecuadas condiciones para la preparación y respuesta ante riesgo de desastres.","Adecuadas condiciones para la preparación y respuesta ante riesgo de desastres."]
[null,13,"Medio fundamental 1","MF 1: Suficientes capacidad para el conocimiento y vigilancia permanente de los peligros. ","MF 1: Suficientes capacidad para el conocimiento y vigilancia permanente de los peligros. ","MF 1: Capacidad para el conocimiento y vigilancia permanente de los peligros. ","MF 1: Capacidad para el conocimiento y vigilancia permanente de los peligros. ","MF 1: Fortalecida capacidad para el conocimiento y vigilancia permanente de los peligros. "]
[null,14,"Medio fundamental 2","MF 2: Fortalecidas capacidades para el monitoreo y seguimiento de los peligros.","MF 2: Fortalecidas capacidades para el monitoreo y seguimiento de los peligros.","MF 2: Adecuadas capacidades para el monitoreo y seguimiento de los peligros.","MF 2: Adecuadas capacidades para el monitoreo y seguimiento de los peligros.","MF 2: Adecuadas capacidades para el monitoreo y seguimiento de los peligros."]
[null,15,"Medio fundamental 3","MF 3: Suficientes mecanismos para la alerta y comunicación de los peligros.","MF 3: Suficientes mecanismos para la alerta y comunicación de los peligros.","MF 3: Adecuados mecanismos para la alerta y comunicación de los peligros.","MF 3: Adecuados mecanismos para la alerta y comunicación de los peligros.","MF 3: Adecuados y suficientes mecanismos para la alerta y comunicación de los peligros."]
[null,16,"Medio fundamental 4","MF 4: Población con capacidades fortalecidas para la respuesta ante la ocurrencia de  desastres.","MF 4: Población con capacidades fortalecidas para la respuesta ante la ocurrencia de  desastres.","MF 4: Población con capacidades para la respuesta ante la ocurrencia de  desastres.","MF 4: Población con capacidades para la respuesta ante la ocurrencia de  desastres.","MF 4: Población con fortalecidas capacidades para la respuesta ante la ocurrencia de  desastres.",null,{"$f":"'FICHA SIMPLIFICADA-SAT'!B55","v":0},null,{"$f":"+'FICHA SIMPLIFICADA-SAT'!D37","v":0},{"$f":"+'FICHA SIMPLIFICADA-SAT'!D39","v":0}]
[null,17,"Acciones MF 1","Implementación de instrumentos de medición de datos",{"$f":"IF(D60=\"\",\"\",D60)","v":"Implementación de instrumentos de medición de datos"},"Reparación de instrumentos de medición de datos",{"$f":"IF(F60=\"\",\"\",F60)","v":"Reparación de instrumentos de medición de datos"},"Implementación de instrumentos (a nivel comunitario) de medición de datos",null,{"$f":"IFERROR(HLOOKUP($J$59,$D$44:$H$79,B60,FALSE),\"\")","v":""},null,{"$f":"IF(J60=\"No aplica\",\"\",CONCATENATE(J60, \" para \",$L$59))","v":" para 0"},{"$f":"IF(J60=\"No aplica\",\"\",CONCATENATE(J60, \" para \",$M$59))","v":" para 0"}]
[null,18,null,"Construcción de infraestructura para la vigilancia",{"$f":"IF(D61=\"\",\"\",D61)","v":"Construcción de infraestructura para la vigilancia"},"Reconstrucción de infraestructura para la vigilancia","Reconstrucción de infraestructura para la vigilancia","Construcción de infraestructura para la vigilancia",null,"",null,{"$f":"IF(J61=\"No aplica\",\"\",CONCATENATE(J61, \" para \",$L$59))","v":" para 0"},{"$f":"IF(J61=\"No aplica\",\"\",CONCATENATE(J61, \" para \",$M$59))","v":" para 0"}]
[null,19,null,"Estudios para el conocimiento del riesgo y elaboración de mapas de riesgo",{"$f":"+D62","v":"Estudios para el conocimiento del riesgo y elaboración de mapas de riesgo"},{"$f":"+E62","v":"Estudios para el conocimiento del riesgo y elaboración de mapas de riesgo"},"Estudios para el conocimiento del riesgo y elaboración de mapas de riesgo","Estudios para el conocimiento del riesgo y elaboración de mapas de riesgo",null,"",null,{"$f":"IF(J62=\"No aplica\",\"\",CONCATENATE(J62, \" para \",$L$59))","v":" para 0"},{"$f":"IF(J62=\"No aplica\",\"\",CONCATENATE(J62, \" para \",$M$59))","v":" para 0"}]
[null,20,null,"No Aplica",{"$f":"+D63","v":"No Aplica"},{"$f":"+E63","v":"No Aplica"},"No Aplica","No Aplica",null,"",null,{"$f":"IF(J63=\"No aplica\",\"\",CONCATENATE(J63, \" para \",$L$59))","v":" para 0"},{"$f":"IF(J63=\"No aplica\",\"\",CONCATENATE(J63, \" para \",$M$59))","v":" para 0"}]
[null,21,null,"No Aplica",{"$f":"IF(D64=\"\",\"\",D64)","v":"No Aplica"},{"$f":"IF(E64=\"\",\"\",E64)","v":"No Aplica"},{"$f":"IF(F64=\"\",\"\",F64)","v":"No Aplica"},{"$f":"IF(G64=\"\",\"\",G64)","v":"No Aplica"},null,"",null,{"$f":"IF(J64=\"No aplica\",\"\",CONCATENATE(J64, \" para \",$L$59))","v":" para 0"},{"$f":"IF(J64=\"No aplica\",\"\",CONCATENATE(J64, \" para \",$M$59))","v":" para 0"}]
[null,22,"Acciones MF 2","Implementación de procedimientos de monitoreo y seguimiento",{"$f":"IF(D65=\"\",\"\",D65)","v":"Implementación de procedimientos de monitoreo y seguimiento"},"Implementación de procedimientos de monitoreo y seguimiento","Implementación de procedimientos de monitoreo y seguimiento",{"$f":"+G65","v":"Implementación de procedimientos de monitoreo y seguimiento"},null,""]
[null,23,null,"Formación y desarrollo de capacidades de los vigías voluntarios para el monitoreo.","Formación y desarrollo de capacidades de los vigías voluntarios para el monitoreo.","Fortalecer capacidades de los vigias voluntarios para el monitoreo.","Fortalecer capacidades de los vigias voluntarios para el monitoreo.",{"$f":"+G66","v":"Fortalecer capacidades de los vigias voluntarios para el monitoreo."},null,""]
[null,24,null,"Funcionarios y técnicos del gobierno local capacitados y sensibilizados","Funcionarios y técnicos del gobierno local capacitados y sensibilizados","Funcionarios y técnicos del gobierno local capacitados y sensibilizados","Funcionarios y técnicos del gobierno local capacitados y sensibilizados","Funcionarios y técnicos del gobierno local capacitados y sensibilizados",null,""]
[null,25,null,"Implementación de materiales  de escritorio básicos para los vigías voluntarios","Implementación de materiales  de escritorio básicos para los vigías voluntarios","Implementación de materiales de escritorio básicos para los vigías voluntarios","Implementación de materiales de escritorio básicos para los vigías voluntarios",{"$f":"+G68","v":"Implementación de materiales de escritorio básicos para los vigías voluntarios"},null,""]
[null,26,null,"Conformación y capacitación de equipos de trabajo en cordinación con el COE local  conforme a procedimiento de SAT - COM","Conformación y capacitación de equipos de trabajo en cordinación con el COE local  conforme a procedimiento de SAT - COM","Conformación y capacitación de equipos de trabajo en cordinación con el COE local  conforme a procedimiento de SAT - COM","Conformación y capacitación de equipos de trabajo en cordinación con el COE local  conforme a procedimiento de SAT - COM",{"$f":"+G69","v":"Conformación y capacitación de equipos de trabajo en cordinación con el COE local  conforme a procedimiento de SAT - COM"},null,""]
[null,27,"Acciones MF 3","Socialización con la población sobre los mecanismos para difusión de la alerta y alarma tomando en cuenta el factor cultural.","Socialización con la población sobre los mecanismos para difusión de la alerta y alarma tomando en cuenta el factor cultural.",{"$f":"+E70","v":"Socialización con la población sobre los mecanismos para difusión de la alerta y alarma tomando en cuenta el factor cultural."},"Socialización con la población sobre los mecanismos para difusión de la alerta y alarma tomando en cuenta el factor cultural.",{"$f":"+G70","v":"Socialización con la población sobre los mecanismos para difusión de la alerta y alarma tomando en cuenta el factor cultural."},null,""]
[null,28,null,"Elaboración de procedimientos para la declaratoria de alarma y alerta.",{"$f":"IF(D71=\"\",\"\",D71)","v":"Elaboración de procedimientos para la declaratoria de alarma y alerta."},"Elaboración de procedimientos para la declaratoria de alarma y alerta.",{"$f":"IF(F71=\"\",\"\",F71)","v":"Elaboración de procedimientos para la declaratoria de alarma y alerta."},"Elaboración de procedimientos para la declaratoria de alarma y alerta.",null,""]
[null,29,null,"Adquisición e implementación de equipos para la alerta, alarma y comunicación.",{"$f":"IF(D72=\"\",\"\",D72)","v":"Adquisición e implementación de equipos para la alerta, alarma y comunicación."},"Adquisición e implementación de equipos para la alerta, alarma y comunicación.",{"$f":"IF(F72=\"\",\"\",F72)","v":"Adquisición e implementación de equipos para la alerta, alarma y comunicación."},"Adquisición e implementación de equipos para la alerta, alarma y comunicación.",null,""]
[null,30,null,"No Aplica",{"$f":"IF(D73=\"\",\"\",D73)","v":"No Aplica"},"No Aplica",{"$f":"IF(F73=\"\",\"\",F73)","v":"No Aplica"},"No Aplica",null,""]
[null,31,null,"No Aplica","No Aplica","No Aplica",{"$f":"IF(F74=\"\",\"\",F74)","v":"No Aplica"},"No Aplica",null,""]
[null,32,"Acciones MF 4","Identificación y señalización de rutas de evacuación y zonas de seguridad (puntos de reunión)",{"$f":"IF(D75=\"\",\"\",D75)","v":"Identificación y señalización de rutas de evacuación y zonas de seguridad (puntos de reunión)"},"Mejora de rutas de evacuación y zonas de seguridad (puntos de reunión)",{"$f":"IF(F75=\"\",\"\",F75)","v":"Mejora de rutas de evacuación y zonas de seguridad (puntos de reunión)"},"Implementación y mejora de rutas de evacuación y zonas de seguridad (puntos de reunión)",null,""]
[null,33,null,"Elaboración de plan de evacuación.",{"$f":"+D76","v":"Elaboración de plan de evacuación."},"Revisión y actualización de plan de evacuación.",{"$f":"+F76","v":"Revisión y actualización de plan de evacuación."},{"$f":"+G76","v":"Revisión y actualización de plan de evacuación."},null,""]
[null,34,null,"Fortalecimiento de capacidades para la organización y desarrollo de simulacros.","Fortalecimiento de capacidades para la organización y desarrollo de simulacros.","Fortalecimiento de capacidades para la organización y desarrollo de simulacros.","Fortalecimiento de capacidades para la organización y desarrollo de simulacros.","Fortalecimiento de capacidades para la organización y desarrollo de simulacros.",null,""]
[null,35,null,"Realización de campañas de sensibilización en medios de comunicación masivos.",{"$f":"IF(D78=\"\",\"\",D78)","v":"Realización de campañas de sensibilización en medios de comunicación masivos."},"Realización de campañas de sensibilización en medios de comunicación masivos.",{"$f":"IF(F78=\"\",\"\",F78)","v":"Realización de campañas de sensibilización en medios de comunicación masivos."},"Realización de campañas de sensibilización en medios de comunicación masivos.",null,""]
[null,36,null,"Elaboración de trípticos para reforzamiento de capacidad de respuesta tomando en cuenta el factor cultural",{"$f":"IF(D79=\"\",\"\",D79)","v":"Elaboración de trípticos para reforzamiento de capacidad de respuesta tomando en cuenta el factor cultural"},{"$f":"+E79","v":"Elaboración de trípticos para reforzamiento de capacidad de respuesta tomando en cuenta el factor cultural"},{"$f":"IF(F79=\"\",\"\",F79)","v":"Elaboración de trípticos para reforzamiento de capacidad de respuesta tomando en cuenta el factor cultural"},{"$f":"IF(G79=\"\",\"\",G79)","v":"Elaboración de trípticos para reforzamiento de capacidad de respuesta tomando en cuenta el factor cultural"},null,""]
[null,37,"Indicador de Problema Central",null,null,null,null,null,null,""]
[null,38]
[null,39]
[null,40]
[]
[]
[]
[]
[]
[null,null,"Costo de GG"]
[null,null,"Mínimo",0]
[null,null,null,0.01]
[null,null,null,0.02]
[null,null,null,0.03]
[null,null,null,0.04]
[null,null,null,0.05]
[null,null,null,0.06]
[null,null,null,7.0000000000000007E-2]
[null,null,"Máximo",0.08]
[]
[null,null,"Costo de Utilidad"]
[null,null,"Mínimo",{"$f":"IF('FICHA SIMPLIFICADA-SAT'!$C$443=\"Administración directa\",0%,E101)","v":0},0]
[null,null,null,{"$f":"IF('FICHA SIMPLIFICADA-SAT'!$C$443=\"Administración directa\",0%,E102)","v":0.01},0.01]
[null,null,null,{"$f":"IF('FICHA SIMPLIFICADA-SAT'!$C$443=\"Administración directa\",0%,E103)","v":0.02},0.02]
[null,null,null,{"$f":"IF('FICHA SIMPLIFICADA-SAT'!$C$443=\"Administración directa\",0%,E104)","v":0.03},0.03]
[null,null,null,{"$f":"IF('FICHA SIMPLIFICADA-SAT'!$C$443=\"Administración directa\",0%,E105)","v":0.04},0.04]
[null,null,null,{"$f":"IF('FICHA SIMPLIFICADA-SAT'!$C$443=\"Administración directa\",0%,E106)","v":0.05},0.05]
[null,null,null,{"$f":"IF('FICHA SIMPLIFICADA-SAT'!$C$443=\"Administración directa\",0%,E107)","v":0.06},0.06]
[null,null,null,{"$f":"IF('FICHA SIMPLIFICADA-SAT'!$C$443=\"Administración directa\",0%,E108)","v":7.0000000000000007E-2},7.0000000000000007E-2]
[null,null,"Máximo",{"$f":"IF('FICHA SIMPLIFICADA-SAT'!$C$443=\"Administración directa\",0%,E109)","v":0.08},0.08]
[]
[]
[null,null,"Costo de expediente tecnico"]
[null,null,"Mínimo",0]
[null,null,null,0.01]
[null,null,null,0.02]
[null,null,null,0.03]
[null,null,null,0.04]
[null,null,null,0.05]
[null,null,null,0.06]
[null,null,null,7.0000000000000007E-2]
[null,null,"Máximo",0.08]
[]
[null,null,"Costo de supervision"]
[null,null,"Mínimo",0]
[null,null,null,0.01]
[null,null,null,0.02]
[null,null,null,0.03]
[null,null,null,0.04]
[null,null,null,0.05]
[null,null,null,0.06]
[null,null,null,7.0000000000000007E-2]
[null,null,"Máximo",0.08]
[]
[null,null,"Costo de organización y gestión"]
[null,null,"Mínimo",0]
[null,null,null,0.01]
[null,null,null,0.02]
[null,null,null,0.03]
[null,null,null,0.04]
[null,null,null,0.05]
[null,null,null,0.06]
[null,null,null,7.0000000000000007E-2]
[null,null,"Máximo",0.08]
[]
[]
[]
[]
[null,null,"Sostenibilidad"]
[null,null,"Es la unidad ejecutora responsable de La O & M","No"]
[null,null,null,"Sí"]
[null,null,null,"PARCIALMENTE"]
[]
[]
[null,null,"DOCUMENTO DE SOSTENIBILIDAD","ENTIDAD / ORGANIZACIÓN"]
[null,1,"Acta de compromiso de O&M","Población beneficiaria"]
[null,2,"Resolución de alcaldía","Municipalidad distrital"]
[null,3,"Otro","Municipalidad provincial"]
[null,null,null,"Municipalidad departamental"]
[null,null,null,"Gobierno regional"]
[null,null,null,"Otros"]
[]
[]
[]
[null,null,"Analisis de riesgo"]
[null,1,"Si"]
[null,2,"No"]
[]
[]
[null,null,"Modalidad de ejecución"]
[null,1,"Administración directa"]
[null,2,"Administración indirecta – por contrata"]
[null,3,"Administración indirecta – asociación pública privado (app)"]
[null,4,"Administración indirecta – núcleo ejecutor "]
[null,5,"Administración indirecta – ley 29230 (obras por impuestos)"]
[]
[null,null,"Fuente para determinar Población DE Referencia"]
[null,1,"INEI"]
[null,2,"Padrón de pobladores"]
[null,3,"Encuesta"]
[null,4,"Otros"]
[]
[]
[null,null,"Fuente para determinar Población alertada"]
[null,1,"SINPAD"]
[null,2,"Padrón de pobladores"]
[null,3,"Encuesta"]
[null,4,"Otros"]
[]
[]
[null,null,"Fuente de verificacion de indicadores de Prob Cent"]
[null,1,"SINPAD"]
[null,2,"Entrevistas"]
[null,3,"Encuesta"]
[null,4,"Reportes INDECI"]
[null,null,"CISMID"]
[null,null,"Autoridades comunales"]
[null,null,"Visita de campo"]
[null,5,"Otros"]
[]
[]
[null,null,"Tipo de población"]
[null,1,"Población de referencia (Centro poblado)"]
[null,2,"Población de referencia (Distrito)"]
[null,3,"Población de referencia (Provincia)"]
[null,4,"Población de referencia (Departamento)"]
[]
[null,null,"Tipo de población"]
[null,1,"Población expuesta (Centro poblado)"]
[null,2,"Población expuesta (Distrito)"]
[null,3,"Población expuesta (Provincia)"]
[null,4,"Población expuesta (Departamento)"]
[]
[]
[null,null,"Tiempo de ejecución"]
[null,1,"Meses"]
[null,2,"Trimestres"]
[null,3,"Semestres"]
[]
[]
[null,null,"Horizonte de evaluación"]
[null,null,"Periodo de ejecución"]
[null,1,1]
[null,2,2]
[null,3,3]
[null,4,4]
[null,5,5]
[]
[]
[null,null,"Tipo de Item"]
[null,1,"Infraestructura*"]
[null,2,"Equipamiento*"]
[null,3,"Mobiliario*"]
[null,4,"Vehículo*"]
[null,5,"Terrenos*"]
[null,6,"Terrenos (Expropiación)"]
[null,7,"Intangibles**"]
[null,null,"Infraestructura Natural"]
[null,8,"Otros"]
[]
[]
[null,null,"Si"]
[null,null,"No"]
[]
[null,null,"Metodo de proyección"]
[null,null,"Aritmético"]
[null,null,"Geométrico"]
[]
[]
[null,null,"Sistema de coordenadas"]
[null,1,"UTM - Universal Transversal de Mercator"]
[null,2,"WGS 84 - Sistema Geodésico Mundial "]

{"sheet":"Datos 7","index":3,"n_rows":75,"n_cols":22,"rows_kept":75,"cut":false,"hidden":true,"merged":[[65,1,74,1],[2,1,2,5],[20,1,29,1],[5,1,14,1],[35,1,44,1],[50,1,59,1]]}
[]
[]
[null,"Base de datos: Unidades de producción por Tipo de Item"]
[]
[null,"Tipo de Item","Infraestructura*","Equipamiento*","Mobiliario*","Vehículo*","Terrenos*","Terrenos (Expropiación)","Intangibles**","Infraestructura Natural","Otros"]
[2,"Unidades de Producción","m2 ","Unidades de \nequipamiento","Unidades de mobiliario","Unidades","m2","m2","Capacitaciones","m2","m2"]
[3,null,"m3",null,null,null,null,null,"Asistencias técnicas","m3","m3"]
[4,null,"km.",null,null,null,null,null,"Asesorías","Km","Km"]
[5,null,"Unidades de ambiente",null,null,null,null,null,"Informes","Ha","Ha"]
[6,null,"Unidades",null,null,null,null,null,"Talleres","Unidades","Unidades"]
[7,null,null,null,null,null,null,null,"Cursos",null,"Kits"]
[8,null,null,null,null,null,null,null,"Vigías capacitados",null,"Talleres"]
[9,null,null,null,null,null,null,null,null,null,"Cursos"]
[10,null,null,null,null,null,null,null,null,null,"Vigías Capacitados"]
[11]
[]
[]
[null,"Acciones y unidades del medio fundamental 1",null,null,null,null,null,null,null,null,null,null,null,null,"Acciones y unidades del medio fundamental 1"]
[null,null,null,null,null,null,null,null,null,null,null,null,null,null,1,2,3,4,5,6,7,8]
[null,"Tipo de item MF 1",{"$f":"+'FICHA SIMPLIFICADA-SAT'!E269","v":0},{"$f":"+'FICHA SIMPLIFICADA-SAT'!E270","v":0},{"$f":"+'FICHA SIMPLIFICADA-SAT'!E271","v":0},{"$f":"+'FICHA SIMPLIFICADA-SAT'!E272","v":0},{"$f":"+'FICHA SIMPLIFICADA-SAT'!E273","v":0},{"$f":"+'FICHA SIMPLIFICADA-SAT'!E274","v":0},{"$f":"+'FICHA SIMPLIFICADA-SAT'!E275","v":0},{"$f":"+'FICHA SIMPLIFICADA-SAT'!E276","v":0},null,null,null,null,{"$f":"+C20","v":0},{"$f":"+D20","v":0},{"$f":"+E20","v":0},{"$f":"+F20","v":0},{"$f":"+G20","v":0},0,0,0]
[null,"Unidades de\n Producción",{"$f":"IFERROR(HLOOKUP($C$20,$C$5:$M$15,A6,FALSE),\"\")","v":""},{"$f":"IFERROR(HLOOKUP($D$20,$C$5:$M$15,A6,FALSE),\"\")","v":""},{"$f":"IFERROR(HLOOKUP($E$20,$C$5:$M$15,A6,FALSE),\"\")","v":""},{"$f":"IFERROR(HLOOKUP($F$20,$C$5:$M$15,A6,FALSE),\"\")","v":""},{"$f":"IFERROR(HLOOKUP($G$20,$C$5:$M$15,A6,FALSE),\"\")","v":""},{"$f":"IFERROR(HLOOKUP($H$20,$C$5:$M$15,A6,FALSE),\"\")","v":""},{"$f":"IFERROR(HLOOKUP($I$20,$C$5:$M$15,A6,FALSE),\"\")","v":""},{"$f":"IFERROR(HLOOKUP($J$20,$C$5:$M$15,A6,FALSE),\"\")","v":""},null,null,null,null,{"$f":"IF(C21=0,\"\",C21)","v":""},{"$f":"IF(D21=0,\"\",D21)","v":""},"","","","","",""]
[null,null,{"$f":"IFERROR(HLOOKUP($C$20,$C$5:$M$15,A7,FALSE),\"\")","v":""},{"$f":"IFERROR(HLOOKUP($D$20,$C$5:$M$15,A7,FALSE),\"\")","v":""},{"$f":"IFERROR(HLOOKUP($E$20,$C$5:$M$15,A7,FALSE),\"\")","v":""},{"$f":"IFERROR(HLOOKUP($F$20,$C$5:$M$15,A7,FALSE),\"\")","v":""},{"$f":"IFERROR(HLOOKUP($G$20,$C$5:$M$15,A7,FALSE),\"\")","v":""},{"$f":"IFERROR(HLOOKUP($H$20,$C$5:$M$15,A7,FALSE),\"\")","v":""},{"$f":"IFERROR(HLOOKUP($I$20,$C$5:$M$15,A7,FALSE),\"\")","v":""},{"$f":"IFERROR(HLOOKUP($J$20,$C$5:$M$15,A7,FALSE),\"\")","v":""},null,null,null,null,{"$f":"IF(C22=0,\"\",C22)","v":""},"","","","","","",""]
[null,null,"","","","","","","","",null,null,"",null,"","","","","","","",""]
[null,null,"","","","","","","","",null,null,"",null,"","","","","","","",""]
[null,null,"","","","","","","","",null,null,null,null,"","","","","","","",""]
[null,null,"","","","","","","","",null,null,null,null,"","","","","","","",""]
[null,null,"","","","","","","","",null,null,null,null,"","","","","","","",""]
[null,null,"","","","","","","","",null,null,null,null,"","","","","","","",""]
[null,null,"","","","","","","","",null,null,null,null,"","","","","","","",""]
[null,null,"","","","","","","","",null,null,null,null,"","","","","","","",""]
[]
[]
[null,"Acciones y unidades del medio fundamental 2",null,null,null,null,null,null,null,null,null,null,null,null,"Acciones y unidades del medio fundamental 2"]
[null,null,null,null,null,null,null,null,null,null,null,null,null,null,1,2,3,4,5,6,7,8]
[null,"Tipo de item MF 2",{"$f":"+'FICHA SIMPLIFICADA-SAT'!E279","v":0},{"$f":"+'FICHA SIMPLIFICADA-SAT'!E280","v":0},{"$f":"+'FICHA SIMPLIFICADA-SAT'!E281","v":0},{"$f":"+'FICHA SIMPLIFICADA-SAT'!E282","v":0},{"$f":"+'FICHA SIMPLIFICADA-SAT'!E283","v":0},{"$f":"+'FICHA SIMPLIFICADA-SAT'!E284","v":0},{"$f":"+'FICHA SIMPLIFICADA-SAT'!E285","v":0},{"$f":"+'FICHA SIMPLIFICADA-SAT'!E286","v":0},null,null,null,null,{"$f":"+C35","v":0},{"$f":"+D35","v":0},{"$f":"+E35","v":0},{"$f":"+F35","v":0},{"$f":"+G35","v":0},{"$f":"+H35","v":0},{"$f":"+I35","v":0},{"$f":"+J35","v":0}]
[null,"Unidades de\n Producción",{"$f":"IFERROR(HLOOKUP($C$35,$C$5:$M$15,A6,FALSE),\"\")","v":""},{"$f":"IFERROR(HLOOKUP($D$35,$C$5:$M$15,A6,FALSE),\"\")","v":""},{"$f":"IFERROR(HLOOKUP($E$35,$C$5:$M$15,A6,FALSE),\"\")","v":""},{"$f":"IFERROR(HLOOKUP($F$35,$C$5:$M$15,A6,FALSE),\"\")","v":""},{"$f":"IFERROR(HLOOKUP($G$35,$C$5:$M$15,A6,FALSE),\"\")","v":""},{"$f":"IFERROR(HLOOKUP($H$35,$C$5:$M$15,A6,FALSE),\"\")","v":""},{"$f":"IFERROR(HLOOKUP($I$35,$C$5:$M$15,A6,FALSE),\"\")","v":""},{"$f":"IFERROR(HLOOKUP($J$35,$C$5:$M$15,A6,FALSE),\"\")","v":""},null,null,null,null,{"$f":"IF(C36=0,\"\",C36)","v":""},{"$f":"IF(D36=0,\"\",D36)","v":""},{"$f":"IF(E36=0,\"\",E36)","v":""},{"$f":"IF(F36=0,\"\",F36)","v":""},{"$f":"IF(G36=0,\"\",G36)","v":""},{"$f":"IF(H36=0,\"\",H36)","v":""},{"$f":"IF(I36=0,\"\",I36)","v":""},{"$f":"IF(J36=0,\"\",J36)","v":""}]
[null,null,{"$f":"IFERROR(HLOOKUP($C$35,$C$5:$M$15,A7,FALSE),\"\")","v":""},{"$f":"IFERROR(HLOOKUP($D$35,$C$5:$M$15,A7,FALSE),\"\")","v":""},{"$f":"IFERROR(HLOOKUP($E$35,$C$5:$M$15,A7,FALSE),\"\")","v":""},{"$f":"IFERROR(HLOOKUP($F$35,$C$5:$M$15,A7,FALSE),\"\")","v":""},{"$f":"IFERROR(HLOOKUP($G$35,$C$5:$M$15,A7,FALSE),\"\")","v":""},{"$f":"IFERROR(HLOOKUP($H$35,$C$5:$M$15,A7,FALSE),\"\")","v":""},{"$f":"IFERROR(HLOOKUP($I$35,$C$5:$M$15,A7,FALSE),\"\")","v":""},{"$f":"IFERROR(HLOOKUP($J$35,$C$5:$M$15,A7,FALSE),\"\")","v":""},null,null,null,null,{"$f":"IF(C37=0,\"\",C37)","v":""},"","","","","","",""]
[null,null,"","","","","","","","",null,null,"",null,"","","","","","","",""]
[null,null,"","","","","","","","",null,null,"",null,"","","","","","","",""]
[null,null,"","","","","","","","",null,null,null,null,"","","","","","","",""]
[null,null,"","","","","","","","",null,null,null,null,"","","","","","","",""]
[null,null,"","","","","","","","",null,null,null,null,"","","","","","","",""]
[null,null,"","","","","","","","",null,null,null,null,"","","","","","","",""]
[null,null,"","","","","","","","",null,null,null,null,"","","","","","","",""]
[null,null,"","","","","","","","",null,null,null,null,"","","","","","","",""]
[]
[]
[null,"Acciones y unidades del medio fundamental 3",null,null,null,null,null,null,null,null,null,null,null,null,"Acciones y unidades del medio fundamental 3"]
[null,null,1,2,3,4,5,6,7,8,null,null,null,null,1,2,3,4,5,6,7,8]
[null,"Tipo de item MF 3",{"$f":"+'FICHA SIMPLIFICADA-SAT'!E289","v":0},{"$f":"+'FICHA SIMPLIFICADA-SAT'!E290","v":0},{"$f":"+'FICHA SIMPLIFICADA-SAT'!E291","v":0},{"$f":"+'FICHA SIMPLIFICADA-SAT'!E292","v":0},{"$f":"+'FICHA SIMPLIFICADA-SAT'!E293","v":0},{"$f":"+'FICHA SIMPLIFICADA-SAT'!E294","v":0},{"$f":"+'FICHA SIMPLIFICADA-SAT'!E295","v":0},{"$f":"+'FICHA SIMPLIFICADA-SAT'!E296","v":0},null,null,null,null,{"$f":"+C50","v":0},{"$f":"+D50","v":0},{"$f":"+E50","v":0},{"$f":"+F50","v":0},{"$f":"+G50","v":0},{"$f":"+H50","v":0},{"$f":"+I50","v":0},{"$f":"+J50","v":0}]
[null,"Unidades de\n Producción",{"$f":"IFERROR(HLOOKUP($C$50,$C$5:$M$15,A6,FALSE),\"\")","v":""},{"$f":"IFERROR(HLOOKUP($D$50,$C$5:$M$15,A6,FALSE),\"\")","v":""},{"$f":"IFERROR(HLOOKUP($E$50,$C$5:$M$15,A6,FALSE),\"\")","v":""},{"$f":"IFERROR(HLOOKUP($F$50,$C$5:$M$15,A6,FALSE),\"\")","v":""},{"$f":"IFERROR(HLOOKUP($G$50,$C$5:$M$15,A6,FALSE),\"\")","v":""},{"$f":"IFERROR(HLOOKUP($H$50,$C$5:$M$15,A6,FALSE),\"\")","v":""},{"$f":"IFERROR(HLOOKUP($I$50,$C$5:$M$15,A6,FALSE),\"\")","v":""},{"$f":"IFERROR(HLOOKUP($J$50,$C$5:$M$15,A6,FALSE),\"\")","v":""},null,null,null,null,{"$f":"IF(C51=0,\"\",C51)","v":""},{"$f":"IF(D51=0,\"\",D51)","v":""},{"$f":"IF(E51=0,\"\",E51)","v":""},{"$f":"IF(F51=0,\"\",F51)","v":""},{"$f":"IF(G51=0,\"\",G51)","v":""},{"$f":"IF(H51=0,\"\",H51)","v":""},{"$f":"IF(I51=0,\"\",I51)","v":""},{"$f":"IF(J51=0,\"\",J51)","v":""}]
[null,null,{"$f":"IFERROR(HLOOKUP($C$50,$C$5:$M$15,A7,FALSE),\"\")","v":""},{"$f":"IFERROR(HLOOKUP($D$50,$C$5:$M$15,A7,FALSE),\"\")","v":""},{"$f":"IFERROR(HLOOKUP($E$50,$C$5:$M$15,A7,FALSE),\"\")","v":""},{"$f":"IFERROR(HLOOKUP($F$50,$C$5:$M$15,A7,FALSE),\"\")","v":""},{"$f":"IFERROR(HLOOKUP($G$50,$C$5:$M$15,A7,FALSE),\"\")","v":""},{"$f":"IFERROR(HLOOKUP($H$50,$C$5:$M$15,A7,FALSE),\"\")","v":""},{"$f":"IFERROR(HLOOKUP($I$50,$C$5:$M$15,A7,FALSE),\"\")","v":""},{"$f":"IFERROR(HLOOKUP($J$50,$C$5:$M$15,A7,FALSE),\"\")","v":""},null,null,null,null,{"$f":"IF(C52=0,\"\",C52)","v":""},"","","","","","",""]
[null,null,"","","","","","","","",null,null,"",null,"","","","","","","",""]
[null,null,"","","","","","","","",null,null,"",null,"","","","","","","",""]
[null,null,"","","","","","","","",null,null,null,null,"","","","","","","",""]
[null,null,"","","","","","","","",null,null,null,null,"","","","","","","",""]
[null,null,"","","","","","","","",null,null,null,null,"","","","","","","",""]
[null,null,"","","","","","","","",null,null,null,null,"","","","","","","",""]
[null,null,"","","","","","","","",null,null,null,null,"","","","","","","",""]
[null,null,"","","","","","","","",null,null,null,null,"","","","","","","",""]
[]
[]
[null,"Acciones y unidades del medio fundamental 4",null,null,null,null,null,null,null,null,null,null,null,null,"Acciones y unidades del medio fundamental 4"]
[null,null,null,null,null,null,null,null,null,null,null,null,null,null,1,2,3,4,5,6,7,8]
[null,"Tipo de item MF 4",{"$f":"+'FICHA SIMPLIFICADA-SAT'!E299","v":0},{"$f":"+'FICHA SIMPLIFICADA-SAT'!E300","v":0},{"$f":"+'FICHA SIMPLIFICADA-SAT'!E301","v":0},{"$f":"+'FICHA SIMPLIFICADA-SAT'!E302","v":0},{"$f":"+'FICHA SIMPLIFICADA-SAT'!E303","v":0},{"$f":"+'FICHA SIMPLIFICADA-SAT'!E304","v":0},{"$f":"+'FICHA SIMPLIFICADA-SAT'!E305","v":0},{"$f":"+'FICHA SIMPLIFICADA-SAT'!E306","v":0},null,null,null,null,{"$f":"+C65","v":0},{"$f":"+D65","v":0},{"$f":"+E65","v":0},{"$f":"+F65","v":0},{"$f":"+G65","v":0},{"$f":"+H65","v":0},{"$f":"+I65","v":0},{"$f":"+J65","v":0}]
[null,"Unidades de\n Producción",{"$f":"IFERROR(HLOOKUP($C$65,$C$5:$M$15,A6,FALSE),\"\")","v":""},{"$f":"IFERROR(HLOOKUP($D$65,$C$5:$M$15,A6,FALSE),\"\")","v":""},{"$f":"IFERROR(HLOOKUP($E$65,$C$5:$M$15,A6,FALSE),\"\")","v":""},{"$f":"IFERROR(HLOOKUP($F$65,$C$5:$M$15,A6,FALSE),\"\")","v":""},{"$f":"IFERROR(HLOOKUP($G$65,$C$5:$M$15,A6,FALSE),\"\")","v":""},{"$f":"IFERROR(HLOOKUP($H$65,$C$5:$M$15,A6,FALSE),\"\")","v":""},{"$f":"IFERROR(HLOOKUP($I$65,$C$5:$M$15,A6,FALSE),\"\")","v":""},{"$f":"IFERROR(HLOOKUP($J$65,$C$5:$M$15,A6,FALSE),\"\")","v":""},null,null,null,null,{"$f":"IF(C66=0,\"\",C66)","v":""},{"$f":"IF(D66=0,\"\",D66)","v":""},{"$f":"IF(E66=0,\"\",E66)","v":""},{"$f":"IF(F66=0,\"\",F66)","v":""},{"$f":"IF(G66=0,\"\",G66)","v":""},{"$f":"IF(H66=0,\"\",H66)","v":""},{"$f":"IF(I66=0,\"\",I66)","v":""},{"$f":"IF(J66=0,\"\",J66)","v":""}]
[null,null,{"$f":"IFERROR(HLOOKUP($C$65,$C$5:$M$15,A7,FALSE),\"\")","v":""},{"$f":"IFERROR(HLOOKUP($D$65,$C$5:$M$15,A7,FALSE),\"\")","v":""},{"$f":"IFERROR(HLOOKUP($E$65,$C$5:$M$15,A7,FALSE),\"\")","v":""},{"$f":"IFERROR(HLOOKUP($F$65,$C$5:$M$15,A7,FALSE),\"\")","v":""},{"$f":"IFERROR(HLOOKUP($G$65,$C$5:$M$15,A7,FALSE),\"\")","v":""},{"$f":"IFERROR(HLOOKUP($H$65,$C$5:$M$15,A7,FALSE),\"\")","v":""},{"$f":"IFERROR(HLOOKUP($I$65,$C$5:$M$15,A7,FALSE),\"\")","v":""},{"$f":"IFERROR(HLOOKUP($J$65,$C$5:$M$15,A7,FALSE),\"\")","v":""},null,null,null,null,{"$f":"IF(C67=0,\"\",C67)","v":""},"","","","","","",""]
[null,null,"","","","","","","","",null,null,"",null,"","","","","","","",""]
[null,null,"","","","","","","","",null,null,"",null,"","","","","","","",""]
[null,null,"","","","","","","","",null,null,null,null,"","","","","","","",""]
[null,null,"","","","","","","","",null,null,null,null,"","","","","","","",""]
[null,null,"","","","","","","","",null,null,null,null,"","","","","","","",""]
[null,null,"","","","","","","","",null,null,null,null,"","","","","","","",""]
[null,null,"","","","","","","","",null,null,null,null,"","","","","","","",""]
[null,null,"","","","","","","","",null,null,null,null,"","","","","","","",""]

{"sheet":"Datos 1","index":4,"n_rows":65,"n_cols":15,"rows_kept":65,"cut":false,"hidden":true,"merged":[[46,2,48,2],[38,1,48,1],[28,2,31,2],[16,1,31,1],[32,3,37,11],[32,1,37,1],[16,2,27,2],[38,2,45,2],[49,1,66,1],[49,2,51,2],[52,2,54,2],[55,2,57,2],[58,2,60,2],[61,2,63,2],[64,2,66,2]]}
[]
[null,null,1,"Deslizamiento"]
[null,null,2,"Huaycos - Inundaciones"]
[null,null,3,"Eventos fríos",null,null,null,null,null,null,null,null,null,"Desast 1","Desast 2"]
[null,null,4,"Tsunamis"]
[null,null,5,"Erupciones volcánicas"]
[null,null,6,"Incendios"]
[null,null,7,"Sismo"]
[null,null,8,"Sequia."]
[null,null,9,"Vientos fuertes"]
[]
[]
[]
[]
[]
[null,"Componente","Acciones",{"$f":"+D2","v":"Deslizamiento"},{"$f":"+D3","v":"Huaycos - Inundaciones"},{"$f":"+D4","v":"Eventos fríos"},{"$f":"+D5","v":"Tsunamis"},{"$f":"+D6","v":"Erupciones volcánicas"},{"$f":"+D7","v":"Incendios"},{"$f":"+D8","v":"Sismo"},{"$f":"+D9","v":"Sequia."},{"$f":"+D10","v":"Vientos fuertes"},null,{"$f":"+'FICHA SIMPLIFICADA-SAT'!D37","v":0},{"$f":"+'FICHA SIMPLIFICADA-SAT'!D39","v":0}]
[null,"MF 1","Equipamiento\npara la vigilancia  de","Geófonos","Pluviómetro de botella \nde plástico"]
[null,null,null,null,"Pluviómetro de embudo y botella \nde plástico"]
[null,null,null,null,"Escala hidrométrica sujeta a\nestructura física"]
[null,null,null,null,"Escala hidrométrica en serie"]
[]
[]
[]
[]
[]
[]
[]
[]
[null,null,"OTROS: ………………………….","Reloj","Reloj","Reloj","Reloj","Reloj","Reloj","Reloj","Reloj","Reloj"]
[null,null,null,"Cronómetro","Cronómetro","Cronómetro","Cronómetro","Cronómetro","Cronómetro","Cronómetro","Cronómetro","Cronómetro"]
[null,null,null,"Wincha","Wincha","Wincha","Wincha","Wincha","Wincha","Wincha","Wincha","Wincha"]
[]
[null,"MF 2","Implementación de procedimientos de monitoreo"]
[null,null,"Formación y desarrollo de capacidades de los vigías voluntarios para el monitoreo."]
[null,null,"Implementación de materiales  de escritorio básicos para vigías voluntarios."]
[null,null,"Conformación y capacitación de equipos de trabajo en cordinación con el COE local  conforme a procedimiento de SAT - COM."]
[]
[]
[null,"MF 3","Adquisición de equipos de transmisión y difusión de información."]
[null,null,null,"Celulares"]
[null,null,null,"Megáfono"]
[null,null,null,"Radio comunicación"]
[null,null,null,"Estación meteorológica"]
[null,null,null,"Sirenas de 240 Watt"]
[null,null,null,"Silvatos"]
[]
[null,null,"OTROS: …………………………."]
[]
[]
[null,"MF 4","Difusión de mecanismos de alerta temprana"]
[]
[]
[null,null,"Plan de contingencia y plan de operaciones de emergencia"]
[]
[]
[null,null,"Señalización de rutas de evacuación","Señalizaciones"]
[null,null,null,"Carteles"]
[]
[null,null,"Realización de simulacros"]
[]
[]
[null,null,"Elaboración de tripticos"]
[]
[]
[null,null,"OTROS: …………………………."]

{"sheet":"Datos 2","index":5,"n_rows":2010,"n_cols":200,"rows_kept":2010,"cut":false,"hidden":true,"merged":[[219,12,219,13],[2,3,2,9],[2,10,2,28],[2,29,2,35],[2,36,2,43],[2,193,2,196],[2,139,2,145],[2,146,2,148],[2,149,2,151],[2,152,2,154],[2,155,2,162],[2,2,3,2],[2,163,2,175],[2,176,2,185],[2,186,2,189],[2,190,2,192],[2,100,2,104],[2,105,2,113],[2,114,2,125],[2,126,2,128],[2,129,2,138],[2,44,2,54],[2,55,2,67],[2,69,2,81],[2,82,2,88],[2,89,2,99]]}
[]
[]
["DEP",null,"Nª","AMAZONAS",null,null,null,null,null,null,"ANCASH",null,null,null,null,null,null,null,null,null,null,null,null,null,null,null,null,null,null,"APURIMAC",null,null,null,null,null,null,"AREQUIPA",null,null,null,null,null,null,null,"AYACUCHO",null,null,null,null,null,null,null,null,null,null,"CAJAMARCA",null,null,null,null,null,null,null,null,null,null,null,null,"CALLAO","CUSCO",null,null,null,null,null,null,null,null,null,null,null,null,"HUANCAVELICA",null,null,null,null,null,null,"HUANUCO",null,null,null,null,null,null,null,null,null,null,"ICA",null,null,null,null,"JUNIN",null,null,null,null,null,null,null,null,"LA LIBERTAD",null,null,null,null,null,null,null,null,null,null,null,"LAMBAYEQUE",null,null,"LIMA ",null,null,null,null,null,null,null,null,null,"LORETO",null,null,null,null,null,null,"MADRE DE DIOS",null,null,"MOQUEGUA",null,null,"PASCO",null,null,"PIURA",null,null,null,null,null,null,null,"PUNO",null,null,null,null,null,null,null,null,null,null,null,null,"SAN MARTIN",null,null,null,null,null,null,null,null,null,"TACNA",null,null,null,"TUMBES",null,null,"UCAYALI"]
["PROV",1,null,"CHACHAPOYAS","BAGUA","BONGARA","CONDORCANQUI","LUYA","RODRIGUEZ DE MENDOZA","UTCUBAMBA","HUARAZ","AIJA","ANTONIO RAYMONDI","ASUNCION","BOLOGNESI","CARHUAZ","CARLOS F. FITZCARRALD","CASMA","CORONGO","HUARI","HUARMEY","HUAYLAS","MARISCAL LUZURIAGA","OCROS","PALLASCA","POMABAMBA","RECUAY","SIHUAS","YUNGAY","ABANCAY","ANDAHUAYLAS","ANTABAMBA","AYMARAES","COTABAMBAS","CHINCHEROS","GRAU","AREQUIPA","CAMANA","CARAVELI","CASTILLA","CAYLLOMA","CONDESUYOS","ISLAY","LA UNION","HUAMANGA","CANGALLO","HUANCA SANCOS","HUANTA","LA MAR","LUCANAS","PARINACOCHAS","PAUCAR DEL SARA SARA","SUCRE","VICTOR FAJARDO","VILCAS HUAMAN","CAJAMARCA","CAJABAMBA","CELENDIN","CHOTA","CONTUMAZA","CUTERVO","HUALGAYOC","JAEN","SAN IGNACIO","SAN MARCOS","SAN MIGUEL","SAN PABLO","SANTA CRUZ","CALLAO","CUSCO","ACOMAYO","ANTA","CALCA","CANAS","CANCHIS","CHUMBIVILCAS","ESPINAR","LA CONVENCION","PARURO","PAUCARTAMBO","QUISPICANCHI","URUBAMBA","HUANCAVELICA","ACOBAMBA","ANGARAES","CASTROVIRREYNA","CHURCAMPA","HUAYTARA","TAYACAJA","HUANUCO","AMBO","DOS DE MAYO","HUACAYBAMBA","HUAMALIES","LEONCIO PRADO","MARAÑON","PACHITEA","PUERTO INCA","LAURICOCHA","YAROWILCA","ICA","CHINCHA","NAZCA","PALPA","PISCO","HUANCAYO","CONCEPCION","CHANCHAMAYO","JAUJA","JUNIN","SATIPO","TARMA","YAULI","CHUPACA","TRUJILLO","ASCOPE","BOLIVAR","CHEPEN","JULCAN","OTUZCO","PACASMAYO","PATAZ","SANCHEZ CARRION","SANTIAGO DE CHUCO","GRAN CHIMU","VIRU","CHICLAYO","FERREÑAFE","LAMBAYEQUE","LIMA","BARRANCA","CAJATAMBO","CANTA","CAÑETE","HUARAL","HUAROCHIRI","HUAURA","OYON","YAUYOS","MAYNAS","ALTO AMAZONAS","LORETO","MARISCAL RAMON CASTILLA","REQUENA","UCAYALI","DATEM DEL MARAÑON ","TAMBOPATA","MANU","TAHUAMANU","MARISCAL NIETO","GENERAL SANCHEZ CERRO","ILO","PASCO","DANIEL ALCIDES CARRION","OXAPAMPA","PIURA","AYABACA","HUANCABAMBA","MORROPON","PAITA","SULLANA","TALARA","SECHURA","PUNO","AZANGARO","CARABAYA","CHUCUITO","EL COLLAO","HUANCANE","LAMPA","MELGAR","MOHO","SAN ANTONIO DE PUTINA","SAN ROMAN","SANDIA","YUNGUYO","MOYOBAMBA","BELLAVISTA","EL DORADO","HUALLAGA","LAMAS","MARISCAL CACERES","PICOTA","RIOJA","SAN MARTIN","TOCACHE","TACNA","CANDARAVE","JORGE BASADRE","TARATA","TUMBES","CONTRALMIRANTE VILLAR","ZARUMILLA","CORONEL PORTILLO","ATALAYA","PADRE ABAD","PURUS",null,null,{"$f":"'FICHA SIMPLIFICADA-SAT'!D18","v":0}]
["DIST",2,1,"CHACHAPOYAS","BAGUA","JUMBILLA","NIEVA","LAMUD","SAN NICOLAS","BAGUA GRANDE","HUARAZ","AIJA","LLAMELLIN","CHACAS","CHIQUIAN","CARHUAZ","SAN LUIS","CASMA","CORONGO","HUARI","HUARMEY","CARAZ","PISCOBAMBA","OCROS","CABANA","POMABAMBA","RECUAY","SIHUAS","YUNGAY","ABANCAY","ANDAHUAYLAS","ANTABAMBA","CHALHUANCA","TAMBOBAMBA","CHINCHEROS","CHUQUIBAMBILLA","AREQUIPA","CAMANA","CARAVELI","APLAO","CHIVAY","CHUQUIBAMBA","MOLLENDO","COTAHUASI","AYACUCHO","CANGALLO","SANCOS","HUANTA","SAN MIGUEL","PUQUIO","CORACORA","PAUSA","QUEROBAMBA","HUANCAPI","VILCAS HUAMAN","CAJAMARCA","CAJABAMBA","CELENDIN","CHOTA","CONTUMAZA","CUTERVO","BAMBAMARCA","JAEN","SAN IGNACIO","PEDRO GALVEZ","SAN MIGUEL","SAN PABLO","SANTA CRUZ","CALLAO","CUSCO","ACOMAYO","ANTA","CALCA","YANAOCA","SICUANI","SANTO TOMAS","ESPINAR","SANTA ANA","PARURO","PAUCARTAMBO","URCOS","URUBAMBA","HUANCAVELICA","ACOBAMBA ","LIRCAY","CASTROVIRREYNA","CHURCAMPA","HUAYTARA","PAMPAS","HUANUCO","AMBO","LA UNION","HUACAYBAMBA","LLATA","RUPA-RUPA","HUACRACHUCO","PANAO","PUERTO INCA","JESUS","CHAVINILLO","ICA","CHINCHA ALTA","NAZCA","PALPA","PISCO","HUANCAYO","CONCEPCION","CHANCHAMAYO","JAUJA","JUNIN","SATIPO","TARMA","LA OROYA","CHUPACA","TRUJILLO_","ASCOPE","BOLIVAR","CHEPEN","JULCAN","OTUZCO","SAN PEDRO DE LLOC","TAYABAMBA","HUAMACHUCO","SANTIAGO DE CHUCO","CASCAS","VIRU","CHICLAYO","FERREÑAFE","LAMBAYEQUE","LIMA","BARRANCA","CAJATAMBO","CANTA","SAN VICENTE DE CAÑETE","HUARAL","MATUCANA","HUACHO","OYON","YAUYOS","IQUITOS","YURIMAGUAS","NAUTA","RAMON CASTILLA","REQUENA","CONTAMANA","BARRANCA","TAMBOPATA","MANU   ","IÑAPARI","MOQUEGUA","OMATE","ILO","CHAUPIMARCA","YANAHUANCA","OXAPAMPA","PIURA","AYABACA","HUANCABAMBA","CHULUCANAS","PAITA","SULLANA","PARIÑAS","SECHURA","PUNO","AZANGARO","MACUSANI","JULI","ILAVE","HUANCANE","LAMPA","AYAVIRI","MOHO","PUTINA","JULIACA","SANDIA","YUNGUYO","MOYOBAMBA","BELLAVISTA","SAN JOSE DE SISA","SAPOSOA","LAMAS","JUANJUI","PICOTA","RIOJA","TARAPOTO","TOCACHE","TACNA","CANDARAVE","LOCUMBA","TARATA","TUMBES","ZORRITOS","ZARUMILLA","CALLERIA","RAYMONDI","PADRE ABAD","PURUS",null,{"$f":"HLOOKUP($GR$4,$D$4:$GO$47,B5,FALSE)","v":{"$error":"#N/A"}},{"$f":"IF(GQ5=0,\"\",HLOOKUP($GR$4,$D$4:$GO$47,B5,FALSE))","v":{"$error":"#N/A"}}]
["DIST",3,2,"ASUNCION","ARAMANGO","CHISQUILLA","EL CENEPA","CAMPORREDONDO","CHIRIMOTO","CAJARURO","COCHABAMBA","CORIS","ACZO","ACOCHACA","ABELARDO PARDO LEZAMETA","ACOPAMPA","SAN NICOLAS","BUENA VISTA ALTA","ACO","ANRA","COCHAPETI","HUALLANCA","CASCA","ACAS","BOLOGNESI","HUAYLLAN","CATAC","ACOBAMBA","CASCAPARA","CHACOCHE","ANDARAPA","EL ORO","CAPAYA","COTABAMBAS","ANCO-HUALLO","CURPAHUASI","ALTO SELVA ALEGRE","JOSE MARIA QUIMPER","ACARI","ANDAGUA","ACHOMA","ANDARAY","COCACHACRA","ALCA","ACOCRO","CHUSCHI","CARAPO","AYAHUANCO","ANCO","AUCARA","CHUMPI","COLTA","BELEN","ALCAMENCA","ACCOMARCA","ASUNCION","CACHACHI","CHUMUCH","ANGUIA","CHILETE","CALLAYUC","CHUGUR","BELLAVISTA","CHIRINOS","CHANCAY","BOLIVAR","SAN BERNARDINO","ANDABAMBA","BELLAVISTA","CCORCA","ACOPIA","ANCAHUASI","COYA","CHECCA","CHECACUPE","CAPACMARCA","CONDOROMA","ECHARATE","ACCHA","CAICAY","ANDAHUAYLILLAS","CHINCHERO","ACOBAMBILLA","ANDABAMBA","ANCHONGA","ARMA","ANCO","AYAVI","ACOSTAMBO","AMARILIS","CAYNA","CHUQUIS","CANCHABAMBA","ARANCAY","DANIEL ALOMIA ROBLES","CHOLON","CHAGLLA","CODO DEL POZUZO","BAÑOS","CAHUAC","LA TINGUIÑA","ALTO LARAN","CHANGUILLO","LLIPATA","HUANCANO","CARHUACALLANGA","ACO","PERENE","ACOLLA","CARHUAMAYO","COVIRIALI","ACOBAMBA","CHACAPALPA","AHUAC","EL PORVENIR","CHICAMA","BAMBAMARCA","PACANGA","CALAMARCA","AGALLPAMPA","GUADALUPE","BULDIBUYO","CHUGAY","ANGASMARCA","LUCMA","CHAO","CHONGOYAPE","CAÑARIS","CHOCHOPE","ANCON","PARAMONGA","COPA","ARAHUAY","ASIA","ATAVILLOS ALTO","ANTIOQUIA","AMBAR","ANDAJES","ALIS","ALTO NANAY","BALSAPUERTO","PARINARI  ","PEBAS","ALTO TAPICHE","INAHUAYA","CAHUAPANAS","INAMBARI   ","FITZCARRALD   ","IBERIA","CARUMAS","CHOJATA","EL ALGARROBAL","HUACHON","CHACAYAN","CHONTABAMBA","CASTILLA","FRIAS","CANCHAQUE","BUENOS AIRES","AMOTAPE","BELLAVISTA","EL ALTO","BELLAVISTA DE LA UNION","ACORA","ACHAYA","AJOYANI","DESAGUADERO","CAPAZO","COJATA","CABANILLA","ANTAUTA","CONIMA","ANANEA","CABANA","CUYOCUYO","ANAPIA","CALZADA","ALTO BIAVO","AGUA BLANCA","ALTO SAPOSOA","ALONSO DE ALVARADO","CAMPANILLA","BUENOS AIRES","AWAJUN","ALBERTO LEVEAU","NUEVO PROGRESO","ALTO DE LA ALIANZA","CAIRANI","ILABAYA","HÉROES ALBARRACÍN","CORRALES","CASITAS","AGUAS VERDES","CAMPOVERDE","SEPAHUA","IRAZOLA",null,null,{"$error":"#N/A"},{"$f":"IF(GQ6=0,\"\",HLOOKUP($GR$4,$D$4:$GO$47,B6,FALSE))","v":{"$error":"#N/A"}}]
["DIST",4,3,"BALSAS","COPALLIN","CHURUJA","RIO SANTIAGO","COCABAMBA","COCHAMAL","CUMBA","COLCABAMBA","HUACLLAN","CHACCHO",null,"ANTONIO RAYMONDI","AMASHCA","YAUYA","COMANDANTE NOEL","BAMBAS","CAJAY","CULEBRAS","HUATA","ELEAZAR GUZMAN BARRON","CAJAMARQUILLA","CONCHUCOS","PAROBAMBA","COTAPARACO","ALFONSO UGARTE","MANCOS","CIRCA","CHIARA","HUAQUIRCA","CARAYBAMBA","COYLLURQUI","COCHARCAS","GAMARRA","CAYMA","MARIANO NICOLAS VALCARCEL","ATICO","AYO","CABANACONDE","CAYARANI","DEAN VALDIVIA","CHARCANA","ACOS VINCHOS","LOS MOROCHUCOS","SACSAMARCA","HUAMANGUILLA","AYNA","CABANA","CORONEL CASTAÑEDA","CORCULLA","CHALCOS","APONGO","CARHUANCA","CHETILLA","CONDEBAMBA","CORTEGANA","CHADIN","CUPISNIQUE","CHOROS","HUALGAYOC","CHONTALI","HUARANGO","EDUARDO VILLANUEVA","CALQUIS","SAN LUIS","CATACHE","CARMEN DE LA LEGUA REYNOSO","POROY","ACOS","CACHIMAYO","LAMAY","KUNTURKANKI","COMBAPATA","CHAMACA","COPORAQUE","HUAYOPATA","CCAPI","CHALLABAMBA","CAMANTI","HUAYLLABAMBA","ACORIA","ANTA","CALLANMARCA","AURAHUA","CHINCHIHUASI","CORDOVA","ACRAQUIA","CHINCHAO","COLPAS","MARIAS","COCHABAMBA","CHAVIN DE PARIARCA","HERMILIO VALDIZAN","SAN BUENAVENTURA","MOLINO","HONORIA","JIVIA","CHACABAMBA","LOS AQUIJES","CHAVIN","EL INGENIO","RIO GRANDE","HUMAY","CHACAPAMPA","ANDAMARCA","PICHANAQUI","APATA","ONDORES","LLAYLLA","HUARICOLCA","HUAY-HUAY","CHONGOS BAJO","FLORENCIA DE MORA","CHOCOPE","CONDORMARCA","PUEBLO NUEVO","CARABAMBA","CHARAT","JEQUETEPEQUE","CHILLIA","COCHORCO","CACHICADAN","MARMOT ","GUADALUPITO","ETEN","INCAHUASI","ILLIMO","ATE","PATIVILCA","GORGOR","HUAMANTANGA","CALANGO","ATAVILLOS BAJO","CALLAHUANCA","CALETA DE CARQUIN","CAUJUL","AYAUCA","FERNANDO LORES","JEBEROS","TIGRE","YAVARI","CAPELO","PADRE MARQUEZ","MANSERICHE","LAS PIEDRAS  ","MADRE DE DIOS   ","TAHUAMANU","CUCHUMBAYA","COALAQUE","PACOCHA","HUARIACA","GOYLLARISQUIZGA","HUANCABAMBA","CATACAOS","JILILI","EL CARMEN DE LA FRONTERA","CHALACO","ARENAL","IGNACIO ESCUDERO","LA BREA","BERNAL","AMANTANI","ARAPA","AYAPATA","HUACULLANI","PILCUYO","HUATASANI","CALAPUJA","CUPI","HUAYRAPATA","PEDRO VILCA APAZA","CABANILLAS","LIMBANI","COPANI","HABANA","BAJO BIAVO","SAN MARTIN","EL ESLABON","BARRANQUITA","HUICUNGO","CASPISAPA","ELIAS SOPLIN VARGAS","CACATACHI","POLVORA","CALANA","CAMILACA","ITE","ESTIQUE","LA CRUZ","CANOAS DE PUNTA SAL ","MATAPALO","IPARIA","TAHUANIA","CURIMANA",null,null,{"$error":"#N/A"},{"$error":"#N/A"}]
["DIST",5,4,"CHETO","EL PARCO","COROSHA",null,"COLCAMAR","HUAMBO","EL MILAGRO","HUANCHAY","LA MERCED","CHINGAS",null,"AQUIA","ANTA",null,"YAUTAN","CUSCA","CHAVIN DE HUANTAR","HUAYAN","HUAYLAS","FIDEL OLIVAS ESCUDERO","CARHUAPAMPA","HUACASCHUQUE","QUINUABAMBA","HUAYLLAPAMPA","CASHAPAMPA","MATACOTO","CURAHUASI","HUANCARAMA","JUAN ESPINOZA MEDRANO","CHAPIMARCA","HAQUIRA","HUACCANA","HUAYLLATI","CERRO COLORADO ","MARISCAL CACERES","ATIQUIPA","CHACHAS","CALLALLI","CHICHAS","ISLAY","HUAYNACOTAS","CARMEN ALTO 8/","MARIA PARADO DE BELLIDO","SANTIAGO DE LUCANAMARCA","IGUAIN","CHILCAS","CARMEN SALCEDO","PACAPAUSA","LAMPA","CHILCAYOC","ASQUIPATA","CONCEPCION","COSPAN","SITACOCHA","HUASMIN","CHIGUIRIP","GUZMANGO","CUJILLO",null,"COLASAY","LA COIPA","GREGORIO PITA","CATILLUC","TUMBADEN","CHANCAYBAÑOS","LA PERLA","SAN JERONIMO","MOSOC LLACTA","CHINCHAYPUJIO","LARES","LANGUI","MARANGANI","COLQUEMARCA","OCORURO","MARANURA","COLCHA","COLQUEPATA","CCARHUAYO","MACHUPICCHU","CONAYCA","CAJA","CCOCHACCASA","CAPILLAS","EL CARMEN","HUAYACUNDO ARMA","AHUAYCHA","CHURUBAMBA","CONCHAMARCA","PACHAS","PINRA","JACAS GRANDE","JOSE CRESPO Y CASTILLO",null,"UMARI  ","TOURNAVISTA","QUEROPALCA","APARICIO POMARES","OCUCAJE","CHINCHA BAJA","MARCONA","SANTA CRUZ","INDEPENDENCIA","CHICCHE","CHAMBARA","SAN LUIS DE SHUARO","ATAURA","ULCUMAYO","MAZAMARI ","HUASAHUASI","MARCAPOMACOCHA","HUACHAC","HUANCHACO","MAGDALENA DE CAO","LONGOTEA",null,"HUASO","HUARANCHAL","PACASMAYO","HUANCASPATA","CURGOS","MOLLEBAMBA","SAYAPULLO",null,"ETEN PUERTO","MANUEL ANTONIO MESONES MURO","JAYANCA","BARRANCO","SUPE","HUANCAPON","HUAROS","CERRO AZUL","AUCALLAMA","CARAMPOMA","CHECRAS","COCHAMARCA","AYAVIRI","INDIANA","LAGUNAS","TROMPETEROS","SAN PABLO","EMILIO SAN MARTIN","PAMPA HERMOSA","MORONA","LABERINTO","HUEPETUHE",null,"SAMEGUA","ICHUÑA",null,"HUAYLLAY","PAUCAR","PALCAZU","CURA MORI","LAGUNAS","HUARMACA","LA MATANZA","COLAN","LANCONES","LOBITOS","CRISTO NOS VALGA","ATUNCOLLA","ASILLO","COASA","KELLUYO","SANTA ROSA","INCHUPALLA","NICASIO","LLALLI","TILALI","QUILCAPUNCU","CARACOTO","PATAMBUCO","CUTURAPI","JEPELACIO","HUALLAGA","SANTA ROSA","PISCOYACU","CAYNARACHI   ","PACHIZA","PILLUANA","NUEVA CAJAMARCA","CHAZUTA","SHUNTE","CIUDAD NUEVA","CURIBAYA",null,"ESTIQUE-PAMPA","PAMPAS DE HOSPITAL",null,"PAPAYAL","MASISEA","YURUA",null,null,null,{"$error":"#N/A"},{"$error":"#N/A"}]
["DIST",6,5,"CHILIQUIN","IMAZA","CUISPES",null,"CONILA","LIMABAMBA","JAMALCA","INDEPENDENCIA","SUCCHA","MIRGAS",null,"CAJACAY","ATAQUERO",null,null,"LA PAMPA","HUACACHI","MALVAS","MATO","LLAMA","COCHAS","HUANDOVAL",null,"LLACLLIN","CHINGALPO","QUILLO","HUANIPACA","HUANCARAY","OROPESA","COLCABAMBA","MARA","OCOBAMBA","MAMARA","CHARACATO","NICOLAS DE PIEROLA","BELLA UNION","CHILCAYMARCA","CAYLLOMA","IRAY","MEJIA","PAMPAMARCA","CHIARA","PARAS",null,"LURICOCHA","CHUNGUI","CHAVIÑA","PULLO","MARCABAMBA","HUACAÑA","CANARIA","HUAMBALPA","ENCAÑADA",null,"JORGE CHAVEZ","CHIMBAN","SAN BENITO","LA RAMADA",null,"HUABAL","NAMBALLE","ICHOCAN","EL PRADO",null,"LA ESPERANZA","LA PUNTA","SAN SEBASTIAN","POMACANCHI","HUAROCONDO","PISAC","LAYO","PITUMARCA","LIVITACA","PALLPATA","OCOBAMBA","HUANOQUITE","HUANCARANI","CCATCA","MARAS","CUENCA","MARCAS","CHINCHO","CHUPAMARCA","LA MERCED","LARAMARCA","COLCABAMBA","MARGOS","HUACAR","QUIVILLA",null,"JIRCAN","LUYANDO",null,null,"YUYAPICHIS","RONDOS","JACAS CHICO","PACHACUTEC","EL CARMEN","VISTA ALEGRE","TIBILLO","PARACAS","CHILCA","COCHAS","SAN RAMON","CANCHAYLLO",null,"PAMPA HERMOSA","LA UNION","MOROCOCHA","HUAMANCACA CHICO","LA ESPERANZA","PAIJAN","UCHUMARCA",null,null,"LA CUESTA","SAN JOSE","HUAYLILLAS","MARCABAL","MOLLEPATA",null,null,"JOSE LEONARDO ORTIZ","PITIPO","MOCHUMI","BREÑA","SUPE PUERTO","MANAS","LACHAQUI","CHILCA","CHANCAY","CHICLA","HUALMAY","NAVAN","AZANGARO","LAS AMAZONAS","SANTA CRUZ","URARINAS   ",null,"MAQUIA","SARAYACU","PASTAZA",null,null,null,"SAN CRISTOBAL","LA CAPILLA",null,"NINACACA","SAN PEDRO DE PILLAO","POZUZO","EL TALLAN","MONTERO","LALAQUIZ","MORROPON","LA HUACA","MARCAVELICA","LOS ORGANOS","VICE","CAPACHICA","CAMINACA","CORANI","PISACOMA","CONDURIRI","PUSI","OCUVIRI","MACARI",null,"SINA",null,"PHARA","OLLARAYA","SORITOR","SAN PABLO","SHATOJA","SACANCHE","CUÑUMBUQUI","PAJARILLO","PUCACACA","PARDO MIGUEL","CHIPURANA","UCHIZA","INCLAN","HUANUARA",null,"SITAJARA","SAN JACINTO",null,null,"YARINACOCHA",null,null,null,null,{"$error":"#N/A"},{"$error":"#N/A"}]
["DIST",7,6,"CHUQUIBAMBA","LA PECA","FLORIDA",null,"INGUILPATA","LONGAR","LONYA GRANDE","JANGAS",null,"SAN JUAN DE RONTOY",null,"CANIS","MARCARA",null,null,"YANAC","HUACCHIS",null,"PAMPAROMAS","LLUMPA","CONGAS","LACABAMBA",null,"MARCA","HUAYLLABAMBA","RANRAHIRCA","LAMBRAMA","HUAYANA","PACHACONAS","COTARUSE","CHALLHUAHUACHO","ONGOY","MICAELA BASTIDAS","CHIGUATA","OCOÑA","CAHUACHO","CHOCO","COPORAQUE","RIO GRANDE","PUNTA DE BOMBON","PUYCA","OCROS","TOTOS",null,"SANTILLANA","LUIS CARRANZA","CHIPAO","PUYUSCA","OYOLO","MORCOLLA","CAYARA","INDEPENDENCIA","JESUS",null,"JOSE GALVEZ","CHOROPAMPA","SANTA CRUZ DE TOLED","PIMPINGOS",null,"LAS PIRIAS","SAN JOSE DE LOURDES","JOSE MANUEL QUIROZ","LA FLORIDA",null,"NINABAMBA","VENTANILLA","SANTIAGO","RONDOCAN","LIMATAMBO","SAN SALVADOR","PAMPAMARCA","SAN PABLO","LLUSCO","PICHIGUA","QUELLOUNO","OMACHA","KOSÑIPATA","CUSIPATA","OLLANTAYTAMBO","HUACHOCOLPA","PAUCARA","CONGALLA","COCAS","LOCROJA","OCOYO","DANIEL HERNANDEZ","QUISQUI","SAN FRANCISCO","RIPAN",null,"MIRAFLORES","MARIANO DAMASO BERAUN",null,null,null,"SAN FRANCISCO DE ASIS","OBAS","PARCONA","GROCIO PRADO",null,null,"SAN ANDRES","CHONGOS ALTO","COMAS","VITOC","CURICACA",null,"PANGOA","PALCA","PACCHA","SAN JUAN DE ISCOS","LAREDO","RAZURI","UCUNCHA",null,null,"MACHE",null,"HUAYO","SANAGORAN","QUIRUVILCA",null,null,"LA VICTORIA","PUEBLO NUEVO","MORROPE","CARABAYLLO",null,null,"SAN BUENAVENTURA","COAYLLO","IHUARI","CUENCA","HUAURA","PACHANGARA","CACRA","MAZAN","TENIENTE CESAR LOPEZ ROJAS",null,null,"PUINAHUA","VARGAS GUERRA","ANDOAS ",null,null,null,"TORATA","LLOQUE",null,"PALLANCHACRA","SANTA ANA DE TUSI","PUERTO BERMUDEZ","LA ARENA","PACAIPAMPA","SAN MIGUEL DE EL FAIQUE","SALITRAL","TAMARINDO","MIGUEL CHECA","MANCORA","RINCONADA LLICUAR","CHUCUITO","CHUPA","CRUCERO","POMATA",null,"ROSASPATA","PALCA","NUÑOA",null,null,null,"QUIACA","TINICACHI","YANTALO","SAN RAFAEL",null,"TINGO DE SAPOSOA","PINTO RECODO",null,"SAN CRISTOBAL","POSIC","EL PORVENIR",null,"PACHIA","QUILAHUANI",null,"SUSAPAYA","SAN JUAN DE LA VIRGEN",null,null,"NUEVA REQUENA",null,null,null,null,{"$error":"#N/A"},{"$error":"#N/A"}]
["DIST",8,7,"GRANADA",null,"JAZAN",null,"LONGUITA","MARISCAL BENAVIDES","YAMON","LA LIBERTAD",null,null,null,"COLQUIOC","PARIAHUANCA",null,null,"YUPAN","HUACHIS",null,"PUEBLO LIBRE","LUCMA","LLIPA","LLAPO",null,"PAMPAS CHICO","QUICHES","SHUPLUY","PICHIRHUA","KISHUARA","SABAINO","HUAYLLO",null,"URANMARCA","PATAYPAMPA","JACOBO HUNTER","QUILCA","CHALA","HUANCARQUI","HUAMBO","SALAMANCA",null,"QUECHUALLA","PACAYCASA",null,null,"SIVIA","SANTA ROSA","HUAC-HUAS","SAN FRANCISCO DE RAVACAYCO","PARARCA","PAICO","COLCA","SAURAMA","LLACANORA",null,"MIGUEL IGLESIAS","COCHABAMBA","TANTARICA","QUEROCOTILLO",null,"POMAHUACA","TABACONAS","JOSE SABOGAL","LLAPA",null,"PULAN",null,"SAYLLA","SANGARARA","MOLLEPATA","TARAY","QUEHUE","SAN PEDRO","QUIÑOTA","SUYCKUTAMBO","KIMBIRI","PACCARITAMBO",null,"HUARO","YUCAY","HUAYLLAHUARA","POMACOCHA","HUANCA-HUANCA","HUACHOS","PAUCARBAMBA","PILPICHACA","HUACHOCOLPA","SAN FRANCISCO DE CAYRAN","SAN RAFAEL","SHUNQUI",null,"MONZON",null,null,null,null,"SAN MIGUEL DE CAURI","PAMPAMARCA","PUEBLO NUEVO","PUEBLO NUEVO",null,null,"SAN CLEMENTE","CHUPURO","HEROINAS TOLEDO",null,"EL MANTARO",null,"RIO NEGRO ","PALCAMAYO","SANTA BARBARA DE CARHUACAYA","SAN JUAN DE JARPA","MOCHE","SANTIAGO DE CAO",null,null,null,"PARANDAY",null,"ONGON","SARIN","SANTA CRUZ DE CHUCA",null,null,"LAGUNAS",null,"MOTUPE","CHACLACAYO",null,null,"SANTA ROSA DE QUIVES","IMPERIAL","LAMPIAN","HUACHUPAMPA","LEONCIO PRADO",null,"CARANIA","NAPO",null,null,null,"SAQUENA",null,null,null,null,null,null,"MATALAQUE",null,"PAUCARTAMBO","TAPUC","VILLA RICA","LA UNION","PAIMAS","SONDOR","SAN JUAN DE BIGOTE","VICHAYAL","QUERECOTILLO",null,null,"COATA","JOSE DOMINGO CHOQUEHUANCA","ITUATA  ","ZEPITA",null,"TARACO","PARATIA","ORURILLO",null,null,null,"SAN JUAN DEL ORO","UNICACHI",null,null,null,null,"RUMISAPA",null,"SAN HILARION","SAN FERNANDO","HUIMBAYOC",null,"PALCA",null,null,"TARUCACHI",null,null,null,"MANANTAY",null,null,null,null,{"$error":"#N/A"},{"$error":"#N/A"}]
["DIST",9,8,"HUANCAS",null,"RECTA",null,"LONYA CHICO","MILPUC",null,"OLLEROS",null,null,null,"HUALLANCA","SAN MIGUEL DE ACO",null,null,null,"HUANTAR",null,"SANTA CRUZ","MUSGA","SAN CRISTOBAL DE RAJAN","PALLASCA",null,"PARARIN","RAGASH","YANAMA","SAN PEDRO DE CACHORA","PACOBAMBA",null,"JUSTO APU SAHUARAURA",null,"RANRACANCHA","PROGRESO","LA JOYA","SAMUEL PASTOR","CHAPARRA","MACHAGUAY","HUANCA","YANAQUIHUA",null,"SAYLA","QUINUA",null,null,"LLOCHEGUA","TAMBO","LARAMATE","UPAHUACHO","SAN JAVIER DE ALPABAMBA","SAN PEDRO DE LARCAY","HUAMANQUIQUIA","VISCHONGO","LOS BAÑOS DEL INCA",null,"OXAMARCA","CONCHAN","YONAN","SAN ANDRES DE CUTERVO",null,"PUCARA",null,null,"NANCHOC",null,"SAUCEPAMPA",null,"WANCHAQ",null,"PUCYURA","YANATILE","TUPAC AMARU","TINTA","VELILLE","ALTO PICHIGUA","SANTA TERESA","PILLPINTO",null,"LUCRE",null,"IZCUCHACA","ROSARIO","HUAYLLAY GRANDE","HUAMATAMBO","SAN MIGUEL DE MAYOCC","QUERCO","HUARIBAMBA","SAN PEDRO DE CHAULAN","TOMAY KICHWA","SILLAPATA",null,"PUNCHAO",null,null,null,null,null,"CHORAS","SALAS","SAN JUAN DE YANAC",null,null,"TUPAC AMARU INCA","COLCA","MANZANARES",null,"HUAMALI",null,"RIO TAMBO","SAN PEDRO DE CAJAS","SANTA ROSA DE SACCO","TRES DE DICIEMBRE","POROTO","CASA GRANDE",null,null,null,"SALPO",null,"PARCOY","SARTIMBAMBA","SITABAMBA",null,null,"MONSEFU",null,"OLMOS","CHORRILLOS",null,null,null,"LUNAHUANA","PACARAOS","HUANZA","PACCHO",null,"CATAHUASI","PUNCHANA",null,null,null,"SOPLIN   ",null,null,null,null,null,null,"PUQUINA",null,"SAN FCO.DE ASIS DE YARUSYAC","VILCABAMBA",null,"LAS LOMAS","SAPILLICA","SONDORILLO","SANTA CATALINA DE MOSSA",null,"SALITRAL",null,null,"HUATA","MUÑANI","OLLACHEA",null,null,"VILQUE CHICO","PUCARA","SANTA ROSA",null,null,null,"YANAHUAYA",null,null,null,null,null,"SAN ROQUE DE CUMBAZA",null,"SHAMBOYACU","YORONGOS","JUAN GUERRA",null,"POCOLLAY",null,null,"TICACO",null,null,null,null,null,null,null,null,{"$error":"#N/A"},{"$error":"#N/A"}]
["DIST",10,9,"LA JALCA",null,"SAN CARLOS",null,"LUYA","OMIA",null,"PAMPAS",null,null,null,"HUASTA","SHILLA",null,null,null,"MASIN",null,"SANTO TORIBIO",null,"SAN PEDRO","PAMPAS",null,"TAPACOCHA","SAN JUAN",null,"TAMBURCO","PACUCHA",null,"LUCRE",null,null,"SAN ANTONIO","MARIANO MELGAR",null,"HUANUHUANU","ORCOPAMPA","ICHUPAMPA",null,null,"TAURIA","SAN JOSE DE TICLLAS",null,null,null,null,"LEONCIO PRADO",null,"SAN JOSE DE USHUA","SAN SALVADOR DE QUIJE","HUANCARAYLLA",null,"MAGDALENA",null,"SOROCHUCO","HUAMBOS",null,"SAN JUAN DE CUTERVO",null,"SALLIQUE",null,null,"NIEPOS",null,"SEXI",null,null,null,"ZURITE",null,null,null,null,null,"VILCABAMBA","YAURISQUE",null,"MARCAPATA",null,"LARIA",null,"JULCAMARCA","MOLLEPAMPA","SAN PEDRO DE CORIS","QUITO-ARMA","ÑAHUIMPUQUIO","SANTA MARIA DEL VALLE",null,"YANAS",null,"PUÑOS",null,null,null,null,null,null,"SAN JOSE DE LOS MOLINOS","SAN PEDRO DE HUACARPANA",null,null,null,"CULLHUAS","MARISCAL CASTILLA",null,"HUARIPAMPA",null,null,"TAPO","SUITUCANCHA","YANACANCHA","SALAVERRY",null,null,null,null,"SINSICAP",null,"PATAZ",null,null,null,null,"NUEVA ARICA",null,"PACORA","CIENEGUILLA",null,null,null,"MALA","SAN MIGUEL DE ACOS","HUAROCHIRI","SANTA LEONOR",null,"CHOCOS","PUTUMAYO    ",null,null,null,"TAPICHE",null,null,null,null,null,null,"QUINISTAQUILLAS",null,"SIMON BOLIVAR",null,null,"TAMBO GRANDE","SICCHEZ",null,"SANTO DOMINGO",null,null,null,null,"MAÑAZO","POTONI","SAN GABAN",null,null,null,"SANTA LUCIA","UMACHIRI",null,null,null,"ALTO INAMBARI",null,null,null,null,null,"SHANAO",null,"TINGO DE PONASA","YURACYACU","LA BANDA DE SHILCAYO",null,"SAMA",null,null,null,null,null,null,null,null,null,null,null,{"$error":"#N/A"},{"$error":"#N/A"}]
["DIST",11,10,"LEIMEBAMBA",null,"SHIPASBAMBA",null,"LUYA VIEJO","SANTA ROSA",null,"PARIACOTO",null,null,null,"HUAYLLACAYAN","TINCO",null,null,null,"PAUCAS",null,"YURACMARCA",null,"SANTIAGO DE CHILCAS","SANTA ROSA",null,"TICAPAMPA","SICSIBAMBA",null,null,"PAMPACHIRI",null,"POCOHUANCA",null,null,"SANTA ROSA","MIRAFLORES",null,"JAQUI","PAMPACOLCA","LARI",null,null,"TOMEPAMPA","SAN JUAN BAUTISTA",null,null,null,null,"LLAUTA",null,"SARA SARA","SANTIAGO DE PAUCARAY","HUAYA",null,"MATARA",null,"SUCRE","LAJAS",null,"SAN LUIS DE LUCMA",null,"SAN FELIPE",null,null,"SAN GREGORIO",null,"UTICYACU",null,null,null,null,null,null,null,null,null,"PICHARI",null,null,"OCONGATE",null,"MANTA",null,"SAN ANTONIO DE ANTAPARCO","SAN JUAN","PACHAMARCA","SAN ANTONIO DE CUSICANCHA","PAZOS","YARUMAYO",null,null,null,"SINGA",null,null,null,null,null,null,"SAN JUAN BAUTISTA","SUNAMPE",null,null,null,"EL TAMBO","MATAHUASI",null,"HUERTAS",null,null,null,"YAULI",null,"SIMBAL",null,null,null,null,"USQUIL",null,"PIAS",null,null,null,null,"OYOTUN",null,"SALAS","COMAS",null,null,null,"NUEVO IMPERIAL","SANTA CRUZ DE ANDAMARCA","LAHUAYTAMBO","SANTA MARIA",null,"COCHAS","TORRES CAUSANA",null,null,null,"JENARO HERRERA",null,null,null,null,null,null,"UBINAS",null,"TICLACAYAN",null,null,null,"SUYO",null,"YAMANGO",null,null,null,null,"PAUCARCOLLA","SAMAN","USICAYOS",null,null,null,"VILAVILA",null,null,null,null,"SAN PEDRO DE PUTINA PUNCU",null,null,null,null,null,"TABALOSOS",null,"TRES UNIDOS",null,"MORALES",null,"CRNEL.GREGORIO ALBARRACIN LANCHIPA",null,null,null,null,null,null,null,null,null,null,null,{"$error":"#N/A"},{"$error":"#N/A"}]
["DIST",12,11,"LEVANTO",null,"VALERA",null,"MARIA","TOTORA",null,"PIRA",null,null,null,"LA PRIMAVERA","YUNGAR",null,null,null,"PONTO",null,null,null,null,"TAUCA",null,"SANTA",null,null,null,"POMACOCHA",null,"SAN JUAN DE CHACÑA",null,null,"TURPAY","MOLLEBAYA",null,"LOMAS","TIPAN","LLUTA",null,null,"TORO","SANTIAGO DE PISCHA",null,null,null,null,"LUCANAS",null,null,"SORAS","SARHUA",null,"NAMORA",null,"UTCO","LLAMA",null,"SANTA CRUZ",null,"SAN JOSE DEL ALTO",null,null,"SAN SILVESTRE DE COCHAN",null,"YAUYUCAN",null,null,null,null,null,null,null,null,null,null,null,null,"OROPESA",null,"MARISCAL CACERES",null,"SANTO TOMAS DE PATA","SANTA ANA",null,"SAN FRANCISCO DE SANGAYAICO","QUISHUAR","PILLCO MARCA",null,null,null,"TANTAMAYO",null,null,null,null,null,null,"SANTIAGO","TAMBO DE MORA",null,null,null,"HUACRAPUQUIO","MITO",null,"JANJAILLO",null,null,null,null,null,"VICTOR LARCO HERRERA",null,null,null,null,null,null,"SANTIAGO DE CHALLAS",null,null,null,null,"PICSI",null,"SAN JOSE","EL AGUSTINO",null,null,null,"PACARAN","SUMBILCA","LANGA","SAYAN",null,"COLONIA","BELEN",null,null,null,"YAQUERANA   ",null,null,null,null,null,null,"YUNGA",null,"TINYAHUARCO",null,null,null,null,null,null,null,null,null,null,"PICHACANI","SAN ANTON",null,null,null,null,null,null,null,null,null,null,null,null,null,null,null,"ZAPATERO",null,null,null,"PAPAPLAYA",null,null,null,null,null,null,null,null,null,null,null,null,null,{"$error":"#N/A"},{"$error":"#N/A"}]
["DIST",13,12,"MAGDALENA",null,"YAMBRASBAMBA",null,"OCALLI","VISTA ALEGRE",null,"TARICA",null,null,null,"MANGAS",null,null,null,null,"RAHUAPAMPA",null,null,null,null,null,null,"CHIMBOTE",null,null,null,"SAN ANTONIO DE CACHI",null,"SAÑAYCA",null,null,"VILCABAMBA","PAUCARPATA",null,"QUICACHA","UÑON","MACA",null,null,null,"SOCOS",null,null,null,null,"OCAÑA",null,null,null,"VILCANCHOS",null,"SAN JUAN",null,"LA LIBERTAD DE PALLAN","MIRACOSTA",null,"SANTO DOMINGO DE LA CAPILLA",null,"SANTA ROSA",null,null,"TONGOD",null,null,null,null,null,null,null,null,null,null,null,null,null,null,"QUIQUIJANA",null,"MOYA",null,"SECCLLA","TANTARA",null,"SAN ISIDRO","SALCABAMBA",null,null,null,null,null,null,null,null,null,null,null,"SUBTANJALLA",null,null,null,null,"HUALHUAS","NUEVE DE JULIO",null,"JULCAN",null,null,null,null,null,null,null,null,null,null,null,null,"TAURIJA",null,null,null,null,"PIMENTEL",null,"TUCUME","INDEPENDENCIA",null,null,null,"QUILMANA","VEINTISIETE DE NOVIEMBRE","LARAOS","VEGUETA",null,"HONGOS","SAN JUAN BAUTISTA",null,null,null,null,null,null,null,null,null,null,null,null,"VICCO",null,null,null,null,null,null,null,null,null,null,"PLATERIA","SAN JOSE",null,null,null,null,null,null,null,null,null,null,null,null,null,null,null,null,null,null,null,"SAN ANTONIO",null,null,null,null,null,null,null,null,null,null,null,null,null,{"$error":"#N/A"},{"$error":"#N/A"}]
["DIST",14,13,"MARISCAL CASTILLA",null,null,null,"OCUMAL",null,null,null,null,null,null,"PACLLON",null,null,null,null,"RAPAYAN",null,null,null,null,null,null,"CACERES DEL PERU",null,null,null,"SAN JERONIMO",null,"SORAYA",null,null,"VIRUNDO","POCSI",null,"YAUCA","URACA","MADRIGAL",null,null,null,"TAMBILLO",null,null,null,null,"OTOCA",null,null,null,null,null,null,null,null,"PACCHA",null,"SANTO TOMAS",null,null,null,null,"UNION AGUA BLANCA",null,null,null,null,null,null,null,null,null,null,null,null,null,null,null,null,"NUEVO OCCORO",null,null,"TICRAPO",null,"SANTIAGO DE CHOCORVOS","SALCAHUASI",null,null,null,null,null,null,null,null,null,null,null,"TATE",null,null,null,null,"HUANCAN","ORCOTUNA",null,"LEONOR ORDOÑEZ",null,null,null,null,null,null,null,null,null,null,null,null,"URPAY",null,null,null,null,"REQUE",null,null,"JESUS MARIA",null,null,null,"SAN ANTONIO",null,"MARIATANA",null,null,"HUAMPARA","TENIENTE MANUEL CLAVERO ",null,null,null,null,null,null,null,null,null,null,null,null,"YANACANCHA",null,null,null,null,null,null,null,null,null,null,"SAN ANTONIO","SAN JUAN DE SALINAS",null,null,null,null,null,null,null,null,null,null,null,null,null,null,null,null,null,null,null,"SAUCE",null,null,null,null,null,null,null,null,null,null,null,null,null,{"$error":"#N/A"},{"$error":"#N/A"}]
["DIST",15,14,"MOLINOPAMPA",null,null,null,"PISUQUIA",null,null,null,null,null,null,"SAN MIGUEL DE CORPANQUI",null,null,null,null,"SAN MARCOS",null,null,null,null,null,null,"COISHCO",null,null,null,"SAN MIGUEL DE CHACCRAMPA",null,"TAPAIRIHUA",null,null,"CURASCO","POLOBAYA",null,null,"VIRACO","SAN ANTONIO DE CHUCA ",null,null,null,"VINCHOS",null,null,null,null,"SAISA",null,null,null,null,null,null,null,null,"PION",null,"SOCOTA",null,null,null,null,null,null,null,null,null,null,null,null,null,null,null,null,null,null,null,null,null,"PALCA",null,null,null,null,"SANTIAGO DE QUIRAHUARA","SAN MARCOS DE ROCCHAC",null,null,null,null,null,null,null,null,null,null,null,"YAUCA DEL ROSARIO ",null,null,null,null,"HUASICANCHA","SAN JOSE DE QUERO",null,"LLOCLLAPAMPA",null,null,null,null,null,null,null,null,null,null,null,null,null,null,null,null,null,"SANTA ROSA",null,null,"LA MOLINA",null,null,null,"SAN LUIS",null,"RICARDO PALMA",null,null,"HUANCAYA",null,null,null,null,null,null,null,null,null,null,null,null,null,null,null,null,null,null,null,null,null,null,null,null,"TIQUILLACA","SANTIAGO DE PUPUJA",null,null,null,null,null,null,null,null,null,null,null,null,null,null,null,null,null,null,null,"SHAPAJA",null,null,null,null,null,null,null,null,null,null,null,null,null,{"$error":"#N/A"},{"$error":"#N/A"}]
["DIST",16,15,"MONTEVIDEO",null,null,null,"PROVIDENCIA",null,null,null,null,null,null,"TICLLOS",null,null,null,null,"SAN PEDRO DE CHANA",null,null,null,null,null,null,"MACATE",null,null,null,"SANTA MARIA DE CHICMO",null,"TINTAY",null,null,null,"QUEQUEÑA",null,null,null,"SIBAYO",null,null,null,"JESUS NAZARENO",null,null,null,null,"SAN CRISTOBAL",null,null,null,null,null,null,null,null,"QUEROCOTO",null,"TORIBIO CASANOVA",null,null,null,null,null,null,null,null,null,null,null,null,null,null,null,null,null,null,null,null,null,"PILCHACA",null,null,null,null,"SANTO DOMINGO DE CAPILLAS","SURCUBAMBA",null,null,null,null,null,null,null,null,null,null,null,null,null,null,null,null,"HUAYUCACHI","SANTA ROSA DE OCOPA",null,"MARCO",null,null,null,null,null,null,null,null,null,null,null,null,null,null,null,null,null,"SAÑA",null,null,"LA VICTORIA",null,null,null,"SANTA CRUZ DE FLORES",null,"SAN ANDRES DE TUPICOCHA",null,null,"HUANGASCAR",null,null,null,null,null,null,null,null,null,null,null,null,null,null,null,null,null,null,null,null,null,null,null,null,"VILQUE","TIRAPATA",null,null,null,null,null,null,null,null,null,null,null,null,null,null,null,null,null,null,null,null,null,null,null,null,null,null,null,null,null,null,null,null,null,{"$error":"#N/A"},{"$error":"#N/A"}]
["DIST",17,16,"OLLEROS",null,null,null,"SAN CRISTOBAL",null,null,null,null,null,null,null,null,null,null,null,"UCO",null,null,null,null,null,null,"MORO",null,null,null,"TALAVERA",null,"TORAYA",null,null,null,"SABANDIA",null,null,null,"TAPAY",null,null,null,null,null,null,null,null,"SAN JUAN",null,null,null,null,null,null,null,null,"SAN JUAN DE LICUPIS",null,null,null,null,null,null,null,null,null,null,null,null,null,null,null,null,null,null,null,null,null,null,null,"VILCA",null,null,null,null,"TAMBO","TINTAY PUNCU",null,null,null,null,null,null,null,null,null,null,null,null,null,null,null,null,"INGENIO",null,null,"MASMA",null,null,null,null,null,null,null,null,null,null,null,null,null,null,null,null,null,"CAYALTI",null,null,"LINCE",null,null,null,"ZUÑIGA",null,"SAN ANTONIO",null,null,"HUANTAN",null,null,null,null,null,null,null,null,null,null,null,null,null,null,null,null,null,null,null,null,null,null,null,null,null,null,null,null,null,null,null,null,null,null,null,null,null,null,null,null,null,null,null,null,null,null,null,null,null,null,null,null,null,null,null,null,null,null,null,{"$error":"#N/A"},{"$error":"#N/A"}]
["DIST",18,17,"QUINJALCA",null,null,null,"SAN FRANCISCO DEL YESO",null,null,null,null,null,null,null,null,null,null,null,null,null,null,null,null,null,null,"NEPEÑA",null,null,null,"TUMAY HUARACA",null,"YANACA",null,null,null,"SACHACA",null,null,null,"TISCO",null,null,null,null,null,null,null,null,"SAN PEDRO",null,null,null,null,null,null,null,null,"TACABAMBA",null,null,null,null,null,null,null,null,null,null,null,null,null,null,null,null,null,null,null,null,null,null,null,"YAULI 9/",null,null,null,null,null,null,null,null,null,null,null,null,null,null,null,null,null,null,null,null,null,null,"PARIAHUANCA   ",null,null,"MASMA CHICCHE",null,null,null,null,null,null,null,null,null,null,null,null,null,null,null,null,null,"PATAPO",null,null,"LOS OLIVOS",null,null,null,null,null,"SAN BARTOLOME",null,null,"HUAÑEC",null,null,null,null,null,null,null,null,null,null,null,null,null,null,null,null,null,null,null,null,null,null,null,null,null,null,null,null,null,null,null,null,null,null,null,null,null,null,null,null,null,null,null,null,null,null,null,null,null,null,null,null,null,null,null,null,null,null,null,{"$error":"#N/A"},{"$error":"#N/A"}]
["DIST",19,18,"SAN FRANCISCO DE DAGUAS",null,null,null,"SAN JERONIMO",null,null,null,null,null,null,null,null,null,null,null,null,null,null,null,null,null,null,"SAMANCO",null,null,null,"TURPO",null,null,null,null,null,"SAN JUAN DE SIGUAS",null,null,null,"TUTI",null,null,null,null,null,null,null,null,"SAN PEDRO DE PALCO",null,null,null,null,null,null,null,null,"TOCMOCHE",null,null,null,null,null,null,null,null,null,null,null,null,null,null,null,null,null,null,null,null,null,null,null,"ASCENSION",null,null,null,null,null,null,null,null,null,null,null,null,null,null,null,null,null,null,null,null,null,null,"PILCOMAYO",null,null,"MOLINOS",null,null,null,null,null,null,null,null,null,null,null,null,null,null,null,null,null,"POMALCA",null,null,"LURIGANCHO",null,null,null,null,null,"SAN DAMIAN",null,null,"LARAOS",null,null,null,null,null,null,null,null,null,null,null,null,null,null,null,null,null,null,null,null,null,null,null,null,null,null,null,null,null,null,null,null,null,null,null,null,null,null,null,null,null,null,null,null,null,null,null,null,null,null,null,null,null,null,null,null,null,null,null,{"$error":"#N/A"},{"$error":"#N/A"}]
["DIST",20,19,"SAN ISIDRO DE MAINO",null,null,null,"SAN JUAN DE LOPECANCHA",null,null,null,null,null,null,null,null,null,null,null,null,null,null,null,null,null,null,"SANTA",null,null,null,"KAQUIABAMBA",null,null,null,null,null,"SAN JUAN DE TARUCANI",null,null,null,"YANQUE",null,null,null,null,null,null,null,null,"SANCOS",null,null,null,null,null,null,null,null,"CHALAMARCA",null,null,null,null,null,null,null,null,null,null,null,null,null,null,null,null,null,null,null,null,null,null,null,"HUANDO",null,null,null,null,null,null,null,null,null,null,null,null,null,null,null,null,null,null,null,null,null,null,"PUCARA",null,null,"MONOBAMBA",null,null,null,null,null,null,null,null,null,null,null,null,null,null,null,null,null,"PUCALA",null,null,"LURIN",null,null,null,null,null,"SAN JUAN DE IRIS",null,null,"LINCHA",null,null,null,null,null,null,null,null,null,null,null,null,null,null,null,null,null,null,null,null,null,null,null,null,null,null,null,null,null,null,null,null,null,null,null,null,null,null,null,null,null,null,null,null,null,null,null,null,null,null,null,null,null,null,null,null,null,null,null,{"$error":"#N/A"},{"$error":"#N/A"}]
["DIST",21,20,"SOLOCO",null,null,null,"SANTA CATALINA",null,null,null,null,null,null,null,null,null,null,null,null,null,null,null,null,null,null,"NUEVO CHIMBOTE",null,null,null,null,null,null,null,null,null,"SANTA ISABEL DE SIGUAS",null,null,null,"MAJES",null,null,null,null,null,null,null,null,"SANTA ANA DE HUAYCAHUACHO",null,null,null,null,null,null,null,null,null,null,null,null,null,null,null,null,null,null,null,null,null,null,null,null,null,null,null,null,null,null,null,null,null,null,null,null,null,null,null,null,null,null,null,null,null,null,null,null,null,null,null,null,null,null,null,"QUICHUAY",null,null,"MUQUI",null,null,null,null,null,null,null,null,null,null,null,null,null,null,null,null,null,"TUMAN",null,null,"MAGDALENA DEL MAR",null,null,null,null,null,"SAN JUAN DE TANTARANCHE",null,null,"MADEAN",null,null,null,null,null,null,null,null,null,null,null,null,null,null,null,null,null,null,null,null,null,null,null,null,null,null,null,null,null,null,null,null,null,null,null,null,null,null,null,null,null,null,null,null,null,null,null,null,null,null,null,null,null,null,null,null,null,null,null,{"$error":"#N/A"},{"$f":"IF(GQ24=0,\"\",HLOOKUP($GR$4,$D$4:$GO$47,B24,FALSE))","v":{"$error":"#N/A"}}]
["DIST",22,21,"SONCHE",null,null,null,"SANTO TOMAS",null,null,null,null,null,null,null,null,null,null,null,null,null,null,null,null,null,null,null,null,null,null,null,null,null,null,null,null,"SANTA RITA DE SIGUAS",null,null,null,null,null,null,null,null,null,null,null,null,"SANTA LUCIA",null,null,null,null,null,null,null,null,null,null,null,null,null,null,null,null,null,null,null,null,null,null,null,null,null,null,null,null,null,null,null,null,null,null,null,null,null,null,null,null,null,null,null,null,null,null,null,null,null,null,null,null,null,null,null,"QUILCAS",null,null,"MUQUIYAUYO",null,null,null,null,null,null,null,null,null,null,null,null,null,null,null,null,null,null,null,null,"MAGDALENA VIEJA",null,null,null,null,null,"SAN LORENZO DE QUINTI",null,null,"MIRAFLORES",null,null,null,null,null,null,null,null,null,null,null,null,null,null,null,null,null,null,null,null,null,null,null,null,null,null,null,null,null,null,null,null,null,null,null,null,null,null,null,null,null,null,null,null,null,null,null,null,null,null,null,null,null,null,null,null,null,null,null,{"$error":"#N/A"},{"$error":"#N/A"}]
["PROV",23,22,null,null,null,null,"TINGO",null,null,null,null,null,null,null,null,null,null,null,null,null,null,null,null,null,null,null,null,null,null,null,null,null,null,null,null,"SOCABAYA",null,null,null,null,null,null,null,null,null,null,null,null,null,null,null,null,null,null,null,null,null,null,null,null,null,null,null,null,null,null,null,null,null,null,null,null,null,null,null,null,null,null,null,null,null,null,null,null,null,null,null,null,null,null,null,null,null,null,null,null,null,null,null,null,null,null,null,null,"SAN AGUSTIN",null,null,"PACA",null,null,null,null,null,null,null,null,null,null,null,null,null,null,null,null,null,null,null,null,"MIRAFLORES",null,null,null,null,null,"SAN MATEO",null,null,"OMAS",null,null,null,null,null,null,null,null,null,null,null,null,null,null,null,null,null,null,null,null,null,null,null,null,null,null,null,null,null,null,null,null,null,null,null,null,null,null,null,null,null,null,null,null,null,null,null,null,null,null,null,null,null,null,null,null,null,null,null,{"$error":"#N/A"},{"$error":"#N/A"}]
["DIST",24,23,null,null,null,null,"TRITA",null,null,null,null,null,null,null,null,null,null,null,null,null,null,null,null,null,null,null,null,null,null,null,null,null,null,null,null,"TIABAYA",null,null,null,null,null,null,null,null,null,null,null,null,null,null,null,null,null,null,null,null,null,null,null,null,null,null,null,null,null,null,null,null,null,null,null,null,null,null,null,null,null,null,null,null,null,null,null,null,null,null,null,null,null,null,null,null,null,null,null,null,null,null,null,null,null,null,null,null,"SAN JERONIMO DE TUNAN",null,null,"PACCHA",null,null,null,null,null,null,null,null,null,null,null,null,null,null,null,null,null,null,null,null,"PACHACAMAC",null,null,null,null,null,"SAN MATEO DE OTAO",null,null,"PUTINZA",null,null,null,null,null,null,null,null,null,null,null,null,null,null,null,null,null,null,null,null,null,null,null,null,null,null,null,null,null,null,null,null,null,null,null,null,null,null,null,null,null,null,null,null,null,null,null,null,null,null,null,null,null,null,null,null,null,null,null,{"$error":"#N/A"},{"$error":"#N/A"}]
["DIST",25,24,null,null,null,null,null,null,null,null,null,null,null,null,null,null,null,null,null,null,null,null,null,null,null,null,null,null,null,null,null,null,null,null,null,"UCHUMAYO",null,null,null,null,null,null,null,null,null,null,null,null,null,null,null,null,null,null,null,null,null,null,null,null,null,null,null,null,null,null,null,null,null,null,null,null,null,null,null,null,null,null,null,null,null,null,null,null,null,null,null,null,null,null,null,null,null,null,null,null,null,null,null,null,null,null,null,null,"SAÑO",null,null,"PANCAN",null,null,null,null,null,null,null,null,null,null,null,null,null,null,null,null,null,null,null,null,"PUCUSANA",null,null,null,null,null,"SAN PEDRO DE CASTA",null,null,"QUINCHES",null,null,null,null,null,null,null,null,null,null,null,null,null,null,null,null,null,null,null,null,null,null,null,null,null,null,null,null,null,null,null,null,null,null,null,null,null,null,null,null,null,null,null,null,null,null,null,null,null,null,null,null,null,null,null,null,null,null,null,{"$error":"#N/A"},{"$error":"#N/A"}]
["DIST",26,25,null,null,null,null,null,null,null,null,null,null,null,null,null,null,null,null,null,null,null,null,null,null,null,null,null,null,null,null,null,null,null,null,null,"VITOR  ",null,null,null,null,null,null,null,null,null,null,null,null,null,null,null,null,null,null,null,null,null,null,null,null,null,null,null,null,null,null,null,null,null,null,null,null,null,null,null,null,null,null,null,null,null,null,null,null,null,null,null,null,null,null,null,null,null,null,null,null,null,null,null,null,null,null,null,null,"SAPALLANGA",null,null,"PARCO",null,null,null,null,null,null,null,null,null,null,null,null,null,null,null,null,null,null,null,null,"PUENTE PIEDRA",null,null,null,null,null,"SAN PEDRO DE HUANCAYRE",null,null,"QUINOCAY",null,null,null,null,null,null,null,null,null,null,null,null,null,null,null,null,null,null,null,null,null,null,null,null,null,null,null,null,null,null,null,null,null,null,null,null,null,null,null,null,null,null,null,null,null,null,null,null,null,null,null,null,null,null,null,null,null,null,null,{"$error":"#N/A"},{"$error":"#N/A"}]
["DIST",27,26,null,null,null,null,null,null,null,null,null,null,null,null,null,null,null,null,null,null,null,null,null,null,null,null,null,null,null,null,null,null,null,null,null,"YANAHUARA",null,null,null,null,null,null,null,null,null,null,null,null,null,null,null,null,null,null,null,null,null,null,null,null,null,null,null,null,null,null,null,null,null,null,null,null,null,null,null,null,null,null,null,null,null,null,null,null,null,null,null,null,null,null,null,null,null,null,null,null,null,null,null,null,null,null,null,null,"SICAYA",null,null,"POMACANCHA",null,null,null,null,null,null,null,null,null,null,null,null,null,null,null,null,null,null,null,null,"PUNTA HERMOSA",null,null,null,null,null,"SANGALLAYA",null,null,"SAN JOAQUIN",null,null,null,null,null,null,null,null,null,null,null,null,null,null,null,null,null,null,null,null,null,null,null,null,null,null,null,null,null,null,null,null,null,null,null,null,null,null,null,null,null,null,null,null,null,null,null,null,null,null,null,null,null,null,null,null,null,null,null,{"$error":"#N/A"},{"$error":"#N/A"}]
["DIST",28,27,null,null,null,null,null,null,null,null,null,null,null,null,null,null,null,null,null,null,null,null,null,null,null,null,null,null,null,null,null,null,null,null,null,"YARABAMBA",null,null,null,null,null,null,null,null,null,null,null,null,null,null,null,null,null,null,null,null,null,null,null,null,null,null,null,null,null,null,null,null,null,null,null,null,null,null,null,null,null,null,null,null,null,null,null,null,null,null,null,null,null,null,null,null,null,null,null,null,null,null,null,null,null,null,null,null,"SANTO DOMINGO DE ACOBAMBA",null,null,"RICRAN",null,null,null,null,null,null,null,null,null,null,null,null,null,null,null,null,null,null,null,null,"PUNTA NEGRA",null,null,null,null,null,"SANTA CRUZ DE COCACHACRA",null,null,"SAN PEDRO DE PILAS",null,null,null,null,null,null,null,null,null,null,null,null,null,null,null,null,null,null,null,null,null,null,null,null,null,null,null,null,null,null,null,null,null,null,null,null,null,null,null,null,null,null,null,null,null,null,null,null,null,null,null,null,null,null,null,null,null,null,null,{"$error":"#N/A"},{"$error":"#N/A"}]
["DIST",29,28,null,null,null,null,null,null,null,null,null,null,null,null,null,null,null,null,null,null,null,null,null,null,null,null,null,null,null,null,null,null,null,null,null,"YURA",null,null,null,null,null,null,null,null,null,null,null,null,null,null,null,null,null,null,null,null,null,null,null,null,null,null,null,null,null,null,null,null,null,null,null,null,null,null,null,null,null,null,null,null,null,null,null,null,null,null,null,null,null,null,null,null,null,null,null,null,null,null,null,null,null,null,null,null,"VIQUES",null,null,"SAN LORENZO",null,null,null,null,null,null,null,null,null,null,null,null,null,null,null,null,null,null,null,null,"RIMAC",null,null,null,null,null,"SANTA EULALIA",null,null,"TANTA",null,null,null,null,null,null,null,null,null,null,null,null,null,null,null,null,null,null,null,null,null,null,null,null,null,null,null,null,null,null,null,null,null,null,null,null,null,null,null,null,null,null,null,null,null,null,null,null,null,null,null,null,null,null,null,null,null,null,null,{"$error":"#N/A"},{"$error":"#N/A"}]
["DIST",30,29,null,null,null,null,null,null,null,null,null,null,null,null,null,null,null,null,null,null,null,null,null,null,null,null,null,null,null,null,null,null,null,null,null,"JOSE LUIS BUSTAMANTE Y RIVERO",null,null,null,null,null,null,null,null,null,null,null,null,null,null,null,null,null,null,null,null,null,null,null,null,null,null,null,null,null,null,null,null,null,null,null,null,null,null,null,null,null,null,null,null,null,null,null,null,null,null,null,null,null,null,null,null,null,null,null,null,null,null,null,null,null,null,null,null,null,null,null,"SAN PEDRO DE CHUNAN",null,null,null,null,null,null,null,null,null,null,null,null,null,null,null,null,null,null,null,null,"SAN BARTOLO",null,null,null,null,null,"SANTIAGO DE ANCHUCAYA",null,null,"TAURIPAMPA",null,null,null,null,null,null,null,null,null,null,null,null,null,null,null,null,null,null,null,null,null,null,null,null,null,null,null,null,null,null,null,null,null,null,null,null,null,null,null,null,null,null,null,null,null,null,null,null,null,null,null,null,null,null,null,null,null,null,null,{"$error":"#N/A"},{"$error":"#N/A"}]
["DIST",31,30,null,null,null,null,null,null,null,null,null,null,null,null,null,null,null,null,null,null,null,null,null,null,null,null,null,null,null,null,null,null,null,null,null,null,null,null,null,null,null,null,null,null,null,null,null,null,null,null,null,null,null,null,null,null,null,null,null,null,null,null,null,null,null,null,null,null,null,null,null,null,null,null,null,null,null,null,null,null,null,null,null,null,null,null,null,null,null,null,null,null,null,null,null,null,null,null,null,null,null,null,null,null,null,null,null,"SAUSA",null,null,null,null,null,null,null,null,null,null,null,null,null,null,null,null,null,null,null,null,"SAN BORJA",null,null,null,null,null,"SANTIAGO DE TUNA",null,null,"TOMAS",null,null,null,null,null,null,null,null,null,null,null,null,null,null,null,null,null,null,null,null,null,null,null,null,null,null,null,null,null,null,null,null,null,null,null,null,null,null,null,null,null,null,null,null,null,null,null,null,null,null,null,null,null,null,null,null,null,null,null,{"$error":"#N/A"},{"$error":"#N/A"}]
["DIST",32,31,null,null,null,null,null,null,null,null,null,null,null,null,null,null,null,null,null,null,null,null,null,null,null,null,null,null,null,null,null,null,null,null,null,null,null,null,null,null,null,null,null,null,null,null,null,null,null,null,null,null,null,null,null,null,null,null,null,null,null,null,null,null,null,null,null,null,null,null,null,null,null,null,null,null,null,null,null,null,null,null,null,null,null,null,null,null,null,null,null,null,null,null,null,null,null,null,null,null,null,null,null,null,null,null,null,"SINCOS",null,null,null,null,null,null,null,null,null,null,null,null,null,null,null,null,null,null,null,null,"SAN ISIDRO",null,null,null,null,null,"SANTO DOMINGO DE LOS OLLERO",null,null,"TUPE",null,null,null,null,null,null,null,null,null,null,null,null,null,null,null,null,null,null,null,null,null,null,null,null,null,null,null,null,null,null,null,null,null,null,null,null,null,null,null,null,null,null,null,null,null,null,null,null,null,null,null,null,null,null,null,null,null,null,null,{"$error":"#N/A"},{"$error":"#N/A"}]
["PROV",33,32,null,null,null,null,null,null,null,null,null,null,null,null,null,null,null,null,null,null,null,null,null,null,null,null,null,null,null,null,null,null,null,null,null,null,null,null,null,null,null,null,null,null,null,null,null,null,null,null,null,null,null,null,null,null,null,null,null,null,null,null,null,null,null,null,null,null,null,null,null,null,null,null,null,null,null,null,null,null,null,null,null,null,null,null,null,null,null,null,null,null,null,null,null,null,null,null,null,null,null,null,null,null,null,null,null,"TUNAN MARCA",null,null,null,null,null,null,null,null,null,null,null,null,null,null,null,null,null,null,null,null,"SAN JUAN DE LURIGANCHO",null,null,null,null,null,"SURCO",null,null,"VIÑAC",null,null,null,null,null,null,null,null,null,null,null,null,null,null,null,null,null,null,null,null,null,null,null,null,null,null,null,null,null,null,null,null,null,null,null,null,null,null,null,null,null,null,null,null,null,null,null,null,null,null,null,null,null,null,null,null,null,null,null,{"$error":"#N/A"},{"$error":"#N/A"}]
["DIST",34,33,null,null,null,null,null,null,null,null,null,null,null,null,null,null,null,null,null,null,null,null,null,null,null,null,null,null,null,null,null,null,null,null,null,null,null,null,null,null,null,null,null,null,null,null,null,null,null,null,null,null,null,null,null,null,null,null,null,null,null,null,null,null,null,null,null,null,null,null,null,null,null,null,null,null,null,null,null,null,null,null,null,null,null,null,null,null,null,null,null,null,null,null,null,null,null,null,null,null,null,null,null,null,null,null,null,"YAULI",null,null,null,null,null,null,null,null,null,null,null,null,null,null,null,null,null,null,null,null,"SAN JUAN DE MIRAFLORES",null,null,null,null,null,null,null,null,"VITIS",null,null,null,null,null,null,null,null,null,null,null,null,null,null,null,null,null,null,null,null,null,null,null,null,null,null,null,null,null,null,null,null,null,null,null,null,null,null,null,null,null,null,null,null,null,null,null,null,null,null,null,null,null,null,null,null,null,null,null,{"$error":"#N/A"},{"$error":"#N/A"}]
["DIST",35,34,null,null,null,null,null,null,null,null,null,null,null,null,null,null,null,null,null,null,null,null,null,null,null,null,null,null,null,null,null,null,null,null,null,null,null,null,null,null,null,null,null,null,null,null,null,null,null,null,null,null,null,null,null,null,null,null,null,null,null,null,null,null,null,null,null,null,null,null,null,null,null,null,null,null,null,null,null,null,null,null,null,null,null,null,null,null,null,null,null,null,null,null,null,null,null,null,null,null,null,null,null,null,null,null,null,"YAUYOS",null,null,null,null,null,null,null,null,null,null,null,null,null,null,null,null,null,null,null,null,"SAN LUIS",null,null,null,null,null,null,null,null,null,null,null,null,null,null,null,null,null,null,null,null,null,null,null,null,null,null,null,null,null,null,null,null,null,null,null,null,null,null,null,null,null,null,null,null,null,null,null,null,null,null,null,null,null,null,null,null,null,null,null,null,null,null,null,null,null,null,null,null,{"$error":"#N/A"},{"$error":"#N/A"}]
["DIST",36,35,null,null,null,null,null,null,null,null,null,null,null,null,null,null,null,null,null,null,null,null,null,null,null,null,null,null,null,null,null,null,null,null,null,null,null,null,null,null,null,null,null,null,null,null,null,null,null,null,null,null,null,null,null,null,null,null,null,null,null,null,null,null,null,null,null,null,null,null,null,null,null,null,null,null,null,null,null,null,null,null,null,null,null,null,null,null,null,null,null,null,null,null,null,null,null,null,null,null,null,null,null,null,null,null,null,null,null,null,null,null,null,null,null,null,null,null,null,null,null,null,null,null,null,null,null,null,"SAN MARTIN DE PORRES",null,null,null,null,null,null,null,null,null,null,null,null,null,null,null,null,null,null,null,null,null,null,null,null,null,null,null,null,null,null,null,null,null,null,null,null,null,null,null,null,null,null,null,null,null,null,null,null,null,null,null,null,null,null,null,null,null,null,null,null,null,null,null,null,null,null,null,null,{"$error":"#N/A"},{"$f":"IF(GQ39=0,\"\",HLOOKUP($GR$4,$D$4:$GO$47,B39,FALSE))","v":{"$error":"#N/A"}}]
["DIST",37,36,null,null,null,null,null,null,null,null,null,null,null,null,null,null,null,null,null,null,null,null,null,null,null,null,null,null,null,null,null,null,null,null,null,null,null,null,null,null,null,null,null,null,null,null,null,null,null,null,null,null,null,null,null,null,null,null,null,null,null,null,null,null,null,null,null,null,null,null,null,null,null,null,null,null,null,null,null,null,null,null,null,null,null,null,null,null,null,null,null,null,null,null,null,null,null,null,null,null,null,null,null,null,null,null,null,null,null,null,null,null,null,null,null,null,null,null,null,null,null,null,null,null,null,null,null,null,"SAN MIGUEL",null,null,null,null,null,null,null,null,null,null,null,null,null,null,null,null,null,null,null,null,null,null,null,null,null,null,null,null,null,null,null,null,null,null,null,null,null,null,null,null,null,null,null,null,null,null,null,null,null,null,null,null,null,null,null,null,null,null,null,null,null,null,null,null,null,null,null,null,{"$error":"#N/A"},{"$error":"#N/A"}]
["DIST",38,37,null,null,null,null,null,null,null,null,null,null,null,null,null,null,null,null,null,null,null,null,null,null,null,null,null,null,null,null,null,null,null,null,null,null,null,null,null,null,null,null,null,null,null,null,null,null,null,null,null,null,null,null,null,null,null,null,null,null,null,null,null,null,null,null,null,null,null,null,null,null,null,null,null,null,null,null,null,null,null,null,null,null,null,null,null,null,null,null,null,null,null,null,null,null,null,null,null,null,null,null,null,null,null,null,null,null,null,null,null,null,null,null,null,null,null,null,null,null,null,null,null,null,null,null,null,null,"SANTA ANITA",null,null,null,null,null,null,null,null,null,null,null,null,null,null,null,null,null,null,null,null,null,null,null,null,null,null,null,null,null,null,null,null,null,null,null,null,null,null,null,null,null,null,null,null,null,null,null,null,null,null,null,null,null,null,null,null,null,null,null,null,null,null,null,null,null,null,null,null,{"$error":"#N/A"},{"$error":"#N/A"}]
["DIST",39,38,null,null,null,null,null,null,null,null,null,null,null,null,null,null,null,null,null,null,null,null,null,null,null,null,null,null,null,null,null,null,null,null,null,null,null,null,null,null,null,null,null,null,null,null,null,null,null,null,null,null,null,null,null,null,null,null,null,null,null,null,null,null,null,null,null,null,null,null,null,null,null,null,null,null,null,null,null,null,null,null,null,null,null,null,null,null,null,null,null,null,null,null,null,null,null,null,null,null,null,null,null,null,null,null,null,null,null,null,null,null,null,null,null,null,null,null,null,null,null,null,null,null,null,null,null,null,"SANTA MARIA DEL MAR",null,null,null,null,null,null,null,null,null,null,null,null,null,null,null,null,null,null,null,null,null,null,null,null,null,null,null,null,null,null,null,null,null,null,null,null,null,null,null,null,null,null,null,null,null,null,null,null,null,null,null,null,null,null,null,null,null,null,null,null,null,null,null,null,null,null,null,null,{"$error":"#N/A"},{"$error":"#N/A"}]
["DIST",40,39,null,null,null,null,null,null,null,null,null,null,null,null,null,null,null,null,null,null,null,null,null,null,null,null,null,null,null,null,null,null,null,null,null,null,null,null,null,null,null,null,null,null,null,null,null,null,null,null,null,null,null,null,null,null,null,null,null,null,null,null,null,null,null,null,null,null,null,null,null,null,null,null,null,null,null,null,null,null,null,null,null,null,null,null,null,null,null,null,null,null,null,null,null,null,null,null,null,null,null,null,null,null,null,null,null,null,null,null,null,null,null,null,null,null,null,null,null,null,null,null,null,null,null,null,null,null,"SANTA ROSA",null,null,null,null,null,null,null,null,null,null,null,null,null,null,null,null,null,null,null,null,null,null,null,null,null,null,null,null,null,null,null,null,null,null,null,null,null,null,null,null,null,null,null,null,null,null,null,null,null,null,null,null,null,null,null,null,null,null,null,null,null,null,null,null,null,null,null,null,{"$error":"#N/A"},{"$error":"#N/A"}]
["DEP",41,40,null,null,null,null,null,null,null,null,null,null,null,null,null,null,null,null,null,null,null,null,null,null,null,null,null,null,null,null,null,null,null,null,null,null,null,null,null,null,null,null,null,null,null,null,null,null,null,null,null,null,null,null,null,null,null,null,null,null,null,null,null,null,null,null,null,null,null,null,null,null,null,null,null,null,null,null,null,null,null,null,null,null,null,null,null,null,null,null,null,null,null,null,null,null,null,null,null,null,null,null,null,null,null,null,null,null,null,null,null,null,null,null,null,null,null,null,null,null,null,null,null,null,null,null,null,null,"SANTIAGO DE SURCO",null,null,null,null,null,null,null,null,null,null,null,null,null,null,null,null,null,null,null,null,null,null,null,null,null,null,null,null,null,null,null,null,null,null,null,null,null,null,null,null,null,null,null,null,null,null,null,null,null,null,null,null,null,null,null,null,null,null,null,null,null,null,null,null,null,null,null,null,{"$error":"#N/A"},{"$error":"#N/A"}]
["PROV",42,41,null,null,null,null,null,null,null,null,null,null,null,null,null,null,null,null,null,null,null,null,null,null,null,null,null,null,null,null,null,null,null,null,null,null,null,null,null,null,null,null,null,null,null,null,null,null,null,null,null,null,null,null,null,null,null,null,null,null,null,null,null,null,null,null,null,null,null,null,null,null,null,null,null,null,null,null,null,null,null,null,null,null,null,null,null,null,null,null,null,null,null,null,null,null,null,null,null,null,null,null,null,null,null,null,null,null,null,null,null,null,null,null,null,null,null,null,null,null,null,null,null,null,null,null,null,null,"SURQUILLO",null,null,null,null,null,null,null,null,null,null,null,null,null,null,null,null,null,null,null,null,null,null,null,null,null,null,null,null,null,null,null,null,null,null,null,null,null,null,null,null,null,null,null,null,null,null,null,null,null,null,null,null,null,null,null,null,null,null,null,null,null,null,null,null,null,null,null,null,{"$error":"#N/A"},{"$error":"#N/A"}]
["DIST",43,42,null,null,null,null,null,null,null,null,null,null,null,null,null,null,null,null,null,null,null,null,null,null,null,null,null,null,null,null,null,null,null,null,null,null,null,null,null,null,null,null,null,null,null,null,null,null,null,null,null,null,null,null,null,null,null,null,null,null,null,null,null,null,null,null,null,null,null,null,null,null,null,null,null,null,null,null,null,null,null,null,null,null,null,null,null,null,null,null,null,null,null,null,null,null,null,null,null,null,null,null,null,null,null,null,null,null,null,null,null,null,null,null,null,null,null,null,null,null,null,null,null,null,null,null,null,null,"VILLA EL SALVADOR",null,null,null,null,null,null,null,null,null,null,null,null,null,null,null,null,null,null,null,null,null,null,null,null,null,null,null,null,null,null,null,null,null,null,null,null,null,null,null,null,null,null,null,null,null,null,null,null,null,null,null,null,null,null,null,null,null,null,null,null,null,null,null,null,null,null,null,null,{"$error":"#N/A"},{"$error":"#N/A"}]
["DIST",44,43,null,null,null,null,null,null,null,null,null,null,null,null,null,null,null,null,null,null,null,null,null,null,null,null,null,null,null,null,null,null,null,null,null,null,null,null,null,null,null,null,null,null,null,null,null,null,null,null,null,null,null,null,null,null,null,null,null,null,null,null,null,null,null,null,null,null,null,null,null,null,null,null,null,null,null,null,null,null,null,null,null,null,null,null,null,null,null,null,null,null,null,null,null,null,null,null,null,null,null,null,null,null,null,null,null,null,null,null,null,null,null,null,null,null,null,null,null,null,null,null,null,null,null,null,null,null,"VILLA MARIA DEL TRIUNFO",null,null,null,null,null,null,null,null,null,null,null,null,null,null,null,null,null,null,null,null,null,null,null,null,null,null,null,null,null,null,null,null,null,null,null,null,null,null,null,null,null,null,null,null,null,null,null,null,null,null,null,null,null,null,null,null,null,null,null,null,null,null,null,null,null,null,null,null,{"$error":"#N/A"},{"$error":"#N/A"}]
["DIST"]
["DIST"]
["DIST"]
["DIST"]
["DIST"]
["DIST"]
["DIST"]
["DIST"]
["DIST"]
["DIST"]
["PROV"]
["DIST"]
["DIST"]
["DIST"]
["DIST"]
["DIST"]
["PROV"]
["DIST"]
["DIST"]
["DIST"]
["DIST"]
["DIST"]
["DIST"]
["PROV"]
["DIST"]
["DIST"]
["PROV"]
["DIST"]
["DIST"]
["DIST"]
["DIST"]
["DIST"]
["DIST"]
["DIST"]
["DIST"]
["DIST"]
["DIST"]
["DIST"]
["DIST"]
["DIST"]
["DIST"]
["DIST"]
["PROV"]
["DIST"]
["DIST"]
["DIST"]
["DIST"]
["DIST"]
["DIST"]
["DIST"]
["DIST"]
["DIST"]
["DIST"]
["DIST"]
["PROV"]
["DIST"]
["DIST"]
["DIST"]
["PROV"]
["DIST"]
["DIST"]
["DIST"]
["DIST"]
["PROV"]
["DIST"]
["DIST"]
["DIST"]
["DIST"]
["DIST"]
["DIST"]
["DIST"]
["PROV"]
["DIST"]
["DIST"]
["DIST"]
["DIST"]
["DIST"]
["DIST"]
["DIST"]
["DIST"]
["DIST"]
["DIST"]
["DIST"]
["DIST"]
["DIST"]
["DIST"]
["DIST"]
["DIST"]
["PROV"]
["DIST"]
["DIST"]
["DIST"]
["DIST"]
["DIST"]
["PROV"]
["DIST"]
["DIST"]
["DIST"]
["DIST"]
["DIST"]
["DIST"]
["DIST"]
["DIST"]
["DIST"]
["DIST"]
["PROV"]
["DIST"]
["DIST"]
["DIST"]
["DIST"]
["DIST"]
["DIST"]
["DIST"]
["DIST"]
["PROV"]
["DIST"]
["DIST"]
["DIST"]
["DIST"]
["DIST"]
["DIST"]
["DIST"]
["DIST"]
["DIST"]
["DIST"]
["PROV"]
["DIST"]
["DIST"]
["DIST"]
["DIST"]
["DIST"]
["DIST"]
["DIST"]
["DIST"]
["DIST"]
["DIST"]
["DIST"]
["PROV"]
["DIST"]
["DIST"]
["DIST"]
["DIST"]
["PROV"]
["DIST"]
["DIST"]
["DIST"]
["DIST"]
["DIST"]
["DIST"]
["DIST"]
["DIST"]
["DIST"]
["DIST"]
["PROV"]
["DIST"]
["DIST"]
["DIST"]
["DIST"]
["DIST"]
["DIST"]
["DIST"]
["DIST"]
["DIST"]
["PROV"]
["DIST"]
["DIST"]
["DIST"]
["DIST"]
["DIST"]
["DIST"]
["DIST"]
["DIST"]
["DIST"]
["DIST"]
["PROV"]
["DIST"]
["DIST"]
["DIST"]
["DIST"]
["DIST"]
["DIST"]
["DIST"]
["DIST"]
["DEP"]
["PROV"]
["DIST"]
["DIST"]
["DIST"]
["DIST"]
["DIST"]
["DIST"]
["DIST"]
["DIST"]
["DIST"]
["PROV"]
["DIST"]
["DIST"]
["DIST"]
["DIST"]
["DIST"]
["DIST"]
["DIST"]
["DIST"]
["DIST"]
["DIST"]
["DIST"]
["DIST"]
["DIST"]
["DIST"]
["DIST"]
["DIST"]
["DIST"]
["DIST"]
["DIST"]
["PROV"]
["DIST"]
["DIST"]
["DIST"]
["DIST"]
["DIST"]
["DIST"]
["DIST"]
["PROV"]
["DIST"]
["DIST"]
["DIST"]
["DIST"]
["DIST"]
["DIST"]
["DIST"]
["DIST"]
["DIST"]
["DIST"]
["DIST"]
["DIST"]
["DIST"]
["DIST"]
["DIST"]
["DIST"]
["DIST"]
["PROV"]
["DIST"]
["DIST"]
["DIST"]
["DIST"]
["DIST"]
["DIST"]
["PROV"]
["DIST"]
["DIST"]
["DIST"]
["DIST"]
["DIST"]
["DIST"]
["DIST"]
["DIST"]
["PROV"]
["DIST"]
["DIST"]
["DIST"]
["DIST"]
["DIST"]
["DIST"]
["DIST"]
["DIST"]
["DIST"]
["DIST"]
["DIST"]
["DIST"]
["DIST"]
["DIST"]
["DEP"]
["PROV"]
["DIST"]
["DIST"]
["DIST"]
["DIST"]
["DIST"]
["DIST"]
["DIST"]
["DIST"]
["DIST"]
["DIST"]
["DIST"]
["DIST"]
["DIST"]
["DIST"]
["DIST"]
["DIST"]
["DIST"]
["DIST"]
["DIST"]
["DIST"]
["DIST"]
["DIST"]
["DIST"]
["DIST"]
["DIST"]
["DIST"]
["DIST"]
["DIST"]
["DIST"]
["PROV"]
["DIST"]
["DIST"]
["DIST"]
["DIST"]
["DIST"]
["DIST"]
["DIST"]
["DIST"]
["PROV"]
["DIST"]
["DIST"]
["DIST"]
["DIST"]
["DIST"]
["DIST"]
["DIST"]
["DIST"]
["DIST"]
["DIST"]
["DIST"]
["DIST"]
["DIST"]
["PROV"]
["DIST"]
["DIST"]
["DIST"]
["DIST"]
["DIST"]
["DIST"]
["DIST"]
["DIST"]
["DIST"]
["DIST"]
["DIST"]
["DIST"]
["DIST"]
["DIST"]
["PROV"]
["DIST"]
["DIST"]
["DIST"]
["DIST"]
["DIST"]
["DIST"]
["DIST"]
["DIST"]
["DIST"]
["DIST"]
["DIST"]
["DIST"]
["DIST"]
["DIST"]
["DIST"]
["DIST"]
["DIST"]
["DIST"]
["DIST"]
["DIST"]
["PROV"]
["DIST"]
["DIST"]
["DIST"]
["DIST"]
["DIST"]
["DIST"]
["DIST"]
["DIST"]
[]
["PROV"]
["DIST"]
["DIST"]
["DIST"]
["DIST"]
["DIST"]
["DIST"]
["PROV"]
["DIST"]
["DIST"]
["DIST"]
["DIST"]
["DIST"]
["DIST"]
["DIST"]
["DIST"]
["DIST"]
["DIST"]
["DIST"]
["DEP"]
["PROV"]
["DIST"]
["DIST"]
["DIST"]
["DIST"]
["DIST"]
["DIST"]
["DIST"]
["DIST"]
["DIST"]
["DIST"]
["DIST"]
["DIST"]
["DIST"]
["DIST"]
["DIST"]
["PROV"]
["DIST"]
["DIST"]
["DIST"]
["DIST"]
["DIST"]
["DIST"]
["PROV"]
["DIST"]
["DIST"]
["DIST"]
["DIST"]
["PROV"]
["DIST"]
["DIST"]
["DIST"]
["DIST"]
["DIST"]
["DIST"]
["DIST"]
["DIST"]
["PROV"]
["DIST"]
["DIST"]
["DIST"]
["DIST"]
["DIST"]
["DIST"]
["DIST"]
["DIST"]
["PROV"]
["DIST"]
["DIST"]
["DIST"]
["DIST"]
["DIST"]
["DIST"]
["DIST"]
["DIST"]
["DIST"]
["DIST"]
["DIST"]
["DIST"]
["DIST"]
["DIST"]
["DIST"]
["DIST"]
["DIST"]
["DIST"]
["DIST"]
["DIST"]
["DIST"]
["PROV"]
["DIST"]
["DIST"]
["DIST"]
["DIST"]
["DIST"]
["DIST"]
["DIST"]
["DIST"]
["PROV"]
["DIST"]
["DIST"]
["DIST"]
["DIST"]
["DIST"]
["DIST"]
["DIST"]
["DIST"]
["DIST"]
["DIST"]
["PROV"]
["DIST"]
["DIST"]
["DIST"]
["DIST"]
["DIST"]
["DIST"]
["DIST"]
["DIST"]
["DIST"]
["DIST"]
["DIST"]
["PROV"]
["DIST"]
["DIST"]
["DIST"]
["DIST"]
["DIST"]
["DIST"]
["DIST"]
["DIST"]
["DIST"]
["DIST"]
["DIST"]
["DIST"]
["PROV"]
["DIST"]
["DIST"]
["DIST"]
["DIST"]
["DIST"]
["DIST"]
["DIST"]
["DIST"]
["DEP"]
["PROV"]
["DIST"]
["DIST"]
["DIST"]
["DIST"]
["DIST"]
["DIST"]
["DIST"]
["DIST"]
["DIST"]
["DIST"]
["DIST"]
["DIST"]
["PROV"]
["DIST"]
["DIST"]
["DIST"]
["DIST"]
["PROV"]
["DIST"]
["DIST"]
["DIST"]
["DIST"]
["DIST"]
["DIST"]
["DIST"]
["DIST"]
["DIST"]
["DIST"]
["DIST"]
["DIST"]
["PROV"]
["DIST"]
["DIST"]
["DIST"]
["DIST"]
["DIST"]
["DIST"]
["DIST"]
["DIST"]
["DIST"]
["DIST"]
["DIST"]
["DIST"]
["DIST"]
["DIST"]
["DIST"]
["DIST"]
["DIST"]
["DIST"]
["DIST"]
["PROV"]
["DIST"]
["DIST"]
["DIST"]
["DIST"]
["DIST"]
["DIST"]
["DIST"]
["DIST"]
["PROV"]
["DIST"]
["DIST"]
["DIST"]
["DIST"]
["DIST"]
["DIST"]
["DIST"]
["DIST"]
["DIST"]
["DIST"]
["DIST"]
["DIST"]
["DIST"]
["DIST"]
["DIST"]
["PROV"]
["DIST"]
["DIST"]
["DIST"]
["PROV"]
["DIST"]
["DIST"]
["DIST"]
["DIST"]
["DIST"]
["DIST"]
["DIST"]
["DIST"]
["DIST"]
["DIST"]
["DIST"]
["DIST"]
["PROV"]
["DIST"]
["DIST"]
["DIST"]
["DIST"]
["DIST"]
["DIST"]
["DIST"]
["PROV"]
["DIST"]
["DIST"]
["DIST"]
["DIST"]
["DIST"]
["DIST"]
["DIST"]
["PROV"]
["DIST"]
["DIST"]
["DIST"]
["DIST"]
["DIST"]
["DIST"]
["DIST"]
["DIST"]
["DIST"]
["DIST"]
["DIST"]
["DIST"]
["DIST"]
["PROV"]
["DIST"]
["DIST"]
["DIST"]
["DIST"]
["PROV"]
["DIST"]
["DIST"]
["DIST"]
["DIST"]
["DIST"]
["DIST"]
["DIST"]
["DIST"]
["DIST"]
["DIST"]
["DIST"]
["DEP"]
["PROV"]
["DIST"]
["DIST"]
["DIST"]
["DIST"]
["DIST"]
["DIST"]
["DEP"]
["PROV"]
["DIST"]
["DIST"]
["DIST"]
["DIST"]
["DIST"]
["DIST"]
["DIST"]
["DIST"]
["PROV"]
["DIST"]
["DIST"]
["DIST"]
["DIST"]
["DIST"]
["DIST"]
["DIST"]
["PROV"]
["DIST"]
["DIST"]
["DIST"]
["DIST"]
["DIST"]
["DIST"]
["DIST"]
["DIST"]
["DIST"]
["PROV"]
["DIST"]
["DIST"]
["DIST"]
["DIST"]
["DIST"]
["DIST"]
["DIST"]
["DIST"]
["PROV"]
["DIST"]
["DIST"]
["DIST"]
["DIST"]
["DIST"]
["DIST"]
["DIST"]
["DIST"]
["PROV"]
["DIST"]
["DIST"]
["DIST"]
["DIST"]
["DIST"]
["DIST"]
["DIST"]
["DIST"]
["PROV"]
["DIST"]
["DIST"]
["DIST"]
["DIST"]
["DIST"]
["DIST"]
["DIST"]
["DIST"]
["PROV"]
["DIST"]
["DIST"]
["DIST"]
["DIST"]
["DIST"]
["DIST"]
["DIST"]
["DIST"]
["PROV"]
["DIST"]
["DIST"]
["DIST"]
["DIST"]
["DIST"]
["DIST"]
["DIST"]
["DIST"]
["DIST"]
["DIST"]
["PROV"]
["DIST"]
["DIST"]
["DIST"]
["DIST"]
["DIST"]
["DIST"]
["DIST"]
["DIST"]
["DIST"]
["PROV"]
["DIST"]
["DIST"]
["DIST"]
["DIST"]
["DIST"]
["DIST"]
["PROV"]
["DIST"]
["DIST"]
["DIST"]
["DIST"]
["DIST"]
["DIST"]
["DIST"]
["DIST"]
["DIST"]
["DIST"]
["DIST"]
["DIST"]
["PROV"]
["DIST"]
["DIST"]
["DIST"]
["DIST"]
["DIST"]
["DIST"]
["DIST"]
["DEP"]
["PROV"]
["DIST"]
["DIST"]
["DIST"]
["DIST"]
["DIST"]
["DIST"]
["DIST"]
["DIST"]
["DIST"]
["DIST"]
["DIST"]
["DIST"]
["DIST"]
["DIST"]
["DIST"]
["DIST"]
["DIST"]
["DIST"]
["DIST"]
["PROV"]
["DIST"]
["DIST"]
["DIST"]
["DIST"]
["DIST"]
["DIST"]
["DIST"]
["DIST"]
["PROV"]
["DIST"]
["DIST"]
["DIST"]
["DIST"]
["DIST"]
["DIST"]
["DIST"]
["DIST"]
["DIST"]
["DIST"]
["DIST"]
["DIST"]
["PROV"]
["DIST"]
["DIST"]
["DIST"]
["DIST"]
["DIST"]
["DIST"]
["DIST"]
["DIST"]
["DIST"]
["DIST"]
["DIST"]
["DIST"]
["DIST"]
[]
["PROV"]
["DIST"]
["DIST"]
["DIST"]
["DIST"]
["DIST"]
["DIST"]
["DIST"]
["DIST"]
["DIST"]
["DIST"]
["PROV"]
["DIST"]
["DIST"]
["DIST"]
["DIST"]
["DIST"]
["DIST"]
["DIST"]
["DIST"]
["DIST"]
["DIST"]
["DIST"]
["DIST"]
["DIST"]
["DIST"]
["DIST"]
["DIST"]
["PROV"]
["DIST"]
["DIST"]
["DIST"]
["DIST"]
["DIST"]
["DIST"]
["DIST"]
["DIST"]
["DIST"]
["DIST"]
["DIST"]
["DIST"]
["DIST"]
["DIST"]
["DIST"]
["DIST"]
["DEP"]
["PROV"]
["DIST"]
["DIST"]
["DIST"]
["DIST"]
["DIST"]
["DIST"]
["DIST"]
["DIST"]
["DIST"]
["DIST"]
["DIST"]
["PROV"]
["DIST"]
["DIST"]
["DIST"]
["DIST"]
["DIST"]
["DIST"]
["DIST"]
["DIST"]
["PROV"]
["DIST"]
["DIST"]
["DIST"]
["DIST"]
["DIST"]
["DIST"]
["DIST"]
["DIST"]
["DIST"]
["PROV"]
["DIST"]
["DIST"]
["DIST"]
["DIST"]
["PROV"]
["DIST"]
["DIST"]
["DIST"]
["DIST"]
["DIST"]
["DIST"]
["DIST"]
["DIST"]
["DIST"]
["DIST"]
["DIST"]
[]
["PROV"]
["DIST"]
["DIST"]
["DIST"]
["DIST"]
["DIST"]
["DIST"]
["PROV"]
["DIST"]
["DIST"]
["DIST"]
["PROV"]
["DIST"]
["DIST"]
["DIST"]
["DIST"]
["PROV"]
["DIST"]
["DIST"]
["DIST"]
["DIST"]
["DIST"]
["PROV"]
["DIST"]
["DIST"]
["DIST"]
["DIST"]
["DIST"]
["DIST"]
["DIST"]
["PROV"]
["DIST"]
["DIST"]
["DIST"]
["DIST"]
["DIST"]
["DIST"]
["DIST"]
["DIST"]
["DEP"]
["PROV"]
["DIST"]
["DIST"]
["DIST"]
["DIST"]
["DIST"]
["DIST"]
["DIST"]
["DIST"]
["DIST"]
["DIST"]
["DIST"]
["DIST"]
["DIST"]
["DIST"]
["PROV"]
["DIST"]
["DIST"]
["DIST"]
["DIST"]
["DIST"]
["DIST"]
["DIST"]
["DIST"]
["DIST"]
["DIST"]
["DIST"]
["PROV"]
["DIST"]
["DIST"]
["DIST"]
["DIST"]
["DIST"]
["PROV"]
["DIST"]
["DIST"]
["DIST"]
["DIST"]
["DIST"]
["PROV"]
["DIST"]
["DIST"]
["DIST"]
["DIST"]
["DIST"]
["DIST"]
["DIST"]
["DIST"]
["DEP"]
["PROV"]
["DIST"]
["DIST"]
["DIST"]
["DIST"]
["DIST"]
["DIST"]
["DIST"]
["DIST"]
["DIST"]
["DIST"]
["DIST"]
["DIST"]
["DIST"]
["DIST"]
["DIST"]
["DIST"]
["DIST"]
["DIST"]
["DIST"]
["DIST"]
["DIST"]
["DIST"]
["DIST"]
["DIST"]
["DIST"]
["DIST"]
["DIST"]
["DIST"]
["PROV"]
["DIST"]
["DIST"]
["DIST"]
["DIST"]
["DIST"]
["DIST"]
["DIST"]
["DIST"]
["DIST"]
["DIST"]
["DIST"]
["DIST"]
["DIST"]
["DIST"]
["DIST"]
["PROV"]
["DIST"]
["DIST"]
["DIST"]
["DIST"]
["DIST"]
["DIST"]
[]
["PROV"]
["DIST"]
["DIST"]
["DIST"]
["DIST"]
["DIST"]
["DIST"]
["DIST"]
["DIST"]
["DIST"]
["DIST"]
["DIST"]
["DIST"]
["DIST"]
["DIST"]
["DIST"]
["DIST"]
["DIST"]
["DIST"]
["DIST"]
["DIST"]
["DIST"]
["DIST"]
["DIST"]
["DIST"]
["DIST"]
["DIST"]
["DIST"]
["DIST"]
["DIST"]
["DIST"]
["DIST"]
["DIST"]
["DIST"]
["DIST"]
["PROV"]
["DIST"]
["DIST"]
["DIST"]
["DIST"]
["PROV"]
["DIST"]
["DIST"]
["DIST"]
["DIST"]
["DIST"]
["DIST"]
["DIST"]
["DIST"]
["PROV"]
["DIST"]
["DIST"]
["DIST"]
["DIST"]
["DIST"]
["DIST"]
["DIST"]
["DIST"]
["DIST"]
["PROV"]
["DIST"]
["DIST"]
["DIST"]
["DIST"]
["DIST"]
["DIST"]
["DIST"]
["DIST"]
["DIST"]
["DIST"]
["PROV"]
["DIST"]
["DIST"]
["DIST"]
["DIST"]
["DIST"]
["DIST"]
["DIST"]
["DIST"]
["DIST"]
["DEP"]
["PROV"]
["DIST"]
["DIST"]
["DIST"]
["DIST"]
["DIST"]
["DIST"]
["DIST"]
["DIST"]
["DIST"]
["DIST"]
["DIST"]
["PROV"]
["DIST"]
["DIST"]
["DIST"]
["DIST"]
["DIST"]
["DIST"]
["DIST"]
["DIST"]
["PROV"]
["DIST"]
["DIST"]
["DIST"]
["DIST"]
["DIST"]
["DIST"]
["PROV"]
["DIST"]
["DIST"]
["DIST"]
["PROV"]
["DIST"]
["DIST"]
["DIST"]
["DIST"]
["PROV"]
["DIST"]
["DIST"]
["DIST"]
["DIST"]
["DIST"]
["DIST"]
["DIST"]
["DIST"]
["DIST"]
["DIST"]
["PROV"]
["DIST"]
["DIST"]
["DIST"]
["DIST"]
["DIST"]
["PROV"]
["DIST"]
["DIST"]
["DIST"]
["DIST"]
["DIST"]
["DIST"]
["DIST"]
["DIST"]
["DIST"]
["DIST"]
["DIST"]
["DIST"]
["DIST"]
["PROV"]
["DIST"]
["DIST"]
["DIST"]
["DIST"]
["DIST"]
["DIST"]
["DIST"]
["DIST"]
["PROV"]
["DIST"]
["DIST"]
["DIST"]
["DIST"]
["DIST"]
["DIST"]
["DIST"]
["DIST"]
["PROV"]
["DIST"]
["DIST"]
["DIST"]
["DIST"]
["PROV"]
["DIST"]
["DIST"]
["DIST"]
["DEP"]
["PROV"]
["DIST"]
["DIST"]
["DIST"]
["DIST"]
["DIST"]
["DIST"]
["DIST"]
["DIST"]
["DIST"]
["DIST"]
["DIST"]
["DIST"]
["DIST"]
["DIST"]
["DIST"]
["DIST"]
["DIST"]
["DIST"]
["DIST"]
["DIST"]
["PROV"]
["DIST"]
["DIST"]
["DIST"]
["DIST"]
["DIST"]
["DIST"]
["PROV"]
["DIST"]
["DIST"]
["DIST"]
["DIST"]
["DIST"]
["DIST"]
["DIST"]
["DIST"]
["DIST"]
["DIST"]
["DIST"]
["DIST"]
["DEP"]
["PROV"]
["DIST"]
["DIST"]
["DIST"]
["DIST"]
["DIST"]
["DIST"]
["DIST"]
["DIST"]
["DIST"]
["DIST"]
["DIST"]
["DIST"]
["DIST"]
["DIST"]
["DIST"]
["DIST"]
["DIST"]
["DIST"]
["DIST"]
["DIST"]
["DIST"]
["DIST"]
["DIST"]
["DIST"]
["DIST"]
["DIST"]
["DIST"]
["DIST"]
["DIST"]
["DIST"]
["DIST"]
["DIST"]
["DIST"]
["DIST"]
["DIST"]
["DIST"]
["DIST"]
["DIST"]
["DIST"]
["DIST"]
["DIST"]
["DIST"]
["DIST"]
["PROV"]
["DIST"]
["DIST"]
["DIST"]
["DIST"]
["DIST"]
["PROV"]
["DIST"]
["DIST"]
["DIST"]
["DIST"]
["DIST"]
["PROV"]
["DIST"]
["DIST"]
["DIST"]
["DIST"]
["DIST"]
["DIST"]
["DIST"]
["PROV"]
["DIST"]
["DIST"]
["DIST"]
["DIST"]
["DIST"]
["DIST"]
["DIST"]
["DIST"]
["DIST"]
["DIST"]
["DIST"]
["DIST"]
["DIST"]
["DIST"]
["DIST"]
["DIST"]
["PROV"]
["DIST"]
["DIST"]
["DIST"]
["DIST"]
["DIST"]
["DIST"]
["DIST"]
["DIST"]
["DIST"]
["DIST"]
["DIST"]
["DIST"]
["PROV"]
["DIST"]
["DIST"]
["DIST"]
["DIST"]
["DIST"]
["DIST"]
["DIST"]
["DIST"]
["DIST"]
["DIST"]
["DIST"]
["DIST"]
["DIST"]
["DIST"]
["DIST"]
["DIST"]
["DIST"]
["DIST"]
["DIST"]
["DIST"]
["DIST"]
["DIST"]
["DIST"]
["DIST"]
["DIST"]
["DIST"]
["DIST"]
["DIST"]
["DIST"]
["DIST"]
["DIST"]
["DIST"]
["PROV"]
["DIST"]
["DIST"]
["DIST"]
["DIST"]
["DIST"]
["DIST"]
["DIST"]
["DIST"]
["DIST"]
["DIST"]
["DIST"]
["DIST"]
["PROV"]
["DIST"]
["DIST"]
["DIST"]
["DIST"]
["DIST"]
["DIST"]
["PROV"]
["DIST"]
["DIST"]
["DIST"]
["DIST"]
["DIST"]
["DIST"]
["DIST"]
["DIST"]
["DIST"]
["DIST"]
["DIST"]
["DIST"]
["DIST"]
["DIST"]
["DIST"]
["DIST"]
["DIST"]
["DIST"]
["DIST"]
["DIST"]
["DIST"]
["DIST"]
["DIST"]
["DIST"]
["DIST"]
["DIST"]
["DIST"]
["DIST"]
["DIST"]
["DIST"]
["DIST"]
["DIST"]
["DIST"]
["DEP"]
["PROV"]
["DIST"]
["DIST"]
["DIST"]
["DIST"]
["DIST"]
["DIST"]
["DIST"]
["DIST"]
["DIST"]
["DIST"]
["DIST"]
["DIST"]
["DIST"]
["PROV"]
["DIST"]
["DIST"]
["DIST"]
["DIST"]
["DIST"]
["DIST"]
["PROV"]
["DIST"]
["DIST"]
["DIST"]
["DIST"]
["DIST"]
["PROV"]
["DIST"]
["DIST"]
["DIST"]
["DIST"]
["PROV"]
["DIST"]
["DIST"]
["DIST"]
["DIST"]
["DIST"]
["DIST"]
["DIST"]
["DIST"]
["DIST"]
["DIST"]
["DIST"]
["PROV"]
["DIST"]
["DIST"]
["DIST"]
["DIST"]
["DIST"]
["DIST"]
["PROV"]
["DIST"]
["DIST"]
["DIST"]
["DIST"]
["DIST"]
["DIST"]
["DEP"]
["PROV"]
["DIST"]
["DIST"]
["DIST"]
["DIST"]
["PROV"]
["DIST"]
["DIST"]
["DIST"]
["DIST"]
["PROV"]
["DIST"]
["DIST"]
["DIST"]
["DEP"]
["PROV"]
["DIST"]
["DIST"]
["DIST"]
["DIST"]
["DIST"]
["DIST"]
["PROV"]
["DIST"]
["DIST"]
["DIST"]
["DIST"]
["DIST"]
["DIST"]
["DIST"]
["DIST"]
["DIST"]
["DIST"]
["DIST"]
["PROV"]
["DIST"]
["DIST"]
["DIST"]
["DEP"]
["PROV"]
["DIST"]
["DIST"]
["DIST"]
["DIST"]
["DIST"]
["DIST"]
["DIST"]
["DIST"]
["DIST"]
["DIST"]
["DIST"]
["DIST"]
["DIST"]
[]
["PROV"]
["DIST"]
["DIST"]
["DIST"]
["DIST"]
["DIST"]
["DIST"]
["DIST"]
["DIST"]
["PROV"]
["DIST"]
["DIST"]
["DIST"]
["DIST"]
["DIST"]
["DIST"]
["DIST"]
["DEP"]
["PROV"]
["DIST"]
["DIST"]
["DIST"]
["DIST"]
["DIST"]
["DIST"]
["DIST"]
["DIST"]
["DIST"]
["PROV"]
["DIST"]
["DIST"]
["DIST"]
["DIST"]
["DIST"]
["DIST"]
["DIST"]
["DIST"]
["DIST"]
["DIST"]
["PROV"]
["DIST"]
["DIST"]
["DIST"]
["DIST"]
["DIST"]
["DIST"]
["DIST"]
["DIST"]
["PROV"]
["DIST"]
["DIST"]
["DIST"]
["DIST"]
["DIST"]
["DIST"]
["DIST"]
["DIST"]
["DIST"]
["DIST"]
["PROV"]
["DIST"]
["DIST"]
["DIST"]
["DIST"]
["DIST"]
["DIST"]
["DIST"]
["PROV"]
["DIST"]
["DIST"]
["DIST"]
["DIST"]
["DIST"]
["DIST"]
["DIST"]
["DIST"]
["PROV"]
["DIST"]
["DIST"]
["DIST"]
["DIST"]
["DIST"]
["DIST"]
["PROV"]
["DIST"]
["DIST"]
["DIST"]
["DIST"]
["DIST"]
["DIST"]
["DEP"]
["PROV"]
["DIST"]
["DIST"]
["DIST"]
["DIST"]
["DIST"]
["DIST"]
["DIST"]
["DIST"]
["DIST"]
["DIST"]
["DIST"]
["DIST"]
["DIST"]
["DIST"]
["DIST"]
["PROV"]
["DIST"]
["DIST"]
["DIST"]
["DIST"]
["DIST"]
["DIST"]
["DIST"]
["DIST"]
["DIST"]
["DIST"]
["DIST"]
["DIST"]
["DIST"]
["DIST"]
["DIST"]
["PROV"]
["DIST"]
["DIST"]
["DIST"]
["DIST"]
["DIST"]
["DIST"]
["DIST"]
["DIST"]
["DIST"]
["DIST"]
["PROV"]
["DIST"]
["DIST"]
["DIST"]
["DIST"]
["DIST"]
["DIST"]
["DIST"]
["PROV"]
["DIST"]
["DIST"]
["DIST"]
["DIST"]
["DIST"]
["PROV"]
["DIST"]
["DIST"]
["DIST"]
["DIST"]
["DIST"]
["DIST"]
["DIST"]
["DIST"]
["PROV"]
["DIST"]
["DIST"]
["DIST"]
["DIST"]
["DIST"]
["DIST"]
["DIST"]
["DIST"]
["DIST"]
["DIST"]
["PROV"]
["DIST"]
["DIST"]
["DIST"]
["DIST"]
["DIST"]
["DIST"]
["DIST"]
["DIST"]
["DIST"]
["PROV"]
["DIST"]
["DIST"]
["DIST"]
["DIST"]
["PROV"]
["DIST"]
["DIST"]
["DIST"]
["DIST"]
["DIST"]
["PROV"]
["DIST"]
["DIST"]
["DIST"]
["DIST"]
["PROV"]
["DIST"]
["DIST"]
["DIST"]
["DIST"]
["DIST"]
["DIST"]
["DIST"]
["DIST"]
["DIST"]
["DIST"]
["PROV"]
["DIST"]
["DIST"]
["DIST"]
["DIST"]
["DIST"]
["DIST"]
["DIST"]
["DEP"]
["PROV"]
["DIST"]
["DIST"]
["DIST"]
["DIST"]
["DIST"]
["DIST"]
["PROV"]
["DIST"]
["DIST"]
["DIST"]
["DIST"]
["DIST"]
["DIST"]
["PROV"]
["DIST"]
["DIST"]
["DIST"]
["DIST"]
["DIST"]
["PROV"]
["DIST"]
["DIST"]
["DIST"]
["DIST"]
["DIST"]
["DIST"]
["PROV"]
["DIST"]
["DIST"]
["DIST"]
["DIST"]
["DIST"]
["DIST"]
["DIST"]
["DIST"]
["DIST"]
["DIST"]
["DIST"]
["PROV"]
["DIST"]
["DIST"]
["DIST"]
["DIST"]
["DIST"]
["PROV"]
["DIST"]
["DIST"]
["DIST"]
["DIST"]
["DIST"]
["DIST"]
["DIST"]
["DIST"]
["DIST"]
["DIST"]
["PROV"]
["DIST"]
["DIST"]
["DIST"]
["DIST"]
["DIST"]
["DIST"]
["DIST"]
["DIST"]
["DIST"]
["PROV"]
["DIST"]
["DIST"]
["DIST"]
["DIST"]
["DIST"]
["DIST"]
["DIST"]
["DIST"]
["DIST"]
["DIST"]
["DIST"]
["DIST"]
["DIST"]
["DIST"]
["PROV"]
["DIST"]
["DIST"]
["DIST"]
["DIST"]
["DIST"]
["DEP"]
["PROV"]
["DIST"]
["DIST"]
["DIST"]
["DIST"]
["DIST"]
["DIST"]
["DIST"]
["DIST"]
["DIST"]
["DIST"]
["PROV"]
["DIST"]
["DIST"]
["DIST"]
["DIST"]
["DIST"]
["DIST"]
["PROV"]
["DIST"]
["DIST"]
["DIST"]
["PROV"]
["DIST"]
["DIST"]
["DIST"]
["DIST"]
["DIST"]
["DIST"]
["DIST"]
["DIST"]
["DEP"]
["PROV"]
["DIST"]
["DIST"]
["DIST"]
["DIST"]
["DIST"]
["DIST"]
["PROV"]
["DIST"]
["DIST"]
["DIST"]
["PROV"]
["DIST"]
["DIST"]
["DIST"]
["DIST"]
["DEP"]
["PROV"]
["DIST"]
["DIST"]
["DIST"]
["DIST"]
["DIST"]
["DIST"]
["DIST"]
["PROV"]
["DIST"]
["DIST"]
["DIST"]
["DIST"]
["PROV"]
["DIST"]
["DIST"]
["DIST"]
["PROV"]
["DIST"]

{"sheet":"Datos 3","index":6,"n_rows":200,"n_cols":31,"rows_kept":200,"cut":false,"hidden":true,"merged":[]}
[]
["DEP",1,"Nº","AMAZONAS","ANCASH","APURIMAC","AREQUIPA","AYACUCHO","CAJAMARCA","CALLAO","CUSCO","HUANCAVELICA","HUANUCO","ICA","JUNIN","LA LIBERTAD","LAMBAYEQUE","LIMA ","LORETO","MADRE DE DIOS","MOQUEGUA","PASCO","PIURA","PUNO","SAN MARTIN","TACNA","TUMBES","UCAYALI",null,null,{"$f":"'FICHA SIMPLIFICADA-SAT'!D16","v":0}]
["PROV",2,1,"CHACHAPOYAS","HUARAZ","ABANCAY","AREQUIPA","HUAMANGA","CAJAMARCA","CALLAO","CUSCO","HUANCAVELICA","HUANUCO","ICA","HUANCAYO","TRUJILLO","CHICLAYO","LIMA","MAYNAS","TAMBOPATA","MARISCAL NIETO","PASCO","PIURA","PUNO","MOYOBAMBA","TACNA","TUMBES","CORONEL PORTILLO",null,{"$f":"HLOOKUP($AE$2,$D$2:$AB$22,B3,FALSE)","v":{"$error":"#N/A"}},{"$f":"IF(AD3=0,\"\",HLOOKUP($AE$2,$D$2:$AB$22,B3,FALSE))","v":{"$error":"#N/A"}}]
["PROV",3,2,"BAGUA","AIJA","ANDAHUAYLAS","CAMANA","CANGALLO","CAJABAMBA",null,"ACOMAYO","ACOBAMBA","AMBO","CHINCHA","CONCEPCION","ASCOPE","FERREÑAFE","BARRANCA","ALTO AMAZONAS","MANU","GENERAL SANCHEZ CERRO","DANIEL ALCIDES CARRION","AYABACA","AZANGARO","BELLAVISTA","CANDARAVE","CONTRALMIRANTE VILLAR","ATALAYA",null,{"$f":"HLOOKUP($AE$2,$D$2:$AB$22,B4,FALSE)","v":{"$error":"#N/A"}},{"$f":"IF(AD4=0,\"\",HLOOKUP($AE$2,$D$2:$AB$22,B4,FALSE))","v":{"$error":"#N/A"}}]
["PROV",4,3,"BONGARA","ANTONIO RAYMONDI","ANTABAMBA","CARAVELI","HUANCA SANCOS","CELENDIN",null,"ANTA","ANGARAES","DOS DE MAYO","NAZCA","CHANCHAMAYO","BOLIVAR","LAMBAYEQUE","CAJATAMBO","LORETO","TAHUAMANU","ILO","OXAPAMPA","HUANCABAMBA","CARABAYA","EL DORADO","JORGE BASADRE","ZARUMILLA","PADRE ABAD",null,{"$error":"#N/A"},{"$error":"#N/A"}]
["PROV",5,4,"CONDORCANQUI","ASUNCION","AYMARAES","CASTILLA","HUANTA","CHOTA",null,"CALCA","CASTROVIRREYNA","HUACAYBAMBA","PALPA","JAUJA","CHEPEN",null,"CANTA","MARISCAL RAMON CASTILLA",null,null,null,"MORROPON","CHUCUITO","HUALLAGA","TARATA",null,"PURUS",null,{"$error":"#N/A"},{"$error":"#N/A"}]
["PROV",6,5,"LUYA","BOLOGNESI","COTABAMBAS","CAYLLOMA","LA MAR","CONTUMAZA",null,"CANAS","CHURCAMPA","HUAMALIES","PISCO","JUNIN","JULCAN",null,"CAÑETE","REQUENA",null,null,null,"PAITA","EL COLLAO","LAMAS",null,null,null,null,{"$error":"#N/A"},{"$error":"#N/A"}]
["PROV",7,6,"RODRIGUEZ DE MENDOZA","CARHUAZ","CHINCHEROS","CONDESUYOS","LUCANAS","CUTERVO",null,"CANCHIS","HUAYTARA","LEONCIO PRADO",null,"SATIPO","OTUZCO",null,"HUARAL","UCAYALI",null,null,null,"SULLANA","HUANCANE","MARISCAL CACERES",null,null,null,null,{"$error":"#N/A"},{"$error":"#N/A"}]
["PROV",8,7,"UTCUBAMBA","CARLOS FITZCARRALD","GRAU","ISLAY","PARINACOCHAS","HUALGAYOC",null,"CHUMBIVILCAS","TAYACAJA","MARAÑON",null,"TARMA","PACASMAYO",null,"HUAROCHIRI","DATEM DEL MARAÑON ",null,null,null,"TALARA","LAMPA","PICOTA",null,null,null,null,{"$error":"#N/A"},{"$error":"#N/A"}]
["DEP",9,8,null,"CASMA",null,"LA UNION","PAUCAR DEL SARA SARA","JAEN",null,"ESPINAR",null,"PACHITEA",null,"YAULI","PATAZ",null,"HUAURA",null,null,null,null,"SECHURA","MELGAR","RIOJA",null,null,null,null,{"$error":"#N/A"},{"$error":"#N/A"}]
["PROV",10,9,null,"CORONGO",null,null,"SUCRE","SAN IGNACIO",null,"LA CONVENCION",null,"PUERTO INCA",null,"CHUPACA","SANCHEZ CARRION",null,"OYON",null,null,null,null,null,"MOHO","SAN MARTIN",null,null,null,null,{"$error":"#N/A"},{"$error":"#N/A"}]
["PROV",11,10,null,"HUARI",null,null,"VICTOR FAJARDO","SAN MARCOS",null,"PARURO",null,"LAURICOCHA",null,null,"SANTIAGO DE CHUCO",null,"YAUYOS",null,null,null,null,null,"SAN ANTONIO DE PUTINA","TOCACHE",null,null,null,null,{"$error":"#N/A"},{"$error":"#N/A"}]
["PROV",12,11,null,"HUARMEY",null,null,"VILCAS HUAMAN","SAN MIGUEL",null,"PAUCARTAMBO",null,"YAROWILCA",null,null,"GRAN CHIMU",null,null,null,null,null,null,null,"SANROMAN",null,null,null,null,null,{"$error":"#N/A"},{"$error":"#N/A"}]
["PROV",13,12,null,"HUAYLAS",null,null,null,"SAN PABLO",null,"QUISPICANCHI",null,null,null,null,"VIRU",null,null,null,null,null,null,null,"SANDIA",null,null,null,null,null,{"$error":"#N/A"},{"$error":"#N/A"}]
["PROV",14,13,null,"MARISCAL LUZURIAGA",null,null,null,"SANTA CRUZ",null,"URUBAMBA",null,null,null,null,null,null,null,null,null,null,null,null,"YUNGUYO",null,null,null,null,null,{"$error":"#N/A"},{"$error":"#N/A"}]
["PROV",15,14,null,"OCROS",null,null,null,null,null,null,null,null,null,null,null,null,null,null,null,null,null,null,null,null,null,null,null,null,{"$error":"#N/A"},{"$error":"#N/A"}]
["PROV",16,15,null,"PALLASCA",null,null,null,null,null,null,null,null,null,null,null,null,null,null,null,null,null,null,null,null,null,null,null,null,{"$error":"#N/A"},{"$error":"#N/A"}]
["PROV",17,16,null,"POMABAMBA",null,null,null,null,null,null,null,null,null,null,null,null,null,null,null,null,null,null,null,null,null,null,null,null,{"$error":"#N/A"},{"$error":"#N/A"}]
["PROV",18,17,null,"RECUAY",null,null,null,null,null,null,null,null,null,null,null,null,null,null,null,null,null,null,null,null,null,null,null,null,{"$error":"#N/A"},{"$error":"#N/A"}]
["PROV",19,18,null,"SANTA",null,null,null,null,null,null,null,null,null,null,null,null,null,null,null,null,null,null,null,null,null,null,null,null,{"$error":"#N/A"},{"$error":"#N/A"}]
["PROV",20,19,null,"SIHUAS",null,null,null,null,null,null,null,null,null,null,null,null,null,null,null,null,null,null,null,null,null,null,null,null,{"$error":"#N/A"},{"$error":"#N/A"}]
["PROV",21,20,null,"YUNGAY",null,null,null,null,null,null,null,null,null,null,null,null,null,null,null,null,null,null,null,null,null,null,null,null,{"$error":"#N/A"},{"$error":"#N/A"}]
["PROV"]
["PROV"]
[null,null,null,"Nª","REGIÓN"]
[null,null,null,1,"AMAZONAS"]
[null,null,null,2,"ANCASH"]
[null,null,null,3,"APURIMAC"]
[null,null,null,4,"AREQUIPA"]
[null,null,null,5,"AYACUCHO"]
[null,null,null,6,"CAJAMARCA"]
[null,null,null,7,"CALLAO"]
[null,null,null,8,"CUSCO"]
[null,null,null,9,"HUANCAVELICA"]
[null,null,null,10,"HUANUCO"]
[null,null,null,11,"ICA"]
[null,null,null,12,"JUNIN"]
[null,null,null,13,"LA LIBERTAD"]
[null,null,null,14,"LAMBAYEQUE"]
[null,null,null,15,"LIMA "]
[null,null,null,16,"LORETO"]
[null,null,null,17,"MADRE DE DIOS"]
[null,null,null,18,"MOQUEGUA"]
[null,null,null,19,"PASCO"]
[null,null,null,20,"PIURA"]
[null,null,null,21,"PUNO"]
[null,null,null,22,"SAN MARTIN"]
[null,null,null,23,"TACNA"]
[null,null,null,24,"TUMBES"]
[null,null,null,25,"UCAYALI"]
[]
[]
["PROV"]
["PROV"]
["PROV"]
["PROV"]
["PROV"]
["PROV"]
["PROV"]
["PROV"]
["DEP"]
["PROV"]
["DEP"]
["PROV"]
["PROV"]
["PROV"]
["PROV"]
["PROV"]
["PROV"]
["PROV"]
["PROV"]
["PROV"]
["PROV"]
["PROV"]
["PROV"]
["PROV"]
["DEP"]
["PROV"]
["PROV"]
["PROV"]
["PROV"]
["PROV"]
["PROV"]
["PROV"]
["DEP"]
["PROV"]
["PROV"]
["PROV"]
["PROV"]
["PROV"]
["PROV"]
["PROV"]
["PROV"]
["PROV"]
["PROV"]
["PROV"]
["DEP"]
["PROV"]
["PROV"]
["PROV"]
["PROV"]
["PROV"]
["DEP"]
["PROV"]
["PROV"]
["PROV"]
["PROV"]
["PROV"]
["PROV"]
["PROV"]
["PROV"]
["PROV"]
["DEP"]
["PROV"]
["PROV"]
["PROV"]
["PROV"]
["PROV"]
["PROV"]
["PROV"]
["PROV"]
["PROV"]
["PROV"]
["PROV"]
["PROV"]
["DEP"]
["PROV"]
["PROV"]
["PROV"]
["DEP"]
["PROV"]
["PROV"]
["PROV"]
["PROV"]
["PROV"]
["PROV"]
["PROV"]
["PROV"]
["PROV"]
["PROV"]
["DEP"]
["PROV"]
["PROV"]
["PROV"]
["DEP"]
["PROV"]
["PROV"]
["PROV"]
["DEP"]
["PROV"]
["PROV"]
["PROV"]
["DEP"]
["PROV"]
["PROV"]
["PROV"]
["PROV"]
["PROV"]
["PROV"]
["PROV"]
["PROV"]
["DEP"]
["PROV"]
["PROV"]
["PROV"]
["PROV"]
["PROV"]
["PROV"]
["PROV"]
["PROV"]
["PROV"]
["PROV"]
["PROV"]
["PROV"]
["PROV"]
["DEP"]
["PROV"]
["PROV"]
["PROV"]
["PROV"]
["PROV"]
["PROV"]
["PROV"]
["PROV"]
["PROV"]
["PROV"]
["DEP"]
["PROV"]
["PROV"]
["PROV"]
["PROV"]
["DEP"]
["PROV"]
["PROV"]
["PROV"]
["DEP"]
["PROV"]
["PROV"]
["PROV"]
["PROV"]

{"sheet":"Datos 4","index":7,"n_rows":46,"n_cols":8,"rows_kept":46,"cut":false,"hidden":true,"merged":[[35,5,35,6],[1,5,1,6],[15,5,15,6]]}
[]
[null,null,null,null,null,"CLASIFICACION Según Guía - Inf Sit SAT"]
[null,"Nº","TIPO DE DESASTRE NATURAL","Clasif por\n grupos",null,"Nº","TIPO DE DESASTRE NATURAL"]
[null,1,"     PRECIPITACIONES - LLUVIA",1,null,1,"Deslizamiento",1]
[null,2,"     INCENDIO URBANO",null,null,2,"Huaycos - Inundaciones",1]
[null,3,"     HUAYCO",2,null,3,"Eventos fríos","X"]
[null,4,"     VIENTOS FUERTES",3,null,4,"Tsunamis","X"]
[null,5,"     PRECIPITACIONES - NEVADA",4,null,5,"Erupciones volcánicas","X"]
[null,6,"     SISMOS",5,null,6,"Incendios","X"]
[null,7,"     PRECIPITACIONES - GRANIZO",4,null,7,"Sismo","X"]
[null,8,"     ALUVION",6,null,8,"Sequia.","X"]
[null,9,"     INUNDACION",7,null,9,"Vientos fuertes","X"]
[null,10,"     INCENDIO FORESTAL"]
[null,11,"     HELADA",4]
[null,12,"     DERRUMBE",8]
[null,13,"     DESLIZAMIENTO",8,null,"CLASIFICACION Según Guía - Inf Sit SAT"]
[null,14,"     ACTIVIDAD VOLCANICA",null,null,"Nº","TIPO DE DESASTRE NATURAL"]
[null,15,"     SEQUIA",9,null,1,{"$f":"IF('FICHA SIMPLIFICADA-SAT'!$D$35=\"Uno\",\"\",'Datos 4'!G4)","v":"Deslizamiento"}]
[null,16,"     OTROS DE GEODINAMICA EXTERNA",null,null,2,{"$f":"IF('FICHA SIMPLIFICADA-SAT'!$D$35=\"Uno\",\"\",'Datos 4'!G5)","v":"Huaycos - Inundaciones"}]
[null,17,"     EROSION",null,null,3,{"$f":"IF('FICHA SIMPLIFICADA-SAT'!$D$35=\"Uno\",\"\",'Datos 4'!G6)","v":"Eventos fríos"}]
[null,18,"     OTRO FENOM. MET.  O HIDROL.",null,null,4,{"$f":"IF('FICHA SIMPLIFICADA-SAT'!$D$35=\"Uno\",\"\",'Datos 4'!G7)","v":"Tsunamis"}]
[null,19,"     EXPLOSION",null,null,5,{"$f":"IF('FICHA SIMPLIFICADA-SAT'!$D$35=\"Uno\",\"\",'Datos 4'!G8)","v":"Erupciones volcánicas"}]
[null,20,"     MAREMOTOS (TSUNAMI)",null,null,6,{"$f":"IF('FICHA SIMPLIFICADA-SAT'!$D$35=\"Uno\",\"\",'Datos 4'!G9)","v":"Incendios"}]
[null,21,"     OTROS DE GEODINAMICA INTERNA",null,null,7,{"$f":"IF('FICHA SIMPLIFICADA-SAT'!$D$35=\"Uno\",\"\",'Datos 4'!G10)","v":"Sismo"}]
[null,22,"     DESCENSO DE TEMPERATURA",null,null,8,{"$f":"IF('FICHA SIMPLIFICADA-SAT'!$D$35=\"Uno\",\"\",'Datos 4'!G11)","v":"Sequia."}]
[null,23,"     PLAGAS",null,null,9,{"$f":"IF('FICHA SIMPLIFICADA-SAT'!$D$35=\"Uno\",\"\",'Datos 4'!G12)","v":"Vientos fuertes"}]
[null,24,"     OTROS FENOMENOS TECNOLOGICOS",null,null,null,{"$f":"IF('FICHA SIMPLIFICADA-SAT'!$D$35=\"Uno\",\"\",'Datos 4'!G13)","v":0}]
[null,25,"     ALUD",6]
[null,26,"     TORMENTA ELECTRICA (TEMPESTAD ELECTRICA)",null,null,"Nº","Nº de peligros"]
[null,27,"     INCENDIO INDUSTRIAL",null,null,1,"Uno"]
[null,28,"     MAREJADA",null,null,2,"Multipeligro"]
[]
[]
[]
[]
[null,null,null,null,null,"CLASIFICACION PARA LA FICHA (Eber O)"]
[null,null,null,null,null,"Nº","TIPO DE DESASTRE NATURAL"]
[null,null,null,null,null,1,"Precipitaciones (lluvia)"]
[null,null,null,null,null,2,"Huayco"]
[null,null,null,null,null,3,"Vientos fuertes"]
[null,null,null,null,null,4,"Precipitaciones (nevada, granizo, helada)"]
[null,null,null,null,null,5,"Aluvión y Alud"]
[null,null,null,null,null,6,"Inundación"]
[null,null,null,null,null,7,"Derrumbe y deslizamiento"]
[null,null,null,null,null,8,"Sequia."]
[null,null,null,null,null,null,"Ninguno"]

{"sheet":"Datos 5","index":8,"n_rows":12,"n_cols":3,"rows_kept":12,"cut":false,"hidden":true,"merged":[[1,0,11,0]]}
[]
["MF 1",{"$f":"+Datos!L59","v":0},{"$f":"IF('FICHA SIMPLIFICADA-SAT'!D35=\"Uno\",0,Datos!M59)","v":0}]
[null,{"$f":"+Datos!L60","v":" para 0"}]
[null,{"$f":"+Datos!L61","v":" para 0"}]
[null,{"$f":"+Datos!L62","v":" para 0"}]
[null,{"$f":"+Datos!L63","v":" para 0"}]
[null,{"$f":"+Datos!L64","v":" para 0"}]
[null,{"$f":"IF($C$2=0,\"\",Datos!M60)","v":""}]
[null,{"$f":"IF($C$2=0,\"\",Datos!M61)","v":""}]
[null,{"$f":"IF($C$2=0,\"\",Datos!M62)","v":""}]
[null,{"$f":"IF($C$2=0,\"\",Datos!M63)","v":""}]
[null,{"$f":"IF($C$2=0,\"\",Datos!M64)","v":""}]

{"sheet":"Datos 6","index":9,"n_rows":20,"n_cols":2,"rows_kept":20,"cut":false,"hidden":true,"merged":[]}
[null,"Acciones producto 1"]
[1,{"$f":"IF('FICHA SIMPLIFICADA-SAT'!D158=\"\",\"\",'FICHA SIMPLIFICADA-SAT'!D158)","v":""}]
[2,{"$f":"IF('FICHA SIMPLIFICADA-SAT'!E158=\"\",\"\",'FICHA SIMPLIFICADA-SAT'!E158)","v":""}]
[3,{"$f":"IF('FICHA SIMPLIFICADA-SAT'!F158=\"\",\"\",'FICHA SIMPLIFICADA-SAT'!F158)","v":""}]
[4,{"$f":"IF('FICHA SIMPLIFICADA-SAT'!G158=\"\",\"\",'FICHA SIMPLIFICADA-SAT'!G158)","v":""}]
[5,{"$f":"IF('FICHA SIMPLIFICADA-SAT'!D160=\"\",\"\",'FICHA SIMPLIFICADA-SAT'!D160)","v":""}]
[6,{"$f":"IF('FICHA SIMPLIFICADA-SAT'!E160=\"\",\"\",'FICHA SIMPLIFICADA-SAT'!E160)","v":""}]
[7,{"$f":"IF('FICHA SIMPLIFICADA-SAT'!F160=\"\",\"\",'FICHA SIMPLIFICADA-SAT'!F160)","v":""}]
[8,{"$f":"IF('FICHA SIMPLIFICADA-SAT'!G160=\"\",\"\",'FICHA SIMPLIFICADA-SAT'!G160)","v":""}]
[]
[]
[null,"Acciones producto 2"]
[1,{"$f":"IF('FICHA SIMPLIFICADA-SAT'!D162=\"\",\"\",'FICHA SIMPLIFICADA-SAT'!D162)","v":""}]
[2,{"$f":"IF('FICHA SIMPLIFICADA-SAT'!E162=\"\",\"\",'FICHA SIMPLIFICADA-SAT'!E162)","v":""}]
[3,{"$f":"IF('FICHA SIMPLIFICADA-SAT'!F162=\"\",\"\",'FICHA SIMPLIFICADA-SAT'!F162)","v":""}]
[4,{"$f":"IF('FICHA SIMPLIFICADA-SAT'!G162=\"\",\"\",'FICHA SIMPLIFICADA-SAT'!G162)","v":""}]
[5,{"$f":"IF('FICHA SIMPLIFICADA-SAT'!D164=\"\",\"\",'FICHA SIMPLIFICADA-SAT'!D164)","v":""}]
[6,{"$f":"IF('FICHA SIMPLIFICADA-SAT'!E164=\"\",\"\",'FICHA SIMPLIFICADA-SAT'!E164)","v":""}]
[7,{"$f":"IF('FICHA SIMPLIFICADA-SAT'!F164=\"\",\"\",'FICHA SIMPLIFICADA-SAT'!F164)","v":""}]
[8,{"$f":"IF('FICHA SIMPLIFICADA-SAT'!G164=\"\",\"\",'FICHA SIMPLIFICADA-SAT'!G164)","v":""}]

{"sheet":"Hoja3","index":10,"n_rows":2061,"n_cols":3,"rows_kept":2061,"cut":false,"hidden":true,"merged":[[270,11,270,12]]}
[]
[]
["DEP",null,"AMAZONAS"]
["PROV",null,"CHACHAPOYAS"]
["DIST",null,"CHACHAPOYAS"]
["DIST",null,"ASUNCION"]
["DIST",null,"BALSAS"]
["DIST",null,"CHETO"]
["DIST",null,"CHILIQUIN"]
["DIST",null,"CHUQUIBAMBA"]
["DIST",null,"GRANADA"]
["DIST",null,"HUANCAS"]
["DIST",null,"LA JALCA"]
["DIST",null,"LEIMEBAMBA"]
["DIST",null,"LEVANTO"]
["DIST",null,"MAGDALENA"]
["DIST",null,"MARISCAL CASTILLA"]
["DIST",null,"MOLINOPAMPA"]
["DIST",null,"MONTEVIDEO"]
["DIST",null,"OLLEROS"]
["DIST",null,"QUINJALCA"]
["DIST",null,"SAN FRANCISCO DE DAGUAS"]
["DIST",null,"SAN ISIDRO DE MAINO"]
["DIST",null,"SOLOCO"]
["DIST",null,"SONCHE"]
["PROV",null,"BAGUA"]
["DIST",null,"BAGUA"]
["DIST",null,"ARAMANGO"]
["DIST",null,"COPALLIN"]
["DIST",null,"EL PARCO"]
["DIST",null,"IMAZA"]
["DIST",null,"LA PECA"]
["PROV",null,"BONGARA"]
["DIST",null,"JUMBILLA"]
["DIST",null,"CHISQUILLA"]
["DIST",null,"CHURUJA"]
["DIST",null,"COROSHA"]
["DIST",null,"CUISPES"]
["DIST",null,"FLORIDA"]
["DIST",null,"JAZAN"]
["DIST",null,"RECTA"]
["DIST",null,"SAN CARLOS"]
["DIST",null,"SHIPASBAMBA"]
["DIST",null,"VALERA"]
["DIST",null,"YAMBRASBAMBA"]
["PROV",null,"CONDORCANQUI"]
["DIST",null,"NIEVA"]
["DIST",null,"EL CENEPA"]
["DIST",null,"RIO SANTIAGO"]
["PROV",null,"LUYA"]
["DIST",null,"LAMUD"]
["DIST",null,"CAMPORREDONDO"]
["DIST",null,"COCABAMBA"]
["DIST",null,"COLCAMAR"]
["DIST",null,"CONILA"]
["DIST",null,"INGUILPATA"]
["DIST",null,"LONGUITA"]
["DIST",null,"LONYA CHICO"]
["DIST",null,"LUYA"]
["DIST",null,"LUYA VIEJO"]
["DIST",null,"MARIA"]
["DIST",null,"OCALLI"]
["DIST",null,"OCUMAL"]
["DIST",null,"PISUQUIA"]
["DIST",null,"PROVIDENCIA"]
["DIST",null,"SAN CRISTOBAL"]
["DIST",null,"SAN FRANCISCO DEL YESO"]
["DIST",null,"SAN JERONIMO"]
["DIST",null,"SAN JUAN DE LOPECANCHA"]
["DIST",null,"SANTA CATALINA"]
["DIST",null,"SANTO TOMAS"]
["DIST",null,"TINGO"]
["DIST",null,"TRITA"]
["PROV",null,"RODRIGUEZ DE MENDOZA"]
["DIST",null,"SAN NICOLAS"]
["DIST",null,"CHIRIMOTO"]
["DIST",null,"COCHAMAL"]
["DIST",null,"HUAMBO"]
["DIST",null,"LIMABAMBA"]
["DIST",null,"LONGAR"]
["DIST",null,"MARISCAL BENAVIDES"]
["DIST",null,"MILPUC"]
["DIST",null,"OMIA"]
["DIST",null,"SANTA ROSA"]
["DIST",null,"TOTORA"]
["DIST",null,"VISTA ALEGRE"]
["PROV",null,"UTCUBAMBA"]
["DIST",null,"BAGUA GRANDE"]
["DIST",null,"CAJARURO"]
["DIST",null,"CUMBA"]
["DIST",null,"EL MILAGRO"]
["DIST",null,"JAMALCA"]
["DIST",null,"LONYA GRANDE"]
["DIST",null,"YAMON"]
["DEP",null,"ANCASH"]
["PROV",null,"HUARAZ"]
["DIST",null,"HUARAZ"]
["DIST",null,"COCHABAMBA"]
["DIST",null,"COLCABAMBA"]
["DIST",null,"HUANCHAY"]
["DIST",null,"INDEPENDENCIA"]
["DIST",null,"JANGAS"]
["DIST",null,"LA LIBERTAD"]
["DIST",null,"OLLEROS"]
["DIST",null,"PAMPAS"]
["DIST",null,"PARIACOTO"]
["DIST",null,"PIRA"]
["DIST",null,"TARICA"]
["PROV",null,"AIJA"]
["DIST",null,"AIJA"]
["DIST",null,"CORIS"]
["DIST",null,"HUACLLAN"]
["DIST",null,"LA MERCED"]
["DIST",null,"SUCCHA"]
["PROV",null,"ANTONIO RAYMONDI"]
["DIST",null,"LLAMELLIN"]
["DIST",null,"ACZO"]
["DIST",null,"CHACCHO"]
["DIST",null,"CHINGAS"]
["DIST",null,"MIRGAS"]
["DIST",null,"SAN JUAN DE RONTOY"]
["PROV",null,"ASUNCION"]
["DIST",null,"CHACAS"]
["DIST",null,"ACOCHACA"]
["PROV",null,"BOLOGNESI"]
["DIST",null,"CHIQUIAN"]
["DIST",null,"ABELARDO PARDO LEZAMETA"]
["DIST",null,"ANTONIO RAYMONDI"]
["DIST",null,"AQUIA"]
["DIST",null,"CAJACAY"]
["DIST",null,"CANIS"]
["DIST",null,"COLQUIOC"]
["DIST",null,"HUALLANCA"]
["DIST",null,"HUASTA"]
["DIST",null,"HUAYLLACAYAN"]
["DIST",null,"LA PRIMAVERA"]
["DIST",null,"MANGAS"]
["DIST",null,"PACLLON"]
["DIST",null,"SAN MIGUEL DE CORPANQUI"]
["DIST",null,"TICLLOS"]
["PROV",null,"CARHUAZ"]
["DIST",null,"CARHUAZ"]
["DIST",null,"ACOPAMPA"]
["DIST",null,"AMASHCA"]
["DIST",null,"ANTA"]
["DIST",null,"ATAQUERO"]
["DIST",null,"MARCARA"]
["DIST",null,"PARIAHUANCA"]
["DIST",null,"SAN MIGUEL DE ACO"]
["DIST",null,"SHILLA"]
["DIST",null,"TINCO"]
["DIST",null,"YUNGAR"]
["PROV",null,"CARLOS F. FITZCARRALD"]
["DIST",null,"SAN LUIS"]
["DIST",null,"SAN NICOLAS"]
["DIST",null,"YAUYA"]
["PROV",null,"CASMA"]
["DIST",null,"CASMA"]
["DIST",null,"BUENA VISTA ALTA"]
["DIST",null,"COMANDANTE NOEL"]
["DIST",null,"YAUTAN"]
["PROV",null,"CORONGO"]
["DIST",null,"CORONGO"]
["DIST",null,"ACO"]
["DIST",null,"BAMBAS"]
["DIST",null,"CUSCA"]
["DIST",null,"LA PAMPA"]
["DIST",null,"YANAC"]
["DIST",null,"YUPAN"]
["PROV",null,"HUARI"]
["DIST",null,"HUARI"]
["DIST",null,"ANRA"]
["DIST",null,"CAJAY"]
["DIST",null,"CHAVIN DE HUANTAR"]
["DIST",null,"HUACACHI"]
["DIST",null,"HUACCHIS"]
["DIST",null,"HUACHIS"]
["DIST",null,"HUANTAR"]
["DIST",null,"MASIN"]
["DIST",null,"PAUCAS"]
["DIST",null,"PONTO"]
["DIST",null,"RAHUAPAMPA"]
["DIST",null,"RAPAYAN"]
["DIST",null,"SAN MARCOS"]
["DIST",null,"SAN PEDRO DE CHANA"]
["DIST",null,"UCO"]
["PROV",null,"HUARMEY"]
["DIST",null,"HUARMEY"]
["DIST",null,"COCHAPETI"]
["DIST",null,"CULEBRAS"]
["DIST",null,"HUAYAN"]
["DIST",null,"MALVAS"]
["PROV",null,"HUAYLAS"]
["DIST",null,"CARAZ"]
["DIST",null,"HUALLANCA"]
["DIST",null,"HUATA"]
["DIST",null,"HUAYLAS"]
["DIST",null,"MATO"]
["DIST",null,"PAMPAROMAS"]
["DIST",null,"PUEBLO LIBRE"]
["DIST",null,"SANTA CRUZ"]
["DIST",null,"SANTO TORIBIO"]
["DIST",null,"YURACMARCA"]
["PROV",null,"MARISCAL LUZURIAGA"]
["DIST",null,"PISCOBAMBA"]
["DIST",null,"CASCA"]
["DIST",null,"ELEAZAR GUZMAN BARRON"]
["DIST",null,"FIDEL OLIVAS ESCUDERO"]
["DIST",null,"LLAMA"]
["DIST",null,"LLUMPA"]
["DIST",null,"LUCMA"]
["DIST",null,"MUSGA"]
["PROV",null,"OCROS"]
["DIST",null,"OCROS"]
["DIST",null,"ACAS"]
["DIST",null,"CAJAMARQUILLA"]
["DIST",null,"CARHUAPAMPA"]
["DIST",null,"COCHAS"]
["DIST",null,"CONGAS"]
["DIST",null,"LLIPA"]
["DIST",null,"SAN CRISTOBAL DE RAJAN"]
["DIST",null,"SAN PEDRO"]
["DIST",null,"SANTIAGO DE CHILCAS"]
["PROV",null,"PALLASCA"]
["DIST",null,"CABANA"]
["DIST",null,"BOLOGNESI"]
["DIST",null,"CONCHUCOS"]
["DIST",null,"HUACASCHUQUE"]
["DIST",null,"HUANDOVAL"]
["DIST",null,"LACABAMBA"]
["DIST",null,"LLAPO"]
["DIST",null,"PALLASCA"]
["DIST",null,"PAMPAS"]
["DIST",null,"SANTA ROSA"]
["DIST",null,"TAUCA"]
["PROV",null,"POMABAMBA"]
["DIST",null,"POMABAMBA"]
["DIST",null,"HUAYLLAN"]
["DIST",null,"PAROBAMBA"]
["DIST",null,"QUINUABAMBA"]
["PROV",null,"RECUAY"]
["DIST",null,"RECUAY"]
["DIST",null,"CATAC"]
["DIST",null,"COTAPARACO"]
["DIST",null,"HUAYLLAPAMPA"]
["DIST",null,"LLACLLIN"]
["DIST",null,"MARCA"]
["DIST",null,"PAMPAS CHICO"]
["DIST",null,"PARARIN"]
["DIST",null,"TAPACOCHA"]
["DIST",null,"TICAPAMPA"]
["PROV",null,"SANTA"]
["DIST",null,"CHIMBOTE"]
["DIST",null,"CACERES DEL PERU"]
["DIST",null,"COISHCO"]
["DIST",null,"MACATE"]
["DIST",null,"MORO"]
["DIST",null,"NEPEÑA"]
["DIST",null,"SAMANCO"]
["DIST",null,"SANTA"]
["DIST",null,"NUEVO CHIMBOTE"]
["PROV",null,"SIHUAS"]
["DIST",null,"SIHUAS"]
["DIST",null,"ACOBAMBA"]
["DIST",null,"ALFONSO UGARTE"]
["DIST",null,"CASHAPAMPA"]
["DIST",null,"CHINGALPO"]
["DIST",null,"HUAYLLABAMBA"]
["DIST",null,"QUICHES"]
["DIST",null,"RAGASH"]
["DIST",null,"SAN JUAN"]
["DIST",null,"SICSIBAMBA"]
["PROV",null,"YUNGAY"]
["DIST",null,"YUNGAY"]
["DIST",null,"CASCAPARA"]
["DIST",null,"MANCOS"]
["DIST",null,"MATACOTO"]
["DIST",null,"QUILLO"]
["DIST",null,"RANRAHIRCA"]
["DIST",null,"SHUPLUY"]
["DIST",null,"YANAMA"]
["DEP",null,"APURIMAC"]
["PROV",null,"ABANCAY"]
["DIST",null,"ABANCAY"]
["DIST",null,"CHACOCHE"]
["DIST",null,"CIRCA"]
["DIST",null,"CURAHUASI"]
["DIST",null,"HUANIPACA"]
["DIST",null,"LAMBRAMA"]
["DIST",null,"PICHIRHUA"]
["DIST",null,"SAN PEDRO DE CACHORA"]
["DIST",null,"TAMBURCO"]
["PROV",null,"ANDAHUAYLAS"]
["DIST",null,"ANDAHUAYLAS"]
["DIST",null,"ANDARAPA"]
["DIST",null,"CHIARA"]
["DIST",null,"HUANCARAMA"]
["DIST",null,"HUANCARAY"]
["DIST",null,"HUAYANA"]
["DIST",null,"KISHUARA"]
["DIST",null,"PACOBAMBA"]
["DIST",null,"PACUCHA"]
["DIST",null,"PAMPACHIRI"]
["DIST",null,"POMACOCHA"]
["DIST",null,"SAN ANTONIO DE CACHI"]
["DIST",null,"SAN JERONIMO"]
["DIST",null,"SAN MIGUEL DE CHACCRAMPA"]
["DIST",null,"SANTA MARIA DE CHICMO"]
["DIST",null,"TALAVERA"]
["DIST",null,"TUMAY HUARACA"]
["DIST",null,"TURPO"]
["DIST",null,"KAQUIABAMBA"]
["PROV",null,"ANTABAMBA"]
["DIST",null,"ANTABAMBA"]
["DIST",null,"EL ORO"]
["DIST",null,"HUAQUIRCA"]
["DIST",null,"JUAN ESPINOZA MEDRANO"]
["DIST",null,"OROPESA"]
["DIST",null,"PACHACONAS"]
["DIST",null,"SABAINO"]
["PROV",null,"AYMARAES"]
["DIST",null,"CHALHUANCA"]
["DIST",null,"CAPAYA"]
["DIST",null,"CARAYBAMBA"]
["DIST",null,"CHAPIMARCA"]
["DIST",null,"COLCABAMBA"]
["DIST",null,"COTARUSE"]
["DIST",null,"HUAYLLO"]
["DIST",null,"JUSTO APU SAHUARAURA"]
["DIST",null,"LUCRE"]
["DIST",null,"POCOHUANCA"]
["DIST",null,"SAN JUAN DE CHACÑA"]
["DIST",null,"SAÑAYCA"]
["DIST",null,"SORAYA"]
["DIST",null,"TAPAIRIHUA"]
["DIST",null,"TINTAY"]
["DIST",null,"TORAYA"]
["DIST",null,"YANACA"]
["PROV",null,"COTABAMBAS"]
["DIST",null,"TAMBOBAMBA"]
["DIST",null,"COTABAMBAS"]
["DIST",null,"COYLLURQUI"]
["DIST",null,"HAQUIRA"]
["DIST",null,"MARA"]
["DIST",null,"CHALLHUAHUACHO"]
["PROV",null,"CHINCHEROS"]
["DIST",null,"CHINCHEROS"]
["DIST",null,"ANCO-HUALLO"]
["DIST",null,"COCHARCAS"]
["DIST",null,"HUACCANA"]
["DIST",null,"OCOBAMBA"]
["DIST",null,"ONGOY"]
["DIST",null,"URANMARCA"]
["DIST",null,"RANRACANCHA"]
["PROV",null,"GRAU"]
["DIST",null,"CHUQUIBAMBILLA"]
["DIST",null,"CURPAHUASI"]
["DIST",null,"GAMARRA"]
["DIST",null,"HUAYLLATI"]
["DIST",null,"MAMARA"]
["DIST",null,"MICAELA BASTIDAS"]
["DIST",null,"PATAYPAMPA"]
["DIST",null,"PROGRESO"]
["DIST",null,"SAN ANTONIO"]
["DIST",null,"SANTA ROSA"]
["DIST",null,"TURPAY"]
["DIST",null,"VILCABAMBA"]
["DIST",null,"VIRUNDO"]
["DIST",null,"CURASCO"]
["DEP",null,"AREQUIPA"]
["PROV",null,"AREQUIPA"]
["DIST",null,"AREQUIPA"]
["DIST",null,"ALTO SELVA ALEGRE"]
["DIST",null,"CAYMA"]
["DIST",null,"CERRO COLORADO "]
["DIST",null,"CHARACATO"]
["DIST",null,"CHIGUATA"]
["DIST",null,"JACOBO HUNTER"]
["DIST",null,"LA JOYA"]
["DIST",null,"MARIANO MELGAR"]
["DIST",null,"MIRAFLORES"]
["DIST",null,"MOLLEBAYA"]
["DIST",null,"PAUCARPATA"]
["DIST",null,"POCSI"]
["DIST",null,"POLOBAYA"]
["DIST",null,"QUEQUEÑA"]
["DIST",null,"SABANDIA"]
["DIST",null,"SACHACA"]
["DIST",null,"SAN JUAN DE SIGUAS"]
["DIST",null,"SAN JUAN DE TARUCANI"]
["DIST",null,"SANTA ISABEL DE SIGUAS"]
["DIST",null,"SANTA RITA DE SIGUAS"]
["DIST",null,"SOCABAYA"]
["DIST",null,"TIABAYA"]
["DIST",null,"UCHUMAYO"]
["DIST",null,"VITOR  "]
["DIST",null,"YANAHUARA"]
["DIST",null,"YARABAMBA"]
["DIST",null,"YURA"]
["DIST",null,"JOSE LUIS BUSTAMANTE Y RIVERO"]
["PROV",null,"CAMANA"]
["DIST",null,"CAMANA"]
["DIST",null,"JOSE MARIA QUIMPER"]
["DIST",null,"MARIANO NICOLAS VALCARCEL"]
["DIST",null,"MARISCAL CACERES"]
["DIST",null,"NICOLAS DE PIEROLA"]
["DIST",null,"OCOÑA"]
["DIST",null,"QUILCA"]
["DIST",null,"SAMUEL PASTOR"]
["PROV",null,"CARAVELI"]
["DIST",null,"CARAVELI"]
["DIST",null,"ACARI"]
["DIST",null,"ATICO"]
["DIST",null,"ATIQUIPA"]
["DIST",null,"BELLA UNION"]
["DIST",null,"CAHUACHO"]
["DIST",null,"CHALA"]
["DIST",null,"CHAPARRA"]
["DIST",null,"HUANUHUANU"]
["DIST",null,"JAQUI"]
["DIST",null,"LOMAS"]
["DIST",null,"QUICACHA"]
["DIST",null,"YAUCA"]
["PROV",null,"CASTILLA"]
["DIST",null,"APLAO"]
["DIST",null,"ANDAGUA"]
["DIST",null,"AYO"]
["DIST",null,"CHACHAS"]
["DIST",null,"CHILCAYMARCA"]
["DIST",null,"CHOCO"]
["DIST",null,"HUANCARQUI"]
["DIST",null,"MACHAGUAY"]
["DIST",null,"ORCOPAMPA"]
["DIST",null,"PAMPACOLCA"]
["DIST",null,"TIPAN"]
["DIST",null,"UÑON"]
["DIST",null,"URACA"]
["DIST",null,"VIRACO"]
["PROV",null,"CAYLLOMA"]
["DIST",null,"CHIVAY"]
["DIST",null,"ACHOMA"]
["DIST",null,"CABANACONDE"]
["DIST",null,"CALLALLI"]
["DIST",null,"CAYLLOMA"]
["DIST",null,"COPORAQUE"]
["DIST",null,"HUAMBO"]
["DIST",null,"HUANCA"]
["DIST",null,"ICHUPAMPA"]
["DIST",null,"LARI"]
["DIST",null,"LLUTA"]
["DIST",null,"MACA"]
["DIST",null,"MADRIGAL"]
["DIST",null,"SAN ANTONIO DE CHUCA "]
["DIST",null,"SIBAYO"]
["DIST",null,"TAPAY"]
["DIST",null,"TISCO"]
["DIST",null,"TUTI"]
["DIST",null,"YANQUE"]
["DIST",null,"MAJES"]
["PROV",null,"CONDESUYOS"]
["DIST",null,"CHUQUIBAMBA"]
["DIST",null,"ANDARAY"]
["DIST",null,"CAYARANI"]
["DIST",null,"CHICHAS"]
["DIST",null,"IRAY"]
["DIST",null,"RIO GRANDE"]
["DIST",null,"SALAMANCA"]
["DIST",null,"YANAQUIHUA"]
[]
["PROV",null,"ISLAY"]
["DIST",null,"MOLLENDO"]
["DIST",null,"COCACHACRA"]
["DIST",null,"DEAN VALDIVIA"]
["DIST",null,"ISLAY"]
["DIST",null,"MEJIA"]
["DIST",null,"PUNTA DE BOMBON"]
["PROV",null,"LA UNION"]
["DIST",null,"COTAHUASI"]
["DIST",null,"ALCA"]
["DIST",null,"CHARCANA"]
["DIST",null,"HUAYNACOTAS"]
["DIST",null,"PAMPAMARCA"]
["DIST",null,"PUYCA"]
["DIST",null,"QUECHUALLA"]
["DIST",null,"SAYLA"]
["DIST",null,"TAURIA"]
["DIST",null,"TOMEPAMPA"]
["DIST",null,"TORO"]
["DEP",null,"AYACUCHO"]
["PROV",null,"HUAMANGA"]
["DIST",null,"AYACUCHO"]
["DIST",null,"ACOCRO"]
["DIST",null,"ACOS VINCHOS"]
["DIST",null,"CARMEN ALTO 8/"]
["DIST",null,"CHIARA"]
["DIST",null,"OCROS"]
["DIST",null,"PACAYCASA"]
["DIST",null,"QUINUA"]
["DIST",null,"SAN JOSE DE TICLLAS"]
["DIST",null,"SAN JUAN BAUTISTA"]
["DIST",null,"SANTIAGO DE PISCHA"]
["DIST",null,"SOCOS"]
["DIST",null,"TAMBILLO"]
["DIST",null,"VINCHOS"]
["DIST",null,"JESUS NAZARENO"]
["PROV",null,"CANGALLO"]
["DIST",null,"CANGALLO"]
["DIST",null,"CHUSCHI"]
["DIST",null,"LOS MOROCHUCOS"]
["DIST",null,"MARIA PARADO DE BELLIDO"]
["DIST",null,"PARAS"]
["DIST",null,"TOTOS"]
["PROV",null,"HUANCA SANCOS"]
["DIST",null,"SANCOS"]
["DIST",null,"CARAPO"]
["DIST",null,"SACSAMARCA"]
["DIST",null,"SANTIAGO DE LUCANAMARCA"]
["PROV",null,"HUANTA"]
["DIST",null,"HUANTA"]
["DIST",null,"AYAHUANCO"]
["DIST",null,"HUAMANGUILLA"]
["DIST",null,"IGUAIN"]
["DIST",null,"LURICOCHA"]
["DIST",null,"SANTILLANA"]
["DIST",null,"SIVIA"]
["DIST",null,"LLOCHEGUA"]
["PROV",null,"LA MAR"]
["DIST",null,"SAN MIGUEL"]
["DIST",null,"ANCO"]
["DIST",null,"AYNA"]
["DIST",null,"CHILCAS"]
["DIST",null,"CHUNGUI"]
["DIST",null,"LUIS CARRANZA"]
["DIST",null,"SANTA ROSA"]
["DIST",null,"TAMBO"]
["PROV",null,"LUCANAS"]
["DIST",null,"PUQUIO"]
["DIST",null,"AUCARA"]
["DIST",null,"CABANA"]
["DIST",null,"CARMEN SALCEDO"]
["DIST",null,"CHAVIÑA"]
["DIST",null,"CHIPAO"]
["DIST",null,"HUAC-HUAS"]
["DIST",null,"LARAMATE"]
["DIST",null,"LEONCIO PRADO"]
["DIST",null,"LLAUTA"]
["DIST",null,"LUCANAS"]
["DIST",null,"OCAÑA"]
["DIST",null,"OTOCA"]
["DIST",null,"SAISA"]
["DIST",null,"SAN CRISTOBAL"]
["DIST",null,"SAN JUAN"]
["DIST",null,"SAN PEDRO"]
["DIST",null,"SAN PEDRO DE PALCO"]
["DIST",null,"SANCOS"]
["DIST",null,"SANTA ANA DE HUAYCAHUACHO"]
["DIST",null,"SANTA LUCIA"]
["PROV",null,"PARINACOCHAS"]
["DIST",null,"CORACORA"]
["DIST",null,"CHUMPI"]
["DIST",null,"CORONEL CASTAÑEDA"]
["DIST",null,"PACAPAUSA"]
["DIST",null,"PULLO"]
["DIST",null,"PUYUSCA"]
["DIST",null,"SAN FRANCISCO DE RAVACAYCO"]
["DIST",null,"UPAHUACHO"]
["PROV",null,"PAUCAR DEL SARA SARA"]
["DIST",null,"PAUSA"]
["DIST",null,"COLTA"]
["DIST",null,"CORCULLA"]
["DIST",null,"LAMPA"]
["DIST",null,"MARCABAMBA"]
["DIST",null,"OYOLO"]
["DIST",null,"PARARCA"]
["DIST",null,"SAN JAVIER DE ALPABAMBA"]
["DIST",null,"SAN JOSE DE USHUA"]
["DIST",null,"SARA SARA"]
["PROV",null,"SUCRE"]
["DIST",null,"QUEROBAMBA"]
["DIST",null,"BELEN"]
["DIST",null,"CHALCOS"]
["DIST",null,"CHILCAYOC"]
["DIST",null,"HUACAÑA"]
["DIST",null,"MORCOLLA"]
["DIST",null,"PAICO"]
["DIST",null,"SAN PEDRO DE LARCAY"]
["DIST",null,"SAN SALVADOR DE QUIJE"]
["DIST",null,"SANTIAGO DE PAUCARAY"]
["DIST",null,"SORAS"]
["PROV",null,"VICTOR FAJARDO"]
["DIST",null,"HUANCAPI"]
["DIST",null,"ALCAMENCA"]
["DIST",null,"APONGO"]
["DIST",null,"ASQUIPATA"]
["DIST",null,"CANARIA"]
["DIST",null,"CAYARA"]
["DIST",null,"COLCA"]
["DIST",null,"HUAMANQUIQUIA"]
["DIST",null,"HUANCARAYLLA"]
["DIST",null,"HUAYA"]
["DIST",null,"SARHUA"]
["DIST",null,"VILCANCHOS"]
["PROV",null,"VILCAS HUAMAN"]
["DIST",null,"VILCAS HUAMAN"]
["DIST",null,"ACCOMARCA"]
["DIST",null,"CARHUANCA"]
["DIST",null,"CONCEPCION"]
["DIST",null,"HUAMBALPA"]
["DIST",null,"INDEPENDENCIA"]
["DIST",null,"SAURAMA"]
["DIST",null,"VISCHONGO"]
["DEP",null,"CAJAMARCA"]
["PROV",null,"CAJAMARCA"]
["DIST",null,"CAJAMARCA"]
["DIST",null,"ASUNCION"]
["DIST",null,"CHETILLA"]
["DIST",null,"COSPAN"]
["DIST",null,"ENCAÑADA"]
["DIST",null,"JESUS"]
["DIST",null,"LLACANORA"]
["DIST",null,"LOS BAÑOS DEL INCA"]
["DIST",null,"MAGDALENA"]
["DIST",null,"MATARA"]
["DIST",null,"NAMORA"]
["DIST",null,"SAN JUAN"]
["PROV",null,"CAJABAMBA"]
["DIST",null,"CAJABAMBA"]
["DIST",null,"CACHACHI"]
["DIST",null,"CONDEBAMBA"]
["DIST",null,"SITACOCHA"]
["PROV",null,"CELENDIN"]
["DIST",null,"CELENDIN"]
["DIST",null,"CHUMUCH"]
["DIST",null,"CORTEGANA"]
["DIST",null,"HUASMIN"]
["DIST",null,"JORGE CHAVEZ"]
["DIST",null,"JOSE GALVEZ"]
["DIST",null,"MIGUEL IGLESIAS"]
["DIST",null,"OXAMARCA"]
["DIST",null,"SOROCHUCO"]
["DIST",null,"SUCRE"]
["DIST",null,"UTCO"]
["DIST",null,"LA LIBERTAD DE PALLAN"]
["PROV",null,"CHOTA"]
["DIST",null,"CHOTA"]
["DIST",null,"ANGUIA"]
["DIST",null,"CHADIN"]
["DIST",null,"CHIGUIRIP"]
["DIST",null,"CHIMBAN"]
["DIST",null,"CHOROPAMPA"]
["DIST",null,"COCHABAMBA"]
["DIST",null,"CONCHAN"]
["DIST",null,"HUAMBOS"]
["DIST",null,"LAJAS"]
["DIST",null,"LLAMA"]
["DIST",null,"MIRACOSTA"]
["DIST",null,"PACCHA"]
["DIST",null,"PION"]
["DIST",null,"QUEROCOTO"]
["DIST",null,"SAN JUAN DE LICUPIS"]
["DIST",null,"TACABAMBA"]
["DIST",null,"TOCMOCHE"]
["DIST",null,"CHALAMARCA"]
["PROV",null,"CONTUMAZA"]
["DIST",null,"CONTUMAZA"]
["DIST",null,"CHILETE"]
["DIST",null,"CUPISNIQUE"]
["DIST",null,"GUZMANGO"]
["DIST",null,"SAN BENITO"]
["DIST",null,"SANTA CRUZ DE TOLED"]
["DIST",null,"TANTARICA"]
["DIST",null,"YONAN"]
["PROV",null,"CUTERVO"]
["DIST",null,"CUTERVO"]
["DIST",null,"CALLAYUC"]
["DIST",null,"CHOROS"]
["DIST",null,"CUJILLO"]
["DIST",null,"LA RAMADA"]
["DIST",null,"PIMPINGOS"]
["DIST",null,"QUEROCOTILLO"]
["DIST",null,"SAN ANDRES DE CUTERVO"]
["DIST",null,"SAN JUAN DE CUTERVO"]
["DIST",null,"SAN LUIS DE LUCMA"]
["DIST",null,"SANTA CRUZ"]
["DIST",null,"SANTO DOMINGO DE LA CAPILLA"]
["DIST",null,"SANTO TOMAS"]
["DIST",null,"SOCOTA"]
["DIST",null,"TORIBIO CASANOVA"]
["PROV",null,"HUALGAYOC"]
["DIST",null,"BAMBAMARCA"]
["DIST",null,"CHUGUR"]
["DIST",null,"HUALGAYOC"]
["PROV",null,"JAEN"]
["DIST",null,"JAEN"]
["DIST",null,"BELLAVISTA"]
["DIST",null,"CHONTALI"]
["DIST",null,"COLASAY"]
["DIST",null,"HUABAL"]
["DIST",null,"LAS PIRIAS"]
["DIST",null,"POMAHUACA"]
["DIST",null,"PUCARA"]
["DIST",null,"SALLIQUE"]
["DIST",null,"SAN FELIPE"]
["DIST",null,"SAN JOSE DEL ALTO"]
["DIST",null,"SANTA ROSA"]
["PROV",null,"SAN IGNACIO"]
["DIST",null,"SAN IGNACIO"]
["DIST",null,"CHIRINOS"]
["DIST",null,"HUARANGO"]
["DIST",null,"LA COIPA"]
["DIST",null,"NAMBALLE"]
["DIST",null,"SAN JOSE DE LOURDES"]
["DIST",null,"TABACONAS"]
["PROV",null,"SAN MARCOS"]
["DIST",null,"PEDRO GALVEZ"]
["DIST",null,"CHANCAY"]
["DIST",null,"EDUARDO VILLANUEVA"]
["DIST",null,"GREGORIO PITA"]
["DIST",null,"ICHOCAN"]
["DIST",null,"JOSE MANUEL QUIROZ"]
["DIST",null,"JOSE SABOGAL"]
["PROV",null,"SAN MIGUEL"]
["DIST",null,"SAN MIGUEL"]
["DIST",null,"BOLIVAR"]
["DIST",null,"CALQUIS"]
["DIST",null,"CATILLUC"]
["DIST",null,"EL PRADO"]
["DIST",null,"LA FLORIDA"]
["DIST",null,"LLAPA"]
["DIST",null,"NANCHOC"]
["DIST",null,"NIEPOS"]
["DIST",null,"SAN GREGORIO"]
["DIST",null,"SAN SILVESTRE DE COCHAN"]
["DIST",null,"TONGOD"]
["DIST",null,"UNION AGUA BLANCA"]
["PROV",null,"SAN PABLO"]
["DIST",null,"SAN PABLO"]
["DIST",null,"SAN BERNARDINO"]
["DIST",null,"SAN LUIS"]
["DIST",null,"TUMBADEN"]
["PROV",null,"SANTA CRUZ"]
["DIST",null,"SANTA CRUZ"]
["DIST",null,"ANDABAMBA"]
["DIST",null,"CATACHE"]
["DIST",null,"CHANCAYBAÑOS"]
["DIST",null,"LA ESPERANZA"]
["DIST",null,"NINABAMBA"]
["DIST",null,"PULAN"]
["DIST",null,"SAUCEPAMPA"]
["DIST",null,"SEXI"]
["DIST",null,"UTICYACU"]
["DIST",null,"YAUYUCAN"]
["DEP",null,"CALLAO"]
["PROV",null,"CALLAO"]
["DIST",null,"CALLAO"]
["DIST",null,"BELLAVISTA"]
["DIST",null,"CARMEN DE LA LEGUA REYNOSO"]
["DIST",null,"LA PERLA"]
["DIST",null,"LA PUNTA"]
["DIST",null,"VENTANILLA"]
["DEP",null,"CUSCO"]
["PROV",null,"CUSCO"]
["DIST",null,"CUSCO"]
["DIST",null,"CCORCA"]
["DIST",null,"POROY"]
["DIST",null,"SAN JERONIMO"]
["DIST",null,"SAN SEBASTIAN"]
["DIST",null,"SANTIAGO"]
["DIST",null,"SAYLLA"]
["DIST",null,"WANCHAQ"]
["PROV",null,"ACOMAYO"]
["DIST",null,"ACOMAYO"]
["DIST",null,"ACOPIA"]
["DIST",null,"ACOS"]
["DIST",null,"MOSOC LLACTA"]
["DIST",null,"POMACANCHI"]
["DIST",null,"RONDOCAN"]
["DIST",null,"SANGARARA"]
["PROV",null,"ANTA"]
["DIST",null,"ANTA"]
["DIST",null,"ANCAHUASI"]
["DIST",null,"CACHIMAYO"]
["DIST",null,"CHINCHAYPUJIO"]
["DIST",null,"HUAROCONDO"]
["DIST",null,"LIMATAMBO"]
["DIST",null,"MOLLEPATA"]
["DIST",null,"PUCYURA"]
["DIST",null,"ZURITE"]
["PROV",null,"CALCA"]
["DIST",null,"CALCA"]
["DIST",null,"COYA"]
["DIST",null,"LAMAY"]
["DIST",null,"LARES"]
["DIST",null,"PISAC"]
["DIST",null,"SAN SALVADOR"]
["DIST",null,"TARAY"]
["DIST",null,"YANATILE"]
["PROV",null,"CANAS"]
["DIST",null,"YANAOCA"]
["DIST",null,"CHECCA"]
["DIST",null,"KUNTURKANKI"]
["DIST",null,"LANGUI"]
["DIST",null,"LAYO"]
["DIST",null,"PAMPAMARCA"]
["DIST",null,"QUEHUE"]
["DIST",null,"TUPAC AMARU"]
["PROV",null,"CANCHIS"]
["DIST",null,"SICUANI"]
["DIST",null,"CHECACUPE"]
["DIST",null,"COMBAPATA"]
["DIST",null,"MARANGANI"]
["DIST",null,"PITUMARCA"]
["DIST",null,"SAN PABLO"]
["DIST",null,"SAN PEDRO"]
["DIST",null,"TINTA"]
["PROV",null,"CHUMBIVILCAS"]
["DIST",null,"SANTO TOMAS"]
["DIST",null,"CAPACMARCA"]
["DIST",null,"CHAMACA"]
["DIST",null,"COLQUEMARCA"]
["DIST",null,"LIVITACA"]
["DIST",null,"LLUSCO"]
["DIST",null,"QUIÑOTA"]
["DIST",null,"VELILLE"]
["PROV",null,"ESPINAR"]
["DIST",null,"ESPINAR"]
["DIST",null,"CONDOROMA"]
["DIST",null,"COPORAQUE"]
["DIST",null,"OCORURO"]
["DIST",null,"PALLPATA"]
["DIST",null,"PICHIGUA"]
["DIST",null,"SUYCKUTAMBO"]
["DIST",null,"ALTO PICHIGUA"]
["PROV",null,"LA CONVENCION"]
["DIST",null,"SANTA ANA"]
["DIST",null,"ECHARATE"]
["DIST",null,"HUAYOPATA"]
["DIST",null,"MARANURA"]
["DIST",null,"OCOBAMBA"]
["DIST",null,"QUELLOUNO"]
["DIST",null,"KIMBIRI"]
["DIST",null,"SANTA TERESA"]
["DIST",null,"VILCABAMBA"]
["DIST",null,"PICHARI"]
["PROV",null,"PARURO"]
["DIST",null,"PARURO"]
["DIST",null,"ACCHA"]
["DIST",null,"CCAPI"]
["DIST",null,"COLCHA"]
["DIST",null,"HUANOQUITE"]
["DIST",null,"OMACHA"]
["DIST",null,"PACCARITAMBO"]
["DIST",null,"PILLPINTO"]
["DIST",null,"YAURISQUE"]
["PROV",null,"PAUCARTAMBO"]
["DIST",null,"PAUCARTAMBO"]
["DIST",null,"CAICAY"]
["DIST",null,"CHALLABAMBA"]
["DIST",null,"COLQUEPATA"]
["DIST",null,"HUANCARANI"]
["DIST",null,"KOSÑIPATA"]
["PROV",null,"QUISPICANCHI"]
["DIST",null,"URCOS"]
["DIST",null,"ANDAHUAYLILLAS"]
["DIST",null,"CAMANTI"]
["DIST",null,"CCARHUAYO"]
["DIST",null,"CCATCA"]
["DIST",null,"CUSIPATA"]
["DIST",null,"HUARO"]
["DIST",null,"LUCRE"]
["DIST",null,"MARCAPATA"]
["DIST",null,"OCONGATE"]
["DIST",null,"OROPESA"]
["DIST",null,"QUIQUIJANA"]
["PROV",null,"URUBAMBA"]
["DIST",null,"URUBAMBA"]
["DIST",null,"CHINCHERO"]
["DIST",null,"HUAYLLABAMBA"]
["DIST",null,"MACHUPICCHU"]
["DIST",null,"MARAS"]
["DIST",null,"OLLANTAYTAMBO"]
["DIST",null,"YUCAY"]
["DEP",null,"HUANCAVELICA"]
["PROV",null,"HUANCAVELICA"]
["DIST",null,"HUANCAVELICA"]
["DIST",null,"ACOBAMBILLA"]
["DIST",null,"ACORIA"]
["DIST",null,"CONAYCA"]
["DIST",null,"CUENCA"]
["DIST",null,"HUACHOCOLPA"]
["DIST",null,"HUAYLLAHUARA"]
["DIST",null,"IZCUCHACA"]
["DIST",null,"LARIA"]
["DIST",null,"MANTA"]
["DIST",null,"MARISCAL CACERES"]
["DIST",null,"MOYA"]
["DIST",null,"NUEVO OCCORO"]
["DIST",null,"PALCA"]
["DIST",null,"PILCHACA"]
["DIST",null,"VILCA"]
["DIST",null,"YAULI 9/"]
["DIST",null,"ASCENSION"]
["DIST",null,"HUANDO"]
["PROV",null,"ACOBAMBA"]
["DIST",null,"ACOBAMBA "]
["DIST",null,"ANDABAMBA"]
["DIST",null,"ANTA"]
["DIST",null,"CAJA"]
["DIST",null,"MARCAS"]
["DIST",null,"PAUCARA"]
["DIST",null,"POMACOCHA"]
["DIST",null,"ROSARIO"]
["PROV",null,"ANGARAES"]
["DIST",null,"LIRCAY"]
["DIST",null,"ANCHONGA"]
["DIST",null,"CALLANMARCA"]
["DIST",null,"CCOCHACCASA"]
["DIST",null,"CHINCHO"]
["DIST",null,"CONGALLA"]
["DIST",null,"HUANCA-HUANCA"]
["DIST",null,"HUAYLLAY GRANDE"]
["DIST",null,"JULCAMARCA"]
["DIST",null,"SAN ANTONIO DE ANTAPARCO"]
["DIST",null,"SANTO TOMAS DE PATA"]
["DIST",null,"SECCLLA"]
["PROV",null,"CASTROVIRREYNA"]
["DIST",null,"CASTROVIRREYNA"]
["DIST",null,"ARMA"]
["DIST",null,"AURAHUA"]
["DIST",null,"CAPILLAS"]
["DIST",null,"CHUPAMARCA"]
["DIST",null,"COCAS"]
["DIST",null,"HUACHOS"]
["DIST",null,"HUAMATAMBO"]
["DIST",null,"MOLLEPAMPA"]
["DIST",null,"SAN JUAN"]
["DIST",null,"SANTA ANA"]
["DIST",null,"TANTARA"]
["DIST",null,"TICRAPO"]
[]
["PROV",null,"CHURCAMPA"]
["DIST",null,"CHURCAMPA"]
["DIST",null,"ANCO"]
["DIST",null,"CHINCHIHUASI"]
["DIST",null,"EL CARMEN"]
["DIST",null,"LA MERCED"]
["DIST",null,"LOCROJA"]
["DIST",null,"PAUCARBAMBA"]
["DIST",null,"SAN MIGUEL DE MAYOCC"]
["DIST",null,"SAN PEDRO DE CORIS"]
["DIST",null,"PACHAMARCA"]
["PROV",null,"HUAYTARA"]
["DIST",null,"HUAYTARA"]
["DIST",null,"AYAVI"]
["DIST",null,"CORDOVA"]
["DIST",null,"HUAYACUNDO ARMA"]
["DIST",null,"LARAMARCA"]
["DIST",null,"OCOYO"]
["DIST",null,"PILPICHACA"]
["DIST",null,"QUERCO"]
["DIST",null,"QUITO-ARMA"]
["DIST",null,"SAN ANTONIO DE CUSICANCHA"]
["DIST",null,"SAN FRANCISCO DE SANGAYAICO"]
["DIST",null,"SAN ISIDRO"]
["DIST",null,"SANTIAGO DE CHOCORVOS"]
["DIST",null,"SANTIAGO DE QUIRAHUARA"]
["DIST",null,"SANTO DOMINGO DE CAPILLAS"]
["DIST",null,"TAMBO"]
["PROV",null,"TAYACAJA"]
["DIST",null,"PAMPAS"]
["DIST",null,"ACOSTAMBO"]
["DIST",null,"ACRAQUIA"]
["DIST",null,"AHUAYCHA"]
["DIST",null,"COLCABAMBA"]
["DIST",null,"DANIEL HERNANDEZ"]
["DIST",null,"HUACHOCOLPA"]
["DIST",null,"HUARIBAMBA"]
["DIST",null,"ÑAHUIMPUQUIO"]
["DIST",null,"PAZOS"]
["DIST",null,"QUISHUAR"]
["DIST",null,"SALCABAMBA"]
["DIST",null,"SALCAHUASI"]
["DIST",null,"SAN MARCOS DE ROCCHAC"]
["DIST",null,"SURCUBAMBA"]
["DIST",null,"TINTAY PUNCU"]
["DEP",null,"HUANUCO"]
["PROV",null,"HUANUCO"]
["DIST",null,"HUANUCO"]
["DIST",null,"AMARILIS"]
["DIST",null,"CHINCHAO"]
["DIST",null,"CHURUBAMBA"]
["DIST",null,"MARGOS"]
["DIST",null,"QUISQUI"]
["DIST",null,"SAN FRANCISCO DE CAYRAN"]
["DIST",null,"SAN PEDRO DE CHAULAN"]
["DIST",null,"SANTA MARIA DEL VALLE"]
["DIST",null,"YARUMAYO"]
["DIST",null,"PILLCO MARCA"]
["PROV",null,"AMBO"]
["DIST",null,"AMBO"]
["DIST",null,"CAYNA"]
["DIST",null,"COLPAS"]
["DIST",null,"CONCHAMARCA"]
["DIST",null,"HUACAR"]
["DIST",null,"SAN FRANCISCO"]
["DIST",null,"SAN RAFAEL"]
["DIST",null,"TOMAY KICHWA"]
["PROV",null,"DOS DE MAYO"]
["DIST",null,"LA UNION"]
["DIST",null,"CHUQUIS"]
["DIST",null,"MARIAS"]
["DIST",null,"PACHAS"]
["DIST",null,"QUIVILLA"]
["DIST",null,"RIPAN"]
["DIST",null,"SHUNQUI"]
["DIST",null,"SILLAPATA"]
["DIST",null,"YANAS"]
["PROV",null,"HUACAYBAMBA"]
["DIST",null,"HUACAYBAMBA"]
["DIST",null,"CANCHABAMBA"]
["DIST",null,"COCHABAMBA"]
["DIST",null,"PINRA"]
["PROV",null,"HUAMALIES"]
["DIST",null,"LLATA"]
["DIST",null,"ARANCAY"]
["DIST",null,"CHAVIN DE PARIARCA"]
["DIST",null,"JACAS GRANDE"]
["DIST",null,"JIRCAN"]
["DIST",null,"MIRAFLORES"]
["DIST",null,"MONZON"]
["DIST",null,"PUNCHAO"]
["DIST",null,"PUÑOS"]
["DIST",null,"SINGA"]
["DIST",null,"TANTAMAYO"]
[]
["PROV",null,"LEONCIO PRADO"]
["DIST",null,"RUPA-RUPA"]
["DIST",null,"DANIEL ALOMIA ROBLES"]
["DIST",null,"HERMILIO VALDIZAN"]
["DIST",null,"JOSE CRESPO Y CASTILLO"]
["DIST",null,"LUYANDO"]
["DIST",null,"MARIANO DAMASO BERAUN"]
["PROV",null,"MARAÑON"]
["DIST",null,"HUACRACHUCO"]
["DIST",null,"CHOLON"]
["DIST",null,"SAN BUENAVENTURA"]
["PROV",null,"PACHITEA"]
["DIST",null,"PANAO"]
["DIST",null,"CHAGLLA"]
["DIST",null,"MOLINO"]
["DIST",null,"UMARI  "]
["PROV",null,"PUERTO INCA"]
["DIST",null,"PUERTO INCA"]
["DIST",null,"CODO DEL POZUZO"]
["DIST",null,"HONORIA"]
["DIST",null,"TOURNAVISTA"]
["DIST",null,"YUYAPICHIS"]
["PROV",null,"LAURICOCHA"]
["DIST",null,"JESUS"]
["DIST",null,"BAÑOS"]
["DIST",null,"JIVIA"]
["DIST",null,"QUEROPALCA"]
["DIST",null,"RONDOS"]
["DIST",null,"SAN FRANCISCO DE ASIS"]
["DIST",null,"SAN MIGUEL DE CAURI"]
["PROV",null,"YAROWILCA"]
["DIST",null,"CHAVINILLO"]
["DIST",null,"CAHUAC"]
["DIST",null,"CHACABAMBA"]
["DIST",null,"APARICIO POMARES"]
["DIST",null,"JACAS CHICO"]
["DIST",null,"OBAS"]
["DIST",null,"PAMPAMARCA"]
["DIST",null,"CHORAS"]
["DEP",null,"ICA"]
["PROV",null,"ICA"]
["DIST",null,"ICA"]
["DIST",null,"LA TINGUIÑA"]
["DIST",null,"LOS AQUIJES"]
["DIST",null,"OCUCAJE"]
["DIST",null,"PACHACUTEC"]
["DIST",null,"PARCONA"]
["DIST",null,"PUEBLO NUEVO"]
["DIST",null,"SALAS"]
["DIST",null,"SAN JOSE DE LOS MOLINOS"]
["DIST",null,"SAN JUAN BAUTISTA"]
["DIST",null,"SANTIAGO"]
["DIST",null,"SUBTANJALLA"]
["DIST",null,"TATE"]
["DIST",null,"YAUCA DEL ROSARIO "]
["PROV",null,"CHINCHA"]
["DIST",null,"CHINCHA ALTA"]
["DIST",null,"ALTO LARAN"]
["DIST",null,"CHAVIN"]
["DIST",null,"CHINCHA BAJA"]
["DIST",null,"EL CARMEN"]
["DIST",null,"GROCIO PRADO"]
["DIST",null,"PUEBLO NUEVO"]
["DIST",null,"SAN JUAN DE YANAC"]
["DIST",null,"SAN PEDRO DE HUACARPANA"]
["DIST",null,"SUNAMPE"]
["DIST",null,"TAMBO DE MORA"]
["PROV",null,"NAZCA"]
["DIST",null,"NAZCA"]
["DIST",null,"CHANGUILLO"]
["DIST",null,"EL INGENIO"]
["DIST",null,"MARCONA"]
["DIST",null,"VISTA ALEGRE"]
["PROV",null,"PALPA"]
["DIST",null,"PALPA"]
["DIST",null,"LLIPATA"]
["DIST",null,"RIO GRANDE"]
["DIST",null,"SANTA CRUZ"]
["DIST",null,"TIBILLO"]
["PROV",null,"PISCO"]
["DIST",null,"PISCO"]
["DIST",null,"HUANCANO"]
["DIST",null,"HUMAY"]
["DIST",null,"INDEPENDENCIA"]
["DIST",null,"PARACAS"]
["DIST",null,"SAN ANDRES"]
["DIST",null,"SAN CLEMENTE"]
["DIST",null,"TUPAC AMARU INCA"]
["DEP",null,"JUNIN"]
["PROV",null,"HUANCAYO"]
["DIST",null,"HUANCAYO"]
["DIST",null,"CARHUACALLANGA"]
["DIST",null,"CHACAPAMPA"]
["DIST",null,"CHICCHE"]
["DIST",null,"CHILCA"]
["DIST",null,"CHONGOS ALTO"]
["DIST",null,"CHUPURO"]
["DIST",null,"COLCA"]
["DIST",null,"CULLHUAS"]
["DIST",null,"EL TAMBO"]
["DIST",null,"HUACRAPUQUIO"]
["DIST",null,"HUALHUAS"]
["DIST",null,"HUANCAN"]
["DIST",null,"HUASICANCHA"]
["DIST",null,"HUAYUCACHI"]
["DIST",null,"INGENIO"]
["DIST",null,"PARIAHUANCA   "]
["DIST",null,"PILCOMAYO"]
["DIST",null,"PUCARA"]
["DIST",null,"QUICHUAY"]
["DIST",null,"QUILCAS"]
["DIST",null,"SAN AGUSTIN"]
["DIST",null,"SAN JERONIMO DE TUNAN"]
["DIST",null,"SAÑO"]
["DIST",null,"SAPALLANGA"]
["DIST",null,"SICAYA"]
["DIST",null,"SANTO DOMINGO DE ACOBAMBA"]
["DIST",null,"VIQUES"]
["PROV",null,"CONCEPCION"]
["DIST",null,"CONCEPCION"]
["DIST",null,"ACO"]
["DIST",null,"ANDAMARCA"]
["DIST",null,"CHAMBARA"]
["DIST",null,"COCHAS"]
["DIST",null,"COMAS"]
["DIST",null,"HEROINAS TOLEDO"]
["DIST",null,"MANZANARES"]
["DIST",null,"MARISCAL CASTILLA"]
["DIST",null,"MATAHUASI"]
["DIST",null,"MITO"]
["DIST",null,"NUEVE DE JULIO"]
["DIST",null,"ORCOTUNA"]
["DIST",null,"SAN JOSE DE QUERO"]
["DIST",null,"SANTA ROSA DE OCOPA"]
["PROV",null,"CHANCHAMAYO"]
["DIST",null,"CHANCHAMAYO"]
["DIST",null,"PERENE"]
["DIST",null,"PICHANAQUI"]
["DIST",null,"SAN LUIS DE SHUARO"]
["DIST",null,"SAN RAMON"]
["DIST",null,"VITOC"]
[]
["PROV",null,"JAUJA"]
["DIST",null,"JAUJA"]
["DIST",null,"ACOLLA"]
["DIST",null,"APATA"]
["DIST",null,"ATAURA"]
["DIST",null,"CANCHAYLLO"]
["DIST",null,"CURICACA"]
["DIST",null,"EL MANTARO"]
["DIST",null,"HUAMALI"]
["DIST",null,"HUARIPAMPA"]
["DIST",null,"HUERTAS"]
["DIST",null,"JANJAILLO"]
["DIST",null,"JULCAN"]
["DIST",null,"LEONOR ORDOÑEZ"]
["DIST",null,"LLOCLLAPAMPA"]
["DIST",null,"MARCO"]
["DIST",null,"MASMA"]
["DIST",null,"MASMA CHICCHE"]
["DIST",null,"MOLINOS"]
["DIST",null,"MONOBAMBA"]
["DIST",null,"MUQUI"]
["DIST",null,"MUQUIYAUYO"]
["DIST",null,"PACA"]
["DIST",null,"PACCHA"]
["DIST",null,"PANCAN"]
["DIST",null,"PARCO"]
["DIST",null,"POMACANCHA"]
["DIST",null,"RICRAN"]
["DIST",null,"SAN LORENZO"]
["DIST",null,"SAN PEDRO DE CHUNAN"]
["DIST",null,"SAUSA"]
["DIST",null,"SINCOS"]
["DIST",null,"TUNAN MARCA"]
["DIST",null,"YAULI"]
["DIST",null,"YAUYOS"]
["PROV",null,"JUNIN"]
["DIST",null,"JUNIN"]
["DIST",null,"CARHUAMAYO"]
["DIST",null,"ONDORES"]
["DIST",null,"ULCUMAYO"]
["PROV",null,"SATIPO"]
["DIST",null,"SATIPO"]
["DIST",null,"COVIRIALI"]
["DIST",null,"LLAYLLA"]
["DIST",null,"MAZAMARI "]
["DIST",null,"PAMPA HERMOSA"]
["DIST",null,"PANGOA"]
["DIST",null,"RIO NEGRO "]
["DIST",null,"RIO TAMBO"]
["PROV",null,"TARMA"]
["DIST",null,"TARMA"]
["DIST",null,"ACOBAMBA"]
["DIST",null,"HUARICOLCA"]
["DIST",null,"HUASAHUASI"]
["DIST",null,"LA UNION"]
["DIST",null,"PALCA"]
["DIST",null,"PALCAMAYO"]
["DIST",null,"SAN PEDRO DE CAJAS"]
["DIST",null,"TAPO"]
["PROV",null,"YAULI"]
["DIST",null,"LA OROYA"]
["DIST",null,"CHACAPALPA"]
["DIST",null,"HUAY-HUAY"]
["DIST",null,"MARCAPOMACOCHA"]
["DIST",null,"MOROCOCHA"]
["DIST",null,"PACCHA"]
["DIST",null,"SANTA BARBARA DE CARHUACAYA"]
["DIST",null,"SANTA ROSA DE SACCO"]
["DIST",null,"SUITUCANCHA"]
["DIST",null,"YAULI"]
["PROV",null,"CHUPACA"]
["DIST",null,"CHUPACA"]
["DIST",null,"AHUAC"]
["DIST",null,"CHONGOS BAJO"]
["DIST",null,"HUACHAC"]
["DIST",null,"HUAMANCACA CHICO"]
["DIST",null,"SAN JUAN DE ISCOS"]
["DIST",null,"SAN JUAN DE JARPA"]
["DIST",null,"TRES DE DICIEMBRE"]
["DIST",null,"YANACANCHA"]
["DEP",null,"LA LIBERTAD"]
["PROV",null,"TRUJILLO"]
["DIST",null,"TRUJILLO_"]
["DIST",null,"EL PORVENIR"]
["DIST",null,"FLORENCIA DE MORA"]
["DIST",null,"HUANCHACO"]
["DIST",null,"LA ESPERANZA"]
["DIST",null,"LAREDO"]
["DIST",null,"MOCHE"]
["DIST",null,"POROTO"]
["DIST",null,"SALAVERRY"]
["DIST",null,"SIMBAL"]
["DIST",null,"VICTOR LARCO HERRERA"]
["PROV",null,"ASCOPE"]
["DIST",null,"ASCOPE"]
["DIST",null,"CHICAMA"]
["DIST",null,"CHOCOPE"]
["DIST",null,"MAGDALENA DE CAO"]
["DIST",null,"PAIJAN"]
["DIST",null,"RAZURI"]
["DIST",null,"SANTIAGO DE CAO"]
["DIST",null,"CASA GRANDE"]
["PROV",null,"BOLIVAR"]
["DIST",null,"BOLIVAR"]
["DIST",null,"BAMBAMARCA"]
["DIST",null,"CONDORMARCA"]
["DIST",null,"LONGOTEA"]
["DIST",null,"UCHUMARCA"]
["DIST",null,"UCUNCHA"]
["PROV",null,"CHEPEN"]
["DIST",null,"CHEPEN"]
["DIST",null,"PACANGA"]
["DIST",null,"PUEBLO NUEVO"]
["PROV",null,"JULCAN"]
["DIST",null,"JULCAN"]
["DIST",null,"CALAMARCA"]
["DIST",null,"CARABAMBA"]
["DIST",null,"HUASO"]
["PROV",null,"OTUZCO"]
["DIST",null,"OTUZCO"]
["DIST",null,"AGALLPAMPA"]
["DIST",null,"CHARAT"]
["DIST",null,"HUARANCHAL"]
["DIST",null,"LA CUESTA"]
["DIST",null,"MACHE"]
["DIST",null,"PARANDAY"]
["DIST",null,"SALPO"]
["DIST",null,"SINSICAP"]
["DIST",null,"USQUIL"]
["PROV",null,"PACASMAYO"]
["DIST",null,"SAN PEDRO DE LLOC"]
["DIST",null,"GUADALUPE"]
["DIST",null,"JEQUETEPEQUE"]
["DIST",null,"PACASMAYO"]
["DIST",null,"SAN JOSE"]
["PROV",null,"PATAZ"]
["DIST",null,"TAYABAMBA"]
["DIST",null,"BULDIBUYO"]
["DIST",null,"CHILLIA"]
["DIST",null,"HUANCASPATA"]
["DIST",null,"HUAYLILLAS"]
["DIST",null,"HUAYO"]
["DIST",null,"ONGON"]
["DIST",null,"PARCOY"]
["DIST",null,"PATAZ"]
["DIST",null,"PIAS"]
["DIST",null,"SANTIAGO DE CHALLAS"]
["DIST",null,"TAURIJA"]
["DIST",null,"URPAY"]
["PROV",null,"SANCHEZ CARRION"]
["DIST",null,"HUAMACHUCO"]
["DIST",null,"CHUGAY"]
["DIST",null,"COCHORCO"]
["DIST",null,"CURGOS"]
["DIST",null,"MARCABAL"]
["DIST",null,"SANAGORAN"]
["DIST",null,"SARIN"]
["DIST",null,"SARTIMBAMBA"]
["PROV",null,"SANTIAGO DE CHUCO"]
["DIST",null,"SANTIAGO DE CHUCO"]
["DIST",null,"ANGASMARCA"]
["DIST",null,"CACHICADAN"]
["DIST",null,"MOLLEBAMBA"]
["DIST",null,"MOLLEPATA"]
["DIST",null,"QUIRUVILCA"]
["DIST",null,"SANTA CRUZ DE CHUCA"]
["DIST",null,"SITABAMBA"]
["PROV",null,"GRAN CHIMU"]
["DIST",null,"CASCAS"]
["DIST",null,"LUCMA"]
["DIST",null,"MARMOT "]
["DIST",null,"SAYAPULLO"]
["PROV",null,"VIRU"]
["DIST",null,"VIRU"]
["DIST",null,"CHAO"]
["DIST",null,"GUADALUPITO"]
["DEP",null,"LAMBAYEQUE"]
["PROV",null,"CHICLAYO"]
["DIST",null,"CHICLAYO"]
["DIST",null,"CHONGOYAPE"]
["DIST",null,"ETEN"]
["DIST",null,"ETEN PUERTO"]
["DIST",null,"JOSE LEONARDO ORTIZ"]
["DIST",null,"LA VICTORIA"]
["DIST",null,"LAGUNAS"]
["DIST",null,"MONSEFU"]
["DIST",null,"NUEVA ARICA"]
["DIST",null,"OYOTUN"]
["DIST",null,"PICSI"]
["DIST",null,"PIMENTEL"]
["DIST",null,"REQUE"]
["DIST",null,"SANTA ROSA"]
["DIST",null,"SAÑA"]
["DIST",null,"CAYALTI"]
["DIST",null,"PATAPO"]
["DIST",null,"POMALCA"]
["DIST",null,"PUCALA"]
["DIST",null,"TUMAN"]
["PROV",null,"FERREÑAFE"]
["DIST",null,"FERREÑAFE"]
["DIST",null,"CAÑARIS"]
["DIST",null,"INCAHUASI"]
["DIST",null,"MANUEL ANTONIO MESONES MURO"]
["DIST",null,"PITIPO"]
["DIST",null,"PUEBLO NUEVO"]
["PROV",null,"LAMBAYEQUE"]
["DIST",null,"LAMBAYEQUE"]
["DIST",null,"CHOCHOPE"]
["DIST",null,"ILLIMO"]
["DIST",null,"JAYANCA"]
["DIST",null,"MOCHUMI"]
["DIST",null,"MORROPE"]
["DIST",null,"MOTUPE"]
["DIST",null,"OLMOS"]
["DIST",null,"PACORA"]
["DIST",null,"SALAS"]
["DIST",null,"SAN JOSE"]
["DIST",null,"TUCUME"]
["DEP",null,"LIMA "]
["PROV",null,"LIMA"]
["DIST",null,"LIMA"]
["DIST",null,"ANCON"]
["DIST",null,"ATE"]
["DIST",null,"BARRANCO"]
["DIST",null,"BREÑA"]
["DIST",null,"CARABAYLLO"]
["DIST",null,"CHACLACAYO"]
["DIST",null,"CHORRILLOS"]
["DIST",null,"CIENEGUILLA"]
["DIST",null,"COMAS"]
["DIST",null,"EL AGUSTINO"]
["DIST",null,"INDEPENDENCIA"]
["DIST",null,"JESUS MARIA"]
["DIST",null,"LA MOLINA"]
["DIST",null,"LA VICTORIA"]
["DIST",null,"LINCE"]
["DIST",null,"LOS OLIVOS"]
["DIST",null,"LURIGANCHO"]
["DIST",null,"LURIN"]
["DIST",null,"MAGDALENA DEL MAR"]
["DIST",null,"MAGDALENA VIEJA"]
["DIST",null,"MIRAFLORES"]
["DIST",null,"PACHACAMAC"]
["DIST",null,"PUCUSANA"]
["DIST",null,"PUENTE PIEDRA"]
["DIST",null,"PUNTA HERMOSA"]
["DIST",null,"PUNTA NEGRA"]
["DIST",null,"RIMAC"]
["DIST",null,"SAN BARTOLO"]
["DIST",null,"SAN BORJA"]
["DIST",null,"SAN ISIDRO"]
["DIST",null,"SAN JUAN DE LURIGANCHO"]
["DIST",null,"SAN JUAN DE MIRAFLORES"]
["DIST",null,"SAN LUIS"]
["DIST",null,"SAN MARTIN DE PORRES"]
["DIST",null,"SAN MIGUEL"]
["DIST",null,"SANTA ANITA"]
["DIST",null,"SANTA MARIA DEL MAR"]
["DIST",null,"SANTA ROSA"]
["DIST",null,"SANTIAGO DE SURCO"]
["DIST",null,"SURQUILLO"]
["DIST",null,"VILLA EL SALVADOR"]
["DIST",null,"VILLA MARIA DEL TRIUNFO"]
["PROV",null,"BARRANCA"]
["DIST",null,"BARRANCA"]
["DIST",null,"PARAMONGA"]
["DIST",null,"PATIVILCA"]
["DIST",null,"SUPE"]
["DIST",null,"SUPE PUERTO"]
["PROV",null,"CAJATAMBO"]
["DIST",null,"CAJATAMBO"]
["DIST",null,"COPA"]
["DIST",null,"GORGOR"]
["DIST",null,"HUANCAPON"]
["DIST",null,"MANAS"]
["PROV",null,"CANTA"]
["DIST",null,"CANTA"]
["DIST",null,"ARAHUAY"]
["DIST",null,"HUAMANTANGA"]
["DIST",null,"HUAROS"]
["DIST",null,"LACHAQUI"]
["DIST",null,"SAN BUENAVENTURA"]
["DIST",null,"SANTA ROSA DE QUIVES"]
["PROV",null,"CAÑETE"]
["DIST",null,"SAN VICENTE DE CAÑETE"]
["DIST",null,"ASIA"]
["DIST",null,"CALANGO"]
["DIST",null,"CERRO AZUL"]
["DIST",null,"CHILCA"]
["DIST",null,"COAYLLO"]
["DIST",null,"IMPERIAL"]
["DIST",null,"LUNAHUANA"]
["DIST",null,"MALA"]
["DIST",null,"NUEVO IMPERIAL"]
["DIST",null,"PACARAN"]
["DIST",null,"QUILMANA"]
["DIST",null,"SAN ANTONIO"]
["DIST",null,"SAN LUIS"]
["DIST",null,"SANTA CRUZ DE FLORES"]
["DIST",null,"ZUÑIGA"]
["PROV",null,"HUARAL"]
["DIST",null,"HUARAL"]
["DIST",null,"ATAVILLOS ALTO"]
["DIST",null,"ATAVILLOS BAJO"]
["DIST",null,"AUCALLAMA"]
["DIST",null,"CHANCAY"]
["DIST",null,"IHUARI"]
["DIST",null,"LAMPIAN"]
["DIST",null,"PACARAOS"]
["DIST",null,"SAN MIGUEL DE ACOS"]
["DIST",null,"SANTA CRUZ DE ANDAMARCA"]
["DIST",null,"SUMBILCA"]
["DIST",null,"VEINTISIETE DE NOVIEMBRE"]
["PROV",null,"HUAROCHIRI"]
["DIST",null,"MATUCANA"]
["DIST",null,"ANTIOQUIA"]
["DIST",null,"CALLAHUANCA"]
["DIST",null,"CARAMPOMA"]
["DIST",null,"CHICLA"]
["DIST",null,"CUENCA"]
["DIST",null,"HUACHUPAMPA"]
["DIST",null,"HUANZA"]
["DIST",null,"HUAROCHIRI"]
["DIST",null,"LAHUAYTAMBO"]
["DIST",null,"LANGA"]
["DIST",null,"LARAOS"]
["DIST",null,"MARIATANA"]
["DIST",null,"RICARDO PALMA"]
["DIST",null,"SAN ANDRES DE TUPICOCHA"]
["DIST",null,"SAN ANTONIO"]
["DIST",null,"SAN BARTOLOME"]
["DIST",null,"SAN DAMIAN"]
["DIST",null,"SAN JUAN DE IRIS"]
["DIST",null,"SAN JUAN DE TANTARANCHE"]
["DIST",null,"SAN LORENZO DE QUINTI"]
["DIST",null,"SAN MATEO"]
["DIST",null,"SAN MATEO DE OTAO"]
["DIST",null,"SAN PEDRO DE CASTA"]
["DIST",null,"SAN PEDRO DE HUANCAYRE"]
["DIST",null,"SANGALLAYA"]
["DIST",null,"SANTA CRUZ DE COCACHACRA"]
["DIST",null,"SANTA EULALIA"]
["DIST",null,"SANTIAGO DE ANCHUCAYA"]
["DIST",null,"SANTIAGO DE TUNA"]
["DIST",null,"SANTO DOMINGO DE LOS OLLERO"]
["DIST",null,"SURCO"]
["PROV",null,"HUAURA"]
["DIST",null,"HUACHO"]
["DIST",null,"AMBAR"]
["DIST",null,"CALETA DE CARQUIN"]
["DIST",null,"CHECRAS"]
["DIST",null,"HUALMAY"]
["DIST",null,"HUAURA"]
["DIST",null,"LEONCIO PRADO"]
["DIST",null,"PACCHO"]
["DIST",null,"SANTA LEONOR"]
["DIST",null,"SANTA MARIA"]
["DIST",null,"SAYAN"]
["DIST",null,"VEGUETA"]
["PROV",null,"OYON"]
["DIST",null,"OYON"]
["DIST",null,"ANDAJES"]
["DIST",null,"CAUJUL"]
["DIST",null,"COCHAMARCA"]
["DIST",null,"NAVAN"]
["DIST",null,"PACHANGARA"]
["PROV",null,"YAUYOS"]
["DIST",null,"YAUYOS"]
["DIST",null,"ALIS"]
["DIST",null,"AYAUCA"]
["DIST",null,"AYAVIRI"]
["DIST",null,"AZANGARO"]
["DIST",null,"CACRA"]
["DIST",null,"CARANIA"]
["DIST",null,"CATAHUASI"]
["DIST",null,"CHOCOS"]
["DIST",null,"COCHAS"]
["DIST",null,"COLONIA"]
["DIST",null,"HONGOS"]
["DIST",null,"HUAMPARA"]
["DIST",null,"HUANCAYA"]
["DIST",null,"HUANGASCAR"]
["DIST",null,"HUANTAN"]
["DIST",null,"HUAÑEC"]
["DIST",null,"LARAOS"]
["DIST",null,"LINCHA"]
["DIST",null,"MADEAN"]
["DIST",null,"MIRAFLORES"]
["DIST",null,"OMAS"]
["DIST",null,"PUTINZA"]
["DIST",null,"QUINCHES"]
["DIST",null,"QUINOCAY"]
["DIST",null,"SAN JOAQUIN"]
["DIST",null,"SAN PEDRO DE PILAS"]
["DIST",null,"TANTA"]
["DIST",null,"TAURIPAMPA"]
["DIST",null,"TOMAS"]
["DIST",null,"TUPE"]
["DIST",null,"VIÑAC"]
["DIST",null,"VITIS"]
["DEP",null,"LORETO"]
["PROV",null,"MAYNAS"]
["DIST",null,"IQUITOS"]
["DIST",null,"ALTO NANAY"]
["DIST",null,"FERNANDO LORES"]
["DIST",null,"INDIANA"]
["DIST",null,"LAS AMAZONAS"]
["DIST",null,"MAZAN"]
["DIST",null,"NAPO"]
["DIST",null,"PUNCHANA"]
["DIST",null,"PUTUMAYO    "]
["DIST",null,"TORRES CAUSANA"]
["DIST",null,"BELEN"]
["DIST",null,"SAN JUAN BAUTISTA"]
["DIST",null,"TENIENTE MANUEL CLAVERO "]
["PROV",null,"ALTO AMAZONAS"]
["DIST",null,"YURIMAGUAS"]
["DIST",null,"BALSAPUERTO"]
["DIST",null,"JEBEROS"]
["DIST",null,"LAGUNAS"]
["DIST",null,"SANTA CRUZ"]
["DIST",null,"TENIENTE CESAR LOPEZ ROJAS"]
["PROV",null,"LORETO"]
["DIST",null,"NAUTA"]
["DIST",null,"PARINARI  "]
["DIST",null,"TIGRE"]
["DIST",null,"TROMPETEROS"]
["DIST",null,"URARINAS   "]
["PROV",null,"MARISCAL RAMON CASTILLA"]
["DIST",null,"RAMON CASTILLA"]
["DIST",null,"PEBAS"]
["DIST",null,"YAVARI"]
["DIST",null,"SAN PABLO"]
["PROV",null,"REQUENA"]
["DIST",null,"REQUENA"]
["DIST",null,"ALTO TAPICHE"]
["DIST",null,"CAPELO"]
["DIST",null,"EMILIO SAN MARTIN"]
["DIST",null,"MAQUIA"]
["DIST",null,"PUINAHUA"]
["DIST",null,"SAQUENA"]
["DIST",null,"SOPLIN   "]
["DIST",null,"TAPICHE"]
["DIST",null,"JENARO HERRERA"]
["DIST",null,"YAQUERANA   "]
["PROV",null,"UCAYALI"]
["DIST",null,"CONTAMANA"]
["DIST",null,"INAHUAYA"]
["DIST",null,"PADRE MARQUEZ"]
["DIST",null,"PAMPA HERMOSA"]
["DIST",null,"SARAYACU"]
["DIST",null,"VARGAS GUERRA"]
["PROV",null,"DATEM DEL MARAÑON "]
["DIST",null,"BARRANCA"]
["DIST",null,"CAHUAPANAS"]
["DIST",null,"MANSERICHE"]
["DIST",null,"MORONA"]
["DIST",null,"PASTAZA"]
["DIST",null,"ANDOAS "]
["DEP",null,"MADRE DE DIOS"]
["PROV",null,"TAMBOPATA"]
["DIST",null,"TAMBOPATA"]
["DIST",null,"INAMBARI   "]
["DIST",null,"LAS PIEDRAS  "]
["DIST",null,"LABERINTO"]
["PROV",null,"MANU"]
["DIST",null,"MANU   "]
["DIST",null,"FITZCARRALD   "]
["DIST",null,"MADRE DE DIOS   "]
["DIST",null,"HUEPETUHE"]
["PROV",null,"TAHUAMANU"]
["DIST",null,"IÑAPARI"]
["DIST",null,"IBERIA"]
["DIST",null,"TAHUAMANU"]
["DEP",null,"MOQUEGUA"]
["PROV",null,"MARISCAL NIETO"]
["DIST",null,"MOQUEGUA"]
["DIST",null,"CARUMAS"]
["DIST",null,"CUCHUMBAYA"]
["DIST",null,"SAMEGUA"]
["DIST",null,"SAN CRISTOBAL"]
["DIST",null,"TORATA"]
["PROV",null,"GENERAL SANCHEZ CERRO"]
["DIST",null,"OMATE"]
["DIST",null,"CHOJATA"]
["DIST",null,"COALAQUE"]
["DIST",null,"ICHUÑA"]
["DIST",null,"LA CAPILLA"]
["DIST",null,"LLOQUE"]
["DIST",null,"MATALAQUE"]
["DIST",null,"PUQUINA"]
["DIST",null,"QUINISTAQUILLAS"]
["DIST",null,"UBINAS"]
["DIST",null,"YUNGA"]
["PROV",null,"ILO"]
["DIST",null,"ILO"]
["DIST",null,"EL ALGARROBAL"]
["DIST",null,"PACOCHA"]
["DEP",null,"PASCO"]
["PROV",null,"PASCO"]
["DIST",null,"CHAUPIMARCA"]
["DIST",null,"HUACHON"]
["DIST",null,"HUARIACA"]
["DIST",null,"HUAYLLAY"]
["DIST",null,"NINACACA"]
["DIST",null,"PALLANCHACRA"]
["DIST",null,"PAUCARTAMBO"]
["DIST",null,"SAN FCO.DE ASIS DE YARUSYAC"]
["DIST",null,"SIMON BOLIVAR"]
["DIST",null,"TICLACAYAN"]
["DIST",null,"TINYAHUARCO"]
["DIST",null,"VICCO"]
["DIST",null,"YANACANCHA"]
[]
["PROV",null,"DANIEL ALCIDES CARRION"]
["DIST",null,"YANAHUANCA"]
["DIST",null,"CHACAYAN"]
["DIST",null,"GOYLLARISQUIZGA"]
["DIST",null,"PAUCAR"]
["DIST",null,"SAN PEDRO DE PILLAO"]
["DIST",null,"SANTA ANA DE TUSI"]
["DIST",null,"TAPUC"]
["DIST",null,"VILCABAMBA"]
["PROV",null,"OXAPAMPA"]
["DIST",null,"OXAPAMPA"]
["DIST",null,"CHONTABAMBA"]
["DIST",null,"HUANCABAMBA"]
["DIST",null,"PALCAZU"]
["DIST",null,"POZUZO"]
["DIST",null,"PUERTO BERMUDEZ"]
["DIST",null,"VILLA RICA"]
["DEP",null,"PIURA"]
["PROV",null,"PIURA"]
["DIST",null,"PIURA"]
["DIST",null,"CASTILLA"]
["DIST",null,"CATACAOS"]
["DIST",null,"CURA MORI"]
["DIST",null,"EL TALLAN"]
["DIST",null,"LA ARENA"]
["DIST",null,"LA UNION"]
["DIST",null,"LAS LOMAS"]
["DIST",null,"TAMBO GRANDE"]
["PROV",null,"AYABACA"]
["DIST",null,"AYABACA"]
["DIST",null,"FRIAS"]
["DIST",null,"JILILI"]
["DIST",null,"LAGUNAS"]
["DIST",null,"MONTERO"]
["DIST",null,"PACAIPAMPA"]
["DIST",null,"PAIMAS"]
["DIST",null,"SAPILLICA"]
["DIST",null,"SICCHEZ"]
["DIST",null,"SUYO"]
["PROV",null,"HUANCABAMBA"]
["DIST",null,"HUANCABAMBA"]
["DIST",null,"CANCHAQUE"]
["DIST",null,"EL CARMEN DE LA FRONTERA"]
["DIST",null,"HUARMACA"]
["DIST",null,"LALAQUIZ"]
["DIST",null,"SAN MIGUEL DE EL FAIQUE"]
["DIST",null,"SONDOR"]
["DIST",null,"SONDORILLO"]
["PROV",null,"MORROPON"]
["DIST",null,"CHULUCANAS"]
["DIST",null,"BUENOS AIRES"]
["DIST",null,"CHALACO"]
["DIST",null,"LA MATANZA"]
["DIST",null,"MORROPON"]
["DIST",null,"SALITRAL"]
["DIST",null,"SAN JUAN DE BIGOTE"]
["DIST",null,"SANTA CATALINA DE MOSSA"]
["DIST",null,"SANTO DOMINGO"]
["DIST",null,"YAMANGO"]
["PROV",null,"PAITA"]
["DIST",null,"PAITA"]
["DIST",null,"AMOTAPE"]
["DIST",null,"ARENAL"]
["DIST",null,"COLAN"]
["DIST",null,"LA HUACA"]
["DIST",null,"TAMARINDO"]
["DIST",null,"VICHAYAL"]
["PROV",null,"SULLANA"]
["DIST",null,"SULLANA"]
["DIST",null,"BELLAVISTA"]
["DIST",null,"IGNACIO ESCUDERO"]
["DIST",null,"LANCONES"]
["DIST",null,"MARCAVELICA"]
["DIST",null,"MIGUEL CHECA"]
["DIST",null,"QUERECOTILLO"]
["DIST",null,"SALITRAL"]
["PROV",null,"TALARA"]
["DIST",null,"PARIÑAS"]
["DIST",null,"EL ALTO"]
["DIST",null,"LA BREA"]
["DIST",null,"LOBITOS"]
["DIST",null,"LOS ORGANOS"]
["DIST",null,"MANCORA"]
["PROV",null,"SECHURA"]
["DIST",null,"SECHURA"]
["DIST",null,"BELLAVISTA DE LA UNION"]
["DIST",null,"BERNAL"]
["DIST",null,"CRISTO NOS VALGA"]
["DIST",null,"VICE"]
["DIST",null,"RINCONADA LLICUAR"]
["DEP",null,"PUNO"]
["PROV",null,"PUNO"]
["DIST",null,"PUNO"]
["DIST",null,"ACORA"]
["DIST",null,"AMANTANI"]
["DIST",null,"ATUNCOLLA"]
["DIST",null,"CAPACHICA"]
["DIST",null,"CHUCUITO"]
["DIST",null,"COATA"]
["DIST",null,"HUATA"]
["DIST",null,"MAÑAZO"]
["DIST",null,"PAUCARCOLLA"]
["DIST",null,"PICHACANI"]
["DIST",null,"PLATERIA"]
["DIST",null,"SAN ANTONIO"]
["DIST",null,"TIQUILLACA"]
["DIST",null,"VILQUE"]
["PROV",null,"AZANGARO"]
["DIST",null,"AZANGARO"]
["DIST",null,"ACHAYA"]
["DIST",null,"ARAPA"]
["DIST",null,"ASILLO"]
["DIST",null,"CAMINACA"]
["DIST",null,"CHUPA"]
["DIST",null,"JOSE DOMINGO CHOQUEHUANCA"]
["DIST",null,"MUÑANI"]
["DIST",null,"POTONI"]
["DIST",null,"SAMAN"]
["DIST",null,"SAN ANTON"]
["DIST",null,"SAN JOSE"]
["DIST",null,"SAN JUAN DE SALINAS"]
["DIST",null,"SANTIAGO DE PUPUJA"]
["DIST",null,"TIRAPATA"]
["PROV",null,"CARABAYA"]
["DIST",null,"MACUSANI"]
["DIST",null,"AJOYANI"]
["DIST",null,"AYAPATA"]
["DIST",null,"COASA"]
["DIST",null,"CORANI"]
["DIST",null,"CRUCERO"]
["DIST",null,"ITUATA  "]
["DIST",null,"OLLACHEA"]
["DIST",null,"SAN GABAN"]
["DIST",null,"USICAYOS"]
["PROV",null,"CHUCUITO"]
["DIST",null,"JULI"]
["DIST",null,"DESAGUADERO"]
["DIST",null,"HUACULLANI"]
["DIST",null,"KELLUYO"]
["DIST",null,"PISACOMA"]
["DIST",null,"POMATA"]
["DIST",null,"ZEPITA"]
["PROV",null,"EL COLLAO"]
["DIST",null,"ILAVE"]
["DIST",null,"CAPAZO"]
["DIST",null,"PILCUYO"]
["DIST",null,"SANTA ROSA"]
["DIST",null,"CONDURIRI"]
["PROV",null,"HUANCANE"]
["DIST",null,"HUANCANE"]
["DIST",null,"COJATA"]
["DIST",null,"HUATASANI"]
["DIST",null,"INCHUPALLA"]
["DIST",null,"PUSI"]
["DIST",null,"ROSASPATA"]
["DIST",null,"TARACO"]
["DIST",null,"VILQUE CHICO"]
["PROV",null,"LAMPA"]
["DIST",null,"LAMPA"]
["DIST",null,"CABANILLA"]
["DIST",null,"CALAPUJA"]
["DIST",null,"NICASIO"]
["DIST",null,"OCUVIRI"]
["DIST",null,"PALCA"]
["DIST",null,"PARATIA"]
["DIST",null,"PUCARA"]
["DIST",null,"SANTA LUCIA"]
["DIST",null,"VILAVILA"]
["PROV",null,"MELGAR"]
["DIST",null,"AYAVIRI"]
["DIST",null,"ANTAUTA"]
["DIST",null,"CUPI"]
["DIST",null,"LLALLI"]
["DIST",null,"MACARI"]
["DIST",null,"NUÑOA"]
["DIST",null,"ORURILLO"]
["DIST",null,"SANTA ROSA"]
["DIST",null,"UMACHIRI"]
["PROV",null,"MOHO"]
["DIST",null,"MOHO"]
["DIST",null,"CONIMA"]
["DIST",null,"HUAYRAPATA"]
["DIST",null,"TILALI"]
["PROV",null,"SAN ANTONIO DE PUTINA"]
["DIST",null,"PUTINA"]
["DIST",null,"ANANEA"]
["DIST",null,"PEDRO VILCA APAZA"]
["DIST",null,"QUILCAPUNCU"]
["DIST",null,"SINA"]
["PROV",null,"SAN ROMAN"]
["DIST",null,"JULIACA"]
["DIST",null,"CABANA"]
["DIST",null,"CABANILLAS"]
["DIST",null,"CARACOTO"]
["PROV",null,"SANDIA"]
["DIST",null,"SANDIA"]
["DIST",null,"CUYOCUYO"]
["DIST",null,"LIMBANI"]
["DIST",null,"PATAMBUCO"]
["DIST",null,"PHARA"]
["DIST",null,"QUIACA"]
["DIST",null,"SAN JUAN DEL ORO"]
["DIST",null,"YANAHUAYA"]
["DIST",null,"ALTO INAMBARI"]
["DIST",null,"SAN PEDRO DE PUTINA PUNCU"]
["PROV",null,"YUNGUYO"]
["DIST",null,"YUNGUYO"]
["DIST",null,"ANAPIA"]
["DIST",null,"COPANI"]
["DIST",null,"CUTURAPI"]
["DIST",null,"OLLARAYA"]
["DIST",null,"TINICACHI"]
["DIST",null,"UNICACHI"]
["DEP",null,"SAN MARTIN"]
["PROV",null,"MOYOBAMBA"]
["DIST",null,"MOYOBAMBA"]
["DIST",null,"CALZADA"]
["DIST",null,"HABANA"]
["DIST",null,"JEPELACIO"]
["DIST",null,"SORITOR"]
["DIST",null,"YANTALO"]
["PROV",null,"BELLAVISTA"]
["DIST",null,"BELLAVISTA"]
["DIST",null,"ALTO BIAVO"]
["DIST",null,"BAJO BIAVO"]
["DIST",null,"HUALLAGA"]
["DIST",null,"SAN PABLO"]
["DIST",null,"SAN RAFAEL"]
["PROV",null,"EL DORADO"]
["DIST",null,"SAN JOSE DE SISA"]
["DIST",null,"AGUA BLANCA"]
["DIST",null,"SAN MARTIN"]
["DIST",null,"SANTA ROSA"]
["DIST",null,"SHATOJA"]
["PROV",null,"HUALLAGA"]
["DIST",null,"SAPOSOA"]
["DIST",null,"ALTO SAPOSOA"]
["DIST",null,"EL ESLABON"]
["DIST",null,"PISCOYACU"]
["DIST",null,"SACANCHE"]
["DIST",null,"TINGO DE SAPOSOA"]
["PROV",null,"LAMAS"]
["DIST",null,"LAMAS"]
["DIST",null,"ALONSO DE ALVARADO"]
["DIST",null,"BARRANQUITA"]
["DIST",null,"CAYNARACHI   "]
["DIST",null,"CUÑUMBUQUI"]
["DIST",null,"PINTO RECODO"]
["DIST",null,"RUMISAPA"]
["DIST",null,"SAN ROQUE DE CUMBAZA"]
["DIST",null,"SHANAO"]
["DIST",null,"TABALOSOS"]
["DIST",null,"ZAPATERO"]
["PROV",null,"MARISCAL CACERES"]
["DIST",null,"JUANJUI"]
["DIST",null,"CAMPANILLA"]
["DIST",null,"HUICUNGO"]
["DIST",null,"PACHIZA"]
["DIST",null,"PAJARILLO"]
["PROV",null,"PICOTA"]
["DIST",null,"PICOTA"]
["DIST",null,"BUENOS AIRES"]
["DIST",null,"CASPISAPA"]
["DIST",null,"PILLUANA"]
["DIST",null,"PUCACACA"]
["DIST",null,"SAN CRISTOBAL"]
["DIST",null,"SAN HILARION"]
["DIST",null,"SHAMBOYACU"]
["DIST",null,"TINGO DE PONASA"]
["DIST",null,"TRES UNIDOS"]
["PROV",null,"RIOJA"]
["DIST",null,"RIOJA"]
["DIST",null,"AWAJUN"]
["DIST",null,"ELIAS SOPLIN VARGAS"]
["DIST",null,"NUEVA CAJAMARCA"]
["DIST",null,"PARDO MIGUEL"]
["DIST",null,"POSIC"]
["DIST",null,"SAN FERNANDO"]
["DIST",null,"YORONGOS"]
["DIST",null,"YURACYACU"]
["PROV",null,"SAN MARTIN"]
["DIST",null,"TARAPOTO"]
["DIST",null,"ALBERTO LEVEAU"]
["DIST",null,"CACATACHI"]
["DIST",null,"CHAZUTA"]
["DIST",null,"CHIPURANA"]
["DIST",null,"EL PORVENIR"]
["DIST",null,"HUIMBAYOC"]
["DIST",null,"JUAN GUERRA"]
["DIST",null,"LA BANDA DE SHILCAYO"]
["DIST",null,"MORALES"]
["DIST",null,"PAPAPLAYA"]
["DIST",null,"SAN ANTONIO"]
["DIST",null,"SAUCE"]
["DIST",null,"SHAPAJA"]
["PROV",null,"TOCACHE"]
["DIST",null,"TOCACHE"]
["DIST",null,"NUEVO PROGRESO"]
["DIST",null,"POLVORA"]
["DIST",null,"SHUNTE"]
["DIST",null,"UCHIZA"]
["DEP",null,"TACNA"]
["PROV",null,"TACNA"]
["DIST",null,"TACNA"]
["DIST",null,"ALTO DE LA ALIANZA"]
["DIST",null,"CALANA"]
["DIST",null,"CIUDAD NUEVA"]
["DIST",null,"INCLAN"]
["DIST",null,"PACHIA"]
["DIST",null,"PALCA"]
["DIST",null,"POCOLLAY"]
["DIST",null,"SAMA"]
["DIST",null,"CRNEL.GREGORIO ALBARRACIN LANCHIPA"]
["PROV",null,"CANDARAVE"]
["DIST",null,"CANDARAVE"]
["DIST",null,"CAIRANI"]
["DIST",null,"CAMILACA"]
["DIST",null,"CURIBAYA"]
["DIST",null,"HUANUARA"]
["DIST",null,"QUILAHUANI"]
["PROV",null,"JORGE BASADRE"]
["DIST",null,"LOCUMBA"]
["DIST",null,"ILABAYA"]
["DIST",null,"ITE"]
["PROV",null,"TARATA"]
["DIST",null,"TARATA"]
["DIST",null,"HÉROES ALBARRACÍN"]
["DIST",null,"ESTIQUE"]
["DIST",null,"ESTIQUE-PAMPA"]
["DIST",null,"SITAJARA"]
["DIST",null,"SUSAPAYA"]
["DIST",null,"TARUCACHI"]
["DIST",null,"TICACO"]
["DEP",null,"TUMBES"]
["PROV",null,"TUMBES"]
["DIST",null,"TUMBES"]
["DIST",null,"CORRALES"]
["DIST",null,"LA CRUZ"]
["DIST",null,"PAMPAS DE HOSPITAL"]
["DIST",null,"SAN JACINTO"]
["DIST",null,"SAN JUAN DE LA VIRGEN"]
["PROV",null,"CONTRALMIRANTE VILLAR"]
["DIST",null,"ZORRITOS"]
["DIST",null,"CASITAS"]
["DIST",null,"CANOAS DE PUNTA SAL "]
["PROV",null,"ZARUMILLA"]
["DIST",null,"ZARUMILLA"]
["DIST",null,"AGUAS VERDES"]
["DIST",null,"MATAPALO"]
["DIST",null,"PAPAYAL"]
["DEP",null,"UCAYALI"]
["PROV",null,"CORONEL PORTILLO"]
["DIST",null,"CALLERIA"]
["DIST",null,"CAMPOVERDE"]
["DIST",null,"IPARIA"]
["DIST",null,"MASISEA"]
["DIST",null,"YARINACOCHA"]
["DIST",null,"NUEVA REQUENA"]
["DIST",null,"MANANTAY"]
["PROV",null,"ATALAYA"]
["DIST",null,"RAYMONDI"]
["DIST",null,"SEPAHUA"]
["DIST",null,"TAHUANIA"]
["DIST",null,"YURUA"]
["PROV",null,"PADRE ABAD"]
["DIST",null,"PADRE ABAD"]
["DIST",null,"IRAZOLA"]
["DIST",null,"CURIMANA"]
["PROV",null,"PURUS"]
["DIST",null,"PURUS"]